Payment Date,Transaction Number,Net Amount,Supplier (Beneficiary) Name,Local Supplier Internal Reference,Directorate / Service Where Expenditure Incurred,Service Category Label,Service Category URI,SeRCOP Expenditure Category,SeRCOP Expenditure Code,Purpose of Spend,SeRCOP Detailed Expenditure Code,Capital/Revenue,Procurement Classification
26/02/2018,1582277,947937.00,TYNE & WEAR ITA,383248,Central Items,N/A,N/A,Third Party Payments,505,Other Agencies,5043,Revenue,00.PUBLIC SECTOR
26/02/2018,1582265,476917.00,NORTHUMBRIA POLICE AND CRIME COMMISSIONER,014031,General Fund Financing,Holding A/C,N/A,Excluded from General Fund,N/A,Collection Fund,N/A,Revenue,00.PUBLIC SECTOR
26/02/2018,1582182,376470.00,TYNE & WEAR FIRE & RESCUE SERVICE,378230,General Fund Financing,Holding A/C,N/A,Excluded from General Fund,N/A,Collection Fund,N/A,Revenue,00.PUBLIC SECTOR
12/02/2018,1575201,1614754.01,TYNE & WEAR PENSION FUND,364141,Capital,General Fund,N/A,Capital,Capital,Capital,Capital,Capital,00.PUBLIC SECTOR
05/02/2018,1569056,1244481.15,TEACHERS PENSIONS AGENCY,341172,Capital,General Fund,N/A,Capital,Capital,Capital,Capital,Capital,00.NON INFLUENCIBLE
21/02/2018,1580737,905917.50,KIER NORTH TYNESIDE LIMITED,383278,Housing Revenue Account,Housing Revenue Account,N/A,Third Party Payments,505,Private Contractors,5042,Revenue,02.BUILDING SERVICES
20/02/2018,1580274,866508.16,HM REVENUE & CUSTOMS,361213,Capital,General Fund,N/A,Capital,Capital,Capital,Capital,Capital,00.PUBLIC SECTOR
26/02/2018,1582263,70000.00,ZURICH INSURANCE PLC,354172,Capital,General Fund,N/A,Capital,Capital,Capital,Capital,Capital,FINANCE INSURANCE
05/02/2018,1569073,4372.00,NORTHUMBERLAND COLLEGE,243092,Commissioning & Investment,Children's & Education Services,103,Third Party Payments,505,Private Contractors,5042,Revenue,00.EXT SCHOOLS
05/02/2018,1569073,4372.00,NORTHUMBERLAND COLLEGE,243092,Commissioning & Investment,Children's & Education Services,103,Third Party Payments,505,Private Contractors,5042,Revenue,00.EXT SCHOOLS
09/02/2018,1574267,4369.40,CAPITA BUSINESS SERVICES LTD,316395,Commissioning & Investment,Central Services,102,Third Party Payments,505,Private Contractors,5042,Revenue,15.SOFTWARE
01/02/2018,1568688,4366.83,SPORT & PLAY LIMITED,393484,"Environment, Housing & Leisure",Cultural & Related Services,104,Supplies and Services,504,Equipment,5023,Revenue,12.LANDSCAPING
20/02/2018,1580265,4358.89,HM REVENUE & CUSTOMS,361213,Capital,General Fund,N/A,Capital,Capital,Capital,Capital,Capital,00.PUBLIC SECTOR
09/02/2018,1574246,4350.00,HM REVENUE & CUSTOMS,361213,Law & Governance,Central Services,102,Income,509,Customer and Client Receipts,5064,Revenue,00.PUBLIC SECTOR
27/02/2018,1584314,4341.32,HOUSING BENEFIT,299992,Finance,Housing Services,108,Transfer Payments,506,Housing Benefits,5048,Revenue,00.NON INFLUENCIBLE
07/02/2018,1573717,829686.58,WILLMOTT DIXON CAPITAL WORKS LTD,391705,Capital,Capital,Capital,Supplies and Services,504,Miscellaneous Expenses,5034,Capital,REPAIR BUILD
08/02/2018,1574059,714741.20,SOLUTIONS 4 NORTH TYNESIDE,391082,Housing Revenue Account,Housing Services,108,Third Party Payments,505,Private Contractors,5042,Revenue,02.BUILDING SERVICES
26/02/2018,1582182,44756.00,TYNE & WEAR FIRE & RESCUE SERVICE,378230,General Fund Financing,Environmental & Regulatory Services,105,Excluded from General Fund,N/A,Collection Fund,N/A,Revenue,00.PUBLIC SECTOR
20/02/2018,1580274,507228.74,HM REVENUE & CUSTOMS,361213,Capital,General Fund,N/A,Capital,Capital,Capital,Capital,Capital,00.PUBLIC SECTOR
21/02/2018,1580600,503156.66,TAY VALLEY LIGHTING (NEWCASTLE & NORTH TYNESIDE) LIMITED,357147,"Environment, Housing & Leisure",Highways & Transport Services,107,Third Party Payments,505,Private Contractors,5042,Revenue,STREET LIGHT
07/02/2018,1573688,488810.18,TAY VALLEY LIGHTING (NEWCASTLE & NORTH TYNESIDE) LIMITED,357147,"Environment, Housing & Leisure",Highways & Transport Services,107,Third Party Payments,505,Private Contractors,5042,Revenue,STREET LIGHT
27/02/2018,1586169,483575.25,NTW NHS TRUST,374360,"Health, Education, Care and Safeguarding",Public Health,112,Supplies and Services,504,"Printing, Stationery and General Office Expenses",5026,Revenue,00.DOCTORS/MEDICAL FEES
21/02/2018,1580744,418910.86,HALL CONSTRUCTION SERVICES LTD,329853,Capital,Capital,Capital,Third Party Payments,505,Private Contractors,5042,Capital,02.BUILDING SERVICES
06/02/2018,1573581,414529.46,KAJIMA NORTH TYNESIDE LTD,356854,Commissioning & Investment,Children's & Education Services,103,Third Party Payments,505,Private Contractors,5042,Revenue,02.BUILDING SERVICES
20/02/2018,1580269,409004.08,HM REVENUE & CUSTOMS,361213,Capital,General Fund,N/A,Capital,Capital,Capital,Capital,Capital,00.PUBLIC SECTOR
02/02/2018,1568738,350499.74,SITA UK LIMITED,359430,"Environment, Housing & Leisure",Environmental & Regulatory Services,105,Third Party Payments,505,Private Contractors,5042,Revenue,WASTE RECYCLE
22/02/2018,1580865,343294.27,SITA UK LIMITED,359430,"Environment, Housing & Leisure",Environmental & Regulatory Services,105,Third Party Payments,505,Private Contractors,5042,Revenue,WASTE RECYCLE
01/02/2018,1568694,310838.83,BALFOUR BEATTY WORKPLACE LIMITED,389026,Commercial & Business Redesign,Central Services,102,Third Party Payments,505,Private Contractors,5042,Revenue,HR PROFESS
28/02/2018,1586826,310838.83,BALFOUR BEATTY WORKPLACE LIMITED,389026,Commercial & Business Redesign,Central Services,102,Third Party Payments,505,Private Contractors,5042,Revenue,HR PROFESS
22/02/2018,1580875,307343.25,CAPITA SYMONDS LTD,376582,Capital,Capital,Capital,Third Party Payments,505,Private Contractors,5042,Capital,02.BUILDING SERVICES
05/02/2018,1569067,283360.16,CAPITA SYMONDS LTD,376582,Capital,Capital,Capital,Third Party Payments,505,Private Contractors,5042,Capital,02.BUILDING SERVICES
22/02/2018,1580875,279971.97,CAPITA SYMONDS LTD,376582,Capital,Capital,Capital,Third Party Payments,505,Private Contractors,5042,Capital,02.BUILDING SERVICES
27/02/2018,1584361,276511.80,HOUSING BENEFIT,299992,Finance,Housing Services,108,Transfer Payments,506,Housing Benefits,5048,Revenue,00.NON INFLUENCIBLE
06/02/2018,1572169,274488.47,HOUSING BENEFIT,299992,Finance,Housing Services,108,Transfer Payments,506,Housing Benefits,5048,Revenue,00.NON INFLUENCIBLE
20/02/2018,1580269,250215.30,HM REVENUE & CUSTOMS,361213,Capital,General Fund,N/A,Capital,Capital,Capital,Capital,Capital,00.PUBLIC SECTOR
23/02/2018,1581089,218154.31,JONES LANG LASALLE,388538,Commissioning & Investment,Unallocated,N/A,Premises-Related Expenditure,502,Rents,5007,Revenue,16.REAL ESTATE
28/02/2018,1586773,198272.00,DENNIS EAGLE LTD,303955,"Environment, Housing & Leisure",Unallocated,N/A,Supplies and Services,504,Equipment,5023,Revenue,28.VEHICLE PARTS
28/02/2018,1586773,198272.00,DENNIS EAGLE LTD,303955,"Environment, Housing & Leisure",Unallocated,N/A,Supplies and Services,504,Equipment,5023,Revenue,28.VEHICLE PARTS
28/02/2018,1586773,198272.00,DENNIS EAGLE LTD,303955,"Environment, Housing & Leisure",Unallocated,N/A,Supplies and Services,504,Equipment,5023,Revenue,28.VEHICLE PARTS
06/02/2018,1573594,197588.24,NEWCASTLE CITY COUNCIL,014331,Capital,Capital,Capital,Third Party Payments,505,Private Contractors,5042,Capital,00.PUBLIC SECTOR
01/02/2018,1568719,192347.99,HALL CONSTRUCTION SERVICES LTD,329853,Capital,Capital,Capital,Third Party Payments,505,Private Contractors,5042,Capital,02.BUILDING SERVICES
19/02/2018,1577347,184690.27,NORTHUMBERLAND ESTATES,004229,Capital,Capital,Capital,Third Party Payments,505,Private Contractors,5042,Capital,16.REAL ESTATE
27/02/2018,1586153,176739.73,KIER NORTH TYNESIDE LIMITED,383278,Capital,Capital,Capital,Third Party Payments,505,Private Contractors,5042,Capital,02.BUILDING SERVICES
06/02/2018,1572137,170468.53,HOUSING BENEFIT,299992,Finance,Housing Services,108,Transfer Payments,506,Housing Benefits,5048,Revenue,00.NON INFLUENCIBLE
27/02/2018,1584359,168752.23,HOUSING BENEFIT,299992,Finance,Housing Services,108,Transfer Payments,506,Housing Benefits,5048,Revenue,00.NON INFLUENCIBLE
08/02/2018,1573997,165855.50,NHC NHS FOUNDATION TRUST,317869,"Health, Education, Care and Safeguarding",Adult Social Care,101,Supplies and Services,504,"Printing, Stationery and General Office Expenses",5026,Revenue,PUB HEALTH.PUBLIC HEALTH
20/02/2018,1580265,165468.11,HM REVENUE & CUSTOMS,361213,Capital,General Fund,N/A,Capital,Capital,Capital,Capital,Capital,00.PUBLIC SECTOR
01/02/2018,1568694,161444.17,BALFOUR BEATTY WORKPLACE LIMITED,389026,Finance,Central Services,102,Third Party Payments,505,Private Contractors,5042,Revenue,HR PROFESS
28/02/2018,1586826,161444.17,BALFOUR BEATTY WORKPLACE LIMITED,389026,Finance,Central Services,102,Third Party Payments,505,Private Contractors,5042,Revenue,HR PROFESS
01/02/2018,1568694,159786.66,BALFOUR BEATTY WORKPLACE LIMITED,389026,Finance,Central Services,102,Third Party Payments,505,Private Contractors,5042,Revenue,HR PROFESS
28/02/2018,1586826,159786.66,BALFOUR BEATTY WORKPLACE LIMITED,389026,Finance,Central Services,102,Third Party Payments,505,Private Contractors,5042,Revenue,HR PROFESS
20/02/2018,1580270,150453.10,HM REVENUE & CUSTOMS,361213,Capital,General Fund,N/A,Capital,Capital,Capital,Capital,Capital,00.PUBLIC SECTOR
22/02/2018,1580875,132585.49,CAPITA SYMONDS LTD,376582,Capital,Capital,Capital,Third Party Payments,505,Private Contractors,5042,Capital,02.BUILDING SERVICES
28/02/2018,1586756,128228.68,KIER NORTH TYNESIDE LIMITED,383278,Capital,Capital,Capital,Supplies and Services,504,Miscellaneous Expenses,5034,Capital,02.BUILDING SERVICES
06/02/2018,1572116,120376.75,HOUSING BENEFIT,299992,Finance,Housing Services,108,Transfer Payments,506,Housing Benefits,5048,Revenue,00.NON INFLUENCIBLE
27/02/2018,1584434,119668.53,HOUSING BENEFIT,299992,Finance,Housing Services,108,Transfer Payments,506,Housing Benefits,5048,Revenue,00.NON INFLUENCIBLE
07/02/2018,1573688,117768.06,TAY VALLEY LIGHTING (NEWCASTLE & NORTH TYNESIDE) LIMITED,357147,Capital,Capital,Capital,Third Party Payments,505,Private Contractors,5042,Capital,STREET LIGHT
21/02/2018,1580601,112657.79,Redacted Personal Data,394712,Capital,Capital,Capital,Third Party Payments,505,Private Contractors,5042,Capital,REPAIR BUILD
14/02/2018,1575765,110458.00,N TYNESIDE CREDIT UNION,324387,Capital,General Fund,N/A,Capital,Capital,Capital,Capital,Capital,00.NON INFLUENCIBLE
27/02/2018,1584363,109637.32,HOUSING BENEFIT,299992,Finance,Housing Services,108,Transfer Payments,506,Housing Benefits,5048,Revenue,00.NON INFLUENCIBLE
06/02/2018,1572171,107385.59,HOUSING BENEFIT,299992,Finance,Housing Services,108,Transfer Payments,506,Housing Benefits,5048,Revenue,00.NON INFLUENCIBLE
01/02/2018,1568694,107012.92,BALFOUR BEATTY WORKPLACE LIMITED,389026,Finance,Central Services,102,Third Party Payments,505,Private Contractors,5042,Revenue,HR PROFESS
20/02/2018,1580265,102638.04,HM REVENUE & CUSTOMS,361213,Capital,General Fund,N/A,Capital,Capital,Capital,Capital,Capital,00.PUBLIC SECTOR
27/02/2018,1586153,95795.75,KIER NORTH TYNESIDE LIMITED,383278,Capital,Capital,Capital,Third Party Payments,505,Private Contractors,5042,Capital,02.BUILDING SERVICES
28/02/2018,1586826,95508.93,BALFOUR BEATTY WORKPLACE LIMITED,389026,Finance,Central Services,102,Third Party Payments,505,Private Contractors,5042,Revenue,HR PROFESS
13/02/2018,1575342,93578.80,CAPITA SYMONDS LTD,376582,Capital,Capital,Capital,Third Party Payments,505,Private Contractors,5042,Capital,02.BUILDING SERVICES
21/02/2018,1580600,88724.66,TAY VALLEY LIGHTING (NEWCASTLE & NORTH TYNESIDE) LIMITED,357147,Capital,Capital,Capital,Third Party Payments,505,Private Contractors,5042,Capital,STREET LIGHT
01/02/2018,1568694,87864.75,BALFOUR BEATTY WORKPLACE LIMITED,389026,HR & Organisational Development,Central Services,102,Third Party Payments,505,Private Contractors,5042,Revenue,HR PROFESS
28/02/2018,1586826,87864.75,BALFOUR BEATTY WORKPLACE LIMITED,389026,HR & Organisational Development,Central Services,102,Third Party Payments,505,Private Contractors,5042,Revenue,HR PROFESS
20/02/2018,1580266,85018.07,HM REVENUE & CUSTOMS,361213,Capital,General Fund,N/A,Capital,Capital,Capital,Capital,Capital,00.PUBLIC SECTOR
27/02/2018,1584353,83210.97,HOUSING BENEFIT,299992,Finance,Housing Services,108,Transfer Payments,506,Housing Benefits,5048,Revenue,00.NON INFLUENCIBLE
06/02/2018,1572131,81997.45,HOUSING BENEFIT,299992,Finance,Housing Services,108,Transfer Payments,506,Housing Benefits,5048,Revenue,00.NON INFLUENCIBLE
07/02/2018,1573720,80784.40,STANDARD LIFE,391133,Commissioning & Investment,Central Services,102,Premises-Related Expenditure,502,Rents,5007,Revenue,00.NON INFLUENCIBLE
21/02/2018,1580622,80784.40,STANDARD LIFE,391133,Commissioning & Investment,Central Services,102,Premises-Related Expenditure,502,Rents,5007,Revenue,00.NON INFLUENCIBLE
08/02/2018,1573989,78819.91,CAPITA BUSINESS SERVICES LTD,316395,Commissioning & Investment,Central Services,102,Third Party Payments,505,Private Contractors,5042,Revenue,15.SOFTWARE
16/02/2018,1576290,78808.82,NNT LIFT COMPANY (FUNDCO 1) LIMITED,376424,"Environment, Housing & Leisure",Cultural & Related Services,104,Third Party Payments,505,Private Contractors,5042,Revenue,02.BUILDING SERVICES
16/02/2018,1576252,78545.45,NORTH TYNESIDE HOMECARE ASSOCIATES LTD,357929,"Health, Education, Care and Safeguarding",Adult Social Care,101,Third Party Payments,505,Private Contractors,5042,Revenue,22.HOMECARE
06/02/2018,1572170,72511.46,HOUSING BENEFIT,299992,Finance,Housing Services,108,Transfer Payments,506,Housing Benefits,5048,Revenue,00.NON INFLUENCIBLE
05/02/2018,1569135,72402.05,ARK HOME HEALTHCARE,392334,"Health, Education, Care and Safeguarding",Adult Social Care,101,Third Party Payments,505,Private Contractors,5042,Revenue,22.SUPPORT SERVICES
27/02/2018,1584362,68703.43,HOUSING BENEFIT,299992,Finance,Housing Services,108,Transfer Payments,506,Housing Benefits,5048,Revenue,00.NON INFLUENCIBLE
20/02/2018,1580270,68446.66,HM REVENUE & CUSTOMS,361213,Capital,General Fund,N/A,Capital,Capital,Capital,Capital,Capital,00.PUBLIC SECTOR
20/02/2018,1580333,66228.01,HM REVENUE & CUSTOMS,361213,Capital,General Fund,N/A,Capital,Capital,Capital,Capital,Capital,00.PUBLIC SECTOR
16/02/2018,1576275,65561.60,NNT LIFT COMPANY (FUNDCO 1) LIMITED,376424,"Environment, Housing & Leisure",Cultural & Related Services,104,Third Party Payments,505,Private Contractors,5042,Revenue,02.BUILDING SERVICES
27/02/2018,1583217,64606.86,HOUSING BENEFIT,299992,Finance,Housing Services,108,Transfer Payments,506,Housing Benefits,5048,Revenue,00.NON INFLUENCIBLE
06/02/2018,1569937,61446.65,HOUSING BENEFIT,299992,Finance,Housing Services,108,Transfer Payments,506,Housing Benefits,5048,Revenue,00.NON INFLUENCIBLE
20/02/2018,1580353,58527.93,KIER NORTH TYNESIDE LIMITED,383278,Commissioning & Investment,Planning Services,110,Third Party Payments,505,Private Contractors,5042,Revenue,02.BUILDING SERVICES
23/02/2018,1581132,53755.42,STONHAM HOUSING ASSOCIATION,303595,"Health, Education, Care and Safeguarding",Housing Services,108,Third Party Payments,505,Voluntary Associations,5040,Revenue,22.SUPPORT SERVICES
20/02/2018,1580266,51584.32,HM REVENUE & CUSTOMS,361213,Capital,General Fund,N/A,Capital,Capital,Capital,Capital,Capital,00.PUBLIC SECTOR
23/02/2018,1581051,50651.96,KIER NORTH TYNESIDE LIMITED,383278,Capital,Capital,Capital,Third Party Payments,505,Private Contractors,5042,Capital,02.BUILDING SERVICES
23/02/2018,1581051,50651.96,KIER NORTH TYNESIDE LIMITED,383278,Capital,Capital,Capital,Third Party Payments,505,Private Contractors,5042,Capital,02.BUILDING SERVICES
23/02/2018,1581127,49375.00,DEPAUL TRUST (356060),356060,"Health, Education, Care and Safeguarding",Adult Social Care,101,Third Party Payments,505,Voluntary Associations,5040,Revenue,00.NON INFLUENCIBLE
07/02/2018,1573716,46537.00,BALFOUR BEATTY WORKPLACE LIMITED,389026,Commercial & Business Redesign,Central Services,102,Third Party Payments,505,Private Contractors,5042,Revenue,HR PROFESS
20/02/2018,1580416,45300.07,HM REVENUE & CUSTOMS,361213,Capital,General Fund,N/A,Capital,Capital,Capital,Capital,Capital,00.PUBLIC SECTOR
15/02/2018,1576060,45200.44,HOUSING 21,305162,"Health, Education, Care and Safeguarding",Adult Social Care,101,Capital,Capital,Capital,Capital,Revenue,22.HOMECARE
21/02/2018,1580737,44761.06,KIER NORTH TYNESIDE LIMITED,383278,Capital,Capital,Capital,Third Party Payments,505,Private Contractors,5042,Capital,02.BUILDING SERVICES
20/02/2018,1580422,44605.09,HM REVENUE & CUSTOMS,361213,Capital,General Fund,N/A,Capital,Capital,Capital,Capital,Capital,00.PUBLIC SECTOR
28/02/2018,1586890,43124.64,DH HOMECARE LTD,363748,"Health, Education, Care and Safeguarding",Adult Social Care,101,Third Party Payments,505,Private Contractors,5042,Revenue,22.HOMECARE
20/02/2018,1580336,43067.00,HM REVENUE & CUSTOMS,361213,Capital,General Fund,N/A,Capital,Capital,Capital,Capital,Capital,00.PUBLIC SECTOR
20/02/2018,1580333,41744.28,HM REVENUE & CUSTOMS,361213,Capital,General Fund,N/A,Capital,Capital,Capital,Capital,Capital,00.PUBLIC SECTOR
19/02/2018,1577404,41719.33,KIER NORTH TYNESIDE LIMITED,383278,Capital,Capital,Capital,Third Party Payments,505,Private Contractors,5042,Capital,02.BUILDING SERVICES
06/02/2018,1572130,41082.29,HOUSING BENEFIT,299992,Finance,Housing Services,108,Transfer Payments,506,Housing Benefits,5048,Revenue,00.NON INFLUENCIBLE
20/02/2018,1580418,40941.40,HM REVENUE & CUSTOMS,361213,Capital,General Fund,N/A,Capital,Capital,Capital,Capital,Capital,00.PUBLIC SECTOR
20/02/2018,1580331,40651.39,HM REVENUE & CUSTOMS,361213,Capital,General Fund,N/A,Capital,Capital,Capital,Capital,Capital,00.PUBLIC SECTOR
15/02/2018,1576069,40559.42,EVERLASTING CARE LTD,363743,"Health, Education, Care and Safeguarding",Adult Social Care,101,Third Party Payments,505,Private Contractors,5042,Revenue,22.HOMECARE
05/02/2018,1569130,40349.01,DH HOMECARE LTD,363748,"Health, Education, Care and Safeguarding",Adult Social Care,101,Third Party Payments,505,Private Contractors,5042,Revenue,22.HOMECARE
27/02/2018,1584352,40266.05,HOUSING BENEFIT,299992,Finance,Housing Services,108,Transfer Payments,506,Housing Benefits,5048,Revenue,00.NON INFLUENCIBLE
23/02/2018,1581067,39610.51,WARMZONES LTD,380101,Capital,Capital,Capital,Third Party Payments,505,Private Contractors,5042,Capital,REPAIR ADAPT
27/02/2018,1585128,39254.67,HOUSING BENEFIT,299992,Finance,Housing Services,108,Transfer Payments,506,Housing Benefits,5048,Revenue,00.NON INFLUENCIBLE
05/02/2018,1568918,36643.50,NNDR,299990,General Fund Financing,Holding A/C,N/A,Excluded from General Fund,N/A,Collection Fund,N/A,Revenue,00.NON INFLUENCIBLE
20/02/2018,1580420,36471.12,HM REVENUE & CUSTOMS,361213,Capital,General Fund,N/A,Capital,Capital,Capital,Capital,Capital,00.PUBLIC SECTOR
02/02/2018,1568738,35982.68,SITA UK LIMITED,359430,"Environment, Housing & Leisure",Environmental & Regulatory Services,105,Third Party Payments,505,Private Contractors,5042,Revenue,WASTE RECYCLE
23/02/2018,1581073,35000.00,BALFOUR BEATTY WORKPLACE LIMITED,389026,Capital,Capital,Capital,Third Party Payments,505,Private Contractors,5042,Capital,HR PROFESS
21/02/2018,1580766,33528.21,CAPITA SYMONDS LTD,376582,"Environment, Housing & Leisure",Environmental & Regulatory Services,105,Supplies and Services,504,"Printing, Stationery and General Office Expenses",5026,Revenue,02.BUILDING SERVICES
26/02/2018,1581450,32692.80,NORTHERN LIFE CARE LTD T/A UBU LTD,214737,"Health, Education, Care and Safeguarding",Adult Social Care,101,Third Party Payments,505,Private Contractors,5042,Revenue,22.RESIDENTIAL
28/02/2018,1586747,32687.50,THOMPSONS OF PRUDHOE,341021,Capital,Capital,Capital,Third Party Payments,505,Private Contractors,5042,Capital,WASTE TOXIC
12/02/2018,1575175,31771.32,KIER NORTH TYNESIDE LIMITED,383278,Capital,Capital,Capital,Supplies and Services,504,Miscellaneous Expenses,5034,Capital,02.BUILDING SERVICES
12/02/2018,1575175,31771.32,KIER NORTH TYNESIDE LIMITED,383278,Capital,Capital,Capital,Supplies and Services,504,Miscellaneous Expenses,5034,Capital,02.BUILDING SERVICES
06/02/2018,1570022,31480.04,HOUSING BENEFIT,299992,Finance,Housing Services,108,Transfer Payments,506,Housing Benefits,5048,Revenue,00.NON INFLUENCIBLE
28/02/2018,1586756,31004.38,KIER NORTH TYNESIDE LIMITED,383278,Capital,Capital,Capital,Supplies and Services,504,Miscellaneous Expenses,5034,Capital,02.BUILDING SERVICES
15/02/2018,1575985,30671.54,NHS PENSION SCHEME,389730,Capital,General Fund,N/A,Capital,Capital,Capital,Capital,Capital,00.NON INFLUENCIBLE
23/02/2018,1581128,30583.33,HARBOUR SUPPORT SERVICES,384545,"Health, Education, Care and Safeguarding",Adult Social Care,101,Third Party Payments,505,Voluntary Associations,5040,Revenue,22.SUPPORT SERVICES
19/02/2018,1577393,29807.15,SODEXO MOTIVATION SOLUTIONS UK LTD,387272,Central Items,Unallocated,N/A,Third Party Payments,505,Private Contractors,5042,Revenue,09.FINANCIAL SERVICES
07/02/2018,1573763,29777.39,HESLEY GROUP LIMITED,008273,"Health, Education, Care and Safeguarding",Children's & Education Services,103,Third Party Payments,505,Private Contractors,5042,Revenue,CHILDCARE
26/02/2018,1582264,29471.30,NEPRO LIMITED,392147,Capital,Capital,Capital,Third Party Payments,505,Private Contractors,5042,Capital,18.CONSULTANTS FEES
27/02/2018,1584437,29347.22,HOUSING BENEFIT,299992,Finance,Housing Services,108,Transfer Payments,506,Housing Benefits,5048,Revenue,00.NON INFLUENCIBLE
20/02/2018,1580422,29268.02,HM REVENUE & CUSTOMS,361213,Capital,General Fund,N/A,Capital,Capital,Capital,Capital,Capital,00.PUBLIC SECTOR
20/02/2018,1580385,28300.00,TEDCO LTD,329678,Business & Economic Development,Planning Services,110,Third Party Payments,505,Private Contractors,5042,Revenue,18.CONFERENCING
09/02/2018,1574267,28220.40,CAPITA BUSINESS SERVICES LTD,316395,Commissioning & Investment,Central Services,102,Third Party Payments,505,Private Contractors,5042,Revenue,15.SOFTWARE
01/02/2018,1568694,27738.25,BALFOUR BEATTY WORKPLACE LIMITED,389026,Commissioning & Investment,Central Services,102,Third Party Payments,505,Private Contractors,5042,Revenue,HR PROFESS
28/02/2018,1586826,27738.25,BALFOUR BEATTY WORKPLACE LIMITED,389026,Commissioning & Investment,Central Services,102,Third Party Payments,505,Private Contractors,5042,Revenue,HR PROFESS
09/02/2018,1574218,27588.53,OIL NRG LIMITED,393975,"Environment, Housing & Leisure",Unallocated,N/A,Transport,503,Direct Transport Costs,5016,Revenue,28.FUEL
20/02/2018,1580416,27566.38,HM REVENUE & CUSTOMS,361213,Capital,General Fund,N/A,Capital,Capital,Capital,Capital,Capital,00.PUBLIC SECTOR
16/02/2018,1576252,27310.12,NORTH TYNESIDE HOMECARE ASSOCIATES LTD,357929,"Health, Education, Care and Safeguarding",Adult Social Care,101,Third Party Payments,505,Private Contractors,5042,Revenue,22.HOMECARE
27/02/2018,1586151,27000.00,NEWCASTLE CITY COUNCIL,014331,Capital,Capital,Capital,Third Party Payments,505,Private Contractors,5042,Capital,00.PUBLIC SECTOR
02/02/2018,1568738,26780.80,SITA UK LIMITED,359430,"Environment, Housing & Leisure",Environmental & Regulatory Services,105,Third Party Payments,505,Private Contractors,5042,Revenue,WASTE RECYCLE
21/02/2018,1580752,26693.82,SITA UK LIMITED,359430,"Environment, Housing & Leisure",Environmental & Regulatory Services,105,Third Party Payments,505,Private Contractors,5042,Revenue,WASTE RECYCLE
20/02/2018,1580274,26569.23,HM REVENUE & CUSTOMS,361213,Capital,General Fund,N/A,Capital,Capital,Capital,Capital,Capital,00.PUBLIC SECTOR
28/02/2018,1586813,26339.00,CAPITA SYMONDS LTD,376582,"Environment, Housing & Leisure",Highways & Transport Services,107,Third Party Payments,505,Private Contractors,5042,Revenue,02.BUILDING SERVICES
28/02/2018,1586756,25971.56,KIER NORTH TYNESIDE LIMITED,383278,Capital,Capital,Capital,Supplies and Services,504,Miscellaneous Expenses,5034,Capital,02.BUILDING SERVICES
27/02/2018,1585275,25555.34,HOUSING BENEFIT,299992,Finance,Housing Services,108,Transfer Payments,506,Housing Benefits,5048,Revenue,00.NON INFLUENCIBLE
06/02/2018,1570340,25416.88,HOUSING BENEFIT,299992,Finance,Housing Services,108,Transfer Payments,506,Housing Benefits,5048,Revenue,00.NON INFLUENCIBLE
20/02/2018,1580418,25313.48,HM REVENUE & CUSTOMS,361213,Capital,General Fund,N/A,Capital,Capital,Capital,Capital,Capital,00.PUBLIC SECTOR
27/02/2018,1583431,25197.85,HOUSING BENEFIT,299992,Finance,Housing Services,108,Transfer Payments,506,Housing Benefits,5048,Revenue,00.NON INFLUENCIBLE
02/02/2018,1568745,25104.00,LEEDS CITY COUNCIL,012087,"Health, Education, Care and Safeguarding",Children's & Education Services,103,Third Party Payments,505,Private Contractors,5042,Revenue,00.PUBLIC SECTOR
20/02/2018,1580331,24957.47,HM REVENUE & CUSTOMS,361213,Capital,General Fund,N/A,Capital,Capital,Capital,Capital,Capital,00.PUBLIC SECTOR
27/02/2018,1586144,24924.00,LEEDS CITY COUNCIL,012087,"Health, Education, Care and Safeguarding",Children's & Education Services,103,Third Party Payments,505,Private Contractors,5042,Revenue,00.PUBLIC SECTOR
21/02/2018,1580592,24879.00,ETHITEC,396087,"Health, Education, Care and Safeguarding",Adult Social Care,101,Supplies and Services,504,Equipment,5023,Revenue,15.SOFTWARE
06/02/2018,1570231,24417.24,HOUSING BENEFIT,299992,Finance,Housing Services,108,Transfer Payments,506,Housing Benefits,5048,Revenue,00.NON INFLUENCIBLE
01/02/2018,1568701,24402.47,CAPITA SYMONDS LTD,376582,Capital,Capital,Capital,Third Party Payments,505,Private Contractors,5042,Capital,02.BUILDING SERVICES
05/02/2018,1569110,24195.19,SPRINGFIELD HOMECARE SERVICES LTD T/A POSITIVE LIFE CHOICES,392695,"Health, Education, Care and Safeguarding",Adult Social Care,101,Third Party Payments,505,Private Contractors,5042,Revenue,22.HOMECARE
05/02/2018,1569144,24100.26,AGE UK NORTH TYNESIDE,334565,"Health, Education, Care and Safeguarding",Adult Social Care,101,Third Party Payments,505,Private Contractors,5042,Revenue,22.DAY CARE SERVICES
20/02/2018,1580269,24054.00,HM REVENUE & CUSTOMS,361213,Capital,General Fund,N/A,Capital,Capital,Capital,Capital,Capital,00.PUBLIC SECTOR
15/02/2018,1576060,23753.90,HOUSING 21,305162,"Health, Education, Care and Safeguarding",Adult Social Care,101,Capital,Capital,Capital,Capital,Revenue,22.HOMECARE
20/02/2018,1580420,23461.84,HM REVENUE & CUSTOMS,361213,Capital,General Fund,N/A,Capital,Capital,Capital,Capital,Capital,00.PUBLIC SECTOR
06/02/2018,1572119,23410.92,HOUSING BENEFIT,299992,Finance,Housing Services,108,Transfer Payments,506,Housing Benefits,5048,Revenue,00.NON INFLUENCIBLE
21/02/2018,1580752,23318.09,SITA UK LIMITED,359430,"Environment, Housing & Leisure",Environmental & Regulatory Services,105,Third Party Payments,505,Private Contractors,5042,Revenue,WASTE RECYCLE
23/02/2018,1581116,22984.08,Redacted Personal Data,396239,"Health, Education, Care and Safeguarding",Children's & Education Services,103,Third Party Payments,505,Private Contractors,5042,Revenue,SOCIAL CHILD CENTRE
27/02/2018,1586151,22700.00,NEWCASTLE CITY COUNCIL,014331,Capital,Capital,Capital,Third Party Payments,505,Private Contractors,5042,Capital,00.PUBLIC SECTOR
05/02/2018,1569144,22376.50,AGE UK NORTH TYNESIDE,334565,"Health, Education, Care and Safeguarding",Adult Social Care,101,Capital,Capital,Capital,Capital,Revenue,22.DAY CARE SERVICES
01/02/2018,1568711,22163.96,AGE UK NORTH TYNESIDE,334565,"Health, Education, Care and Safeguarding",Adult Social Care,101,Capital,Capital,Capital,Capital,Revenue,22.DAY CARE SERVICES
19/02/2018,1577384,22066.52,HOMECARE PLUS LIMITED,392990,"Health, Education, Care and Safeguarding",Adult Social Care,101,Third Party Payments,505,Private Contractors,5042,Revenue,22.SUPPORT SERVICES
09/02/2018,1574189,21942.58,WITHERSLACK GROUP LTD,396097,"Health, Education, Care and Safeguarding",Children's & Education Services,103,Third Party Payments,505,Private Contractors,5042,Revenue,CHILDCARE
12/02/2018,1575106,21786.05,ST ANNE'S COMMUNITY SERVICES,366247,"Health, Education, Care and Safeguarding",Adult Social Care,101,Third Party Payments,505,Private Contractors,5042,Revenue,22.DAY CARE SERVICES
27/02/2018,1586153,21445.71,KIER NORTH TYNESIDE LIMITED,383278,Capital,Capital,Capital,Third Party Payments,505,Private Contractors,5042,Capital,02.BUILDING SERVICES
01/02/2018,1568711,21204.27,AGE UK NORTH TYNESIDE,334565,"Health, Education, Care and Safeguarding",Adult Social Care,101,Capital,Capital,Capital,Capital,Revenue,22.DAY CARE SERVICES
09/02/2018,1574091,20832.00,ALLIED HEALTHCARE GROUP LTD,347472,"Health, Education, Care and Safeguarding",Public Health,112,Third Party Payments,505,Private Contractors,5042,Revenue,22.HOMECARE
20/02/2018,1580267,20633.91,HM REVENUE & CUSTOMS,361213,Capital,General Fund,N/A,Capital,Capital,Capital,Capital,Capital,00.PUBLIC SECTOR
01/02/2018,1568718,20616.50,KIER NORTH TYNESIDE LIMITED,383278,Capital,Capital,Capital,Third Party Payments,505,Private Contractors,5042,Capital,02.BUILDING SERVICES
01/02/2018,1568711,20422.89,AGE UK NORTH TYNESIDE,334565,"Health, Education, Care and Safeguarding",Adult Social Care,101,Capital,Capital,Capital,Capital,Revenue,22.DAY CARE SERVICES
01/02/2018,1568711,20268.90,AGE UK NORTH TYNESIDE,334565,"Health, Education, Care and Safeguarding",Adult Social Care,101,Capital,Capital,Capital,Capital,Revenue,22.DAY CARE SERVICES
07/02/2018,1573716,20000.00,BALFOUR BEATTY WORKPLACE LIMITED,389026,Commercial & Business Redesign,Central Services,102,Third Party Payments,505,Private Contractors,5042,Revenue,HR PROFESS
05/02/2018,1569075,19998.86,THE PLAY PRACTICE (SCOTLAND) LTD,369999,"Environment, Housing & Leisure",Cultural & Related Services,104,Supplies and Services,504,Equipment,5023,Revenue,PLAYGROUND
28/02/2018,1586808,19923.27,UNISON 04200,030036,Capital,General Fund,N/A,Capital,Capital,Capital,Capital,Capital,00.NON INFLUENCIBLE
05/02/2018,1569138,19680.21,OIL NRG LIMITED,393975,"Environment, Housing & Leisure",Unallocated,N/A,Transport,503,Direct Transport Costs,5016,Revenue,28.FUEL
02/02/2018,1568738,19522.73,SITA UK LIMITED,359430,"Environment, Housing & Leisure",Environmental & Regulatory Services,105,Third Party Payments,505,Private Contractors,5042,Revenue,WASTE RECYCLE
21/02/2018,1580752,19522.73,SITA UK LIMITED,359430,"Environment, Housing & Leisure",Environmental & Regulatory Services,105,Third Party Payments,505,Private Contractors,5042,Revenue,WASTE RECYCLE
01/02/2018,1568701,19500.00,CAPITA SYMONDS LTD,376582,Capital,Capital,Capital,Third Party Payments,505,Private Contractors,5042,Capital,02.BUILDING SERVICES
20/02/2018,1580332,18940.68,HM REVENUE & CUSTOMS,361213,Capital,General Fund,N/A,Capital,Capital,Capital,Capital,Capital,00.PUBLIC SECTOR
07/02/2018,1573751,18910.28,NNT LIFT COMPANY (FUNDCO 1) LIMITED,376424,"Environment, Housing & Leisure",Cultural & Related Services,104,Third Party Payments,505,Private Contractors,5042,Revenue,02.BUILDING SERVICES
16/02/2018,1576290,18910.28,NNT LIFT COMPANY (FUNDCO 1) LIMITED,376424,"Environment, Housing & Leisure",Cultural & Related Services,104,Third Party Payments,505,Private Contractors,5042,Revenue,02.BUILDING SERVICES
15/02/2018,1575897,18299.22,HOUSING BENEFIT,299992,Finance,Housing Services,108,Transfer Payments,506,Housing Benefits,5048,Revenue,00.NON INFLUENCIBLE
22/02/2018,1580998,18050.00,Redacted Personal Data,396378,"Health, Education, Care and Safeguarding",Adult Social Care,101,Third Party Payments,505,Other Establishments,5041,Revenue,NON INDIVIDUAL
01/02/2018,1568711,18018.61,AGE UK NORTH TYNESIDE,334565,"Health, Education, Care and Safeguarding",Adult Social Care,101,Capital,Capital,Capital,Capital,Revenue,22.DAY CARE SERVICES
19/02/2018,1577157,17585.20,NNDR,299990,General Fund Financing,Holding A/C,N/A,Excluded from General Fund,N/A,Collection Fund,N/A,Revenue,00.NON INFLUENCIBLE
09/02/2018,1574205,17492.86,KEYS GROUP,393286,"Health, Education, Care and Safeguarding",Children's & Education Services,103,Third Party Payments,505,Private Contractors,5042,Revenue,22.SUPPORT SERVICES
12/02/2018,1575227,17492.86,KEYS GROUP,393286,"Health, Education, Care and Safeguarding",Children's & Education Services,103,Third Party Payments,505,Private Contractors,5042,Revenue,22.SUPPORT SERVICES
12/02/2018,1574450,17183.71,NNDR,299990,General Fund Financing,Holding A/C,N/A,Excluded from General Fund,N/A,Collection Fund,N/A,Revenue,00.NON INFLUENCIBLE
15/02/2018,1576104,16950.00,NEWCASTLE UNIVERSITY,031266,"Health, Education, Care and Safeguarding",Children's & Education Services,103,Third Party Payments,505,Other Establishments,5041,Revenue,00.EXT SCHOOLS
21/02/2018,1580737,16623.06,KIER NORTH TYNESIDE LIMITED,383278,"Health, Education, Care and Safeguarding",Adult Social Care,101,Third Party Payments,505,Private Contractors,5042,Revenue,02.BUILDING SERVICES
21/02/2018,1580766,16569.50,CAPITA SYMONDS LTD,376582,Capital,Capital,Capital,Third Party Payments,505,Private Contractors,5042,Capital,02.BUILDING SERVICES
06/02/2018,1573594,15650.00,NEWCASTLE CITY COUNCIL,014331,Capital,Capital,Capital,Third Party Payments,505,Private Contractors,5042,Capital,00.PUBLIC SECTOR
20/02/2018,1580417,15630.96,HM REVENUE & CUSTOMS,361213,Capital,General Fund,N/A,Capital,Capital,Capital,Capital,Capital,00.PUBLIC SECTOR
09/02/2018,1574201,15500.00,YOUNG FOUNDATIONS LTD,358691,"Health, Education, Care and Safeguarding",Children's & Education Services,103,Third Party Payments,505,Private Contractors,5042,Revenue,22.SUPPORT SERVICES
26/02/2018,1581605,15429.80,CREATIVE SUPPORT LTD,359340,"Health, Education, Care and Safeguarding",Adult Social Care,101,Third Party Payments,505,Private Contractors,5042,Revenue,22.HOMECARE
27/02/2018,1582313,15277.93,HOUSING BENEFIT,299992,Finance,Housing Services,108,Transfer Payments,506,Housing Benefits,5048,Revenue,00.NON INFLUENCIBLE
09/02/2018,1574091,15190.00,ALLIED HEALTHCARE GROUP LTD,347472,"Health, Education, Care and Safeguarding",Public Health,112,Third Party Payments,505,Private Contractors,5042,Revenue,22.HOMECARE
06/02/2018,1571931,14985.37,HOUSING BENEFIT,299992,Finance,Housing Services,108,Transfer Payments,506,Housing Benefits,5048,Revenue,00.NON INFLUENCIBLE
07/02/2018,1573781,14755.00,NORTH EAST AUTISM SOCIETY,329004,Commissioning & Investment,Children's & Education Services,103,Third Party Payments,505,Private Contractors,5042,Revenue,22.SUPPORT SERVICES
21/02/2018,1580747,14674.00,NETWORK TICKETING LTD,248135,Chief Executive Office,Holding A/C,N/A,Supplies and Services,504,Equipment,5023,Revenue,18.TRAVEL
12/02/2018,1575191,14609.95,SODEXO MOTIVATION SOLUTIONS UK LTD,387272,Central Items,Unallocated,N/A,Third Party Payments,505,Private Contractors,5042,Revenue,09.FINANCIAL SERVICES
27/02/2018,1585161,14350.61,HOUSING BENEFIT,299992,Finance,Housing Services,108,Transfer Payments,506,Housing Benefits,5048,Revenue,00.NON INFLUENCIBLE
06/02/2018,1571800,14259.00,HOUSING BENEFIT,299992,Finance,Housing Services,108,Transfer Payments,506,Housing Benefits,5048,Revenue,00.NON INFLUENCIBLE
14/02/2018,1575823,14193.37,MARSH LTD,339167,Housing Revenue Account,Housing Revenue Account,N/A,Third Party Payments,505,Private Contractors,5042,Revenue,FINANCE INSURANCE
09/02/2018,1574270,14160.36,ST CUTHBERTS CARE,248775,"Health, Education, Care and Safeguarding",Children's & Education Services,103,Third Party Payments,505,Voluntary Associations,5040,Revenue,22.RESIDENTIAL
06/02/2018,1573551,14000.00,YOUNG FOUNDATIONS LTD,358691,"Health, Education, Care and Safeguarding",Children's & Education Services,103,Third Party Payments,505,Private Contractors,5042,Revenue,22.SUPPORT SERVICES
09/02/2018,1574135,14000.00,FOREVER CARE,391221,"Health, Education, Care and Safeguarding",Children's & Education Services,103,Third Party Payments,505,Private Contractors,5042,Revenue,22.SUPPORT SERVICES
27/02/2018,1584252,13992.84,HOUSING BENEFIT,299992,Finance,Housing Services,108,Transfer Payments,506,Housing Benefits,5048,Revenue,00.NON INFLUENCIBLE
21/02/2018,1580752,13799.25,SITA UK LIMITED,359430,"Environment, Housing & Leisure",Environmental & Regulatory Services,105,Third Party Payments,505,Private Contractors,5042,Revenue,WASTE RECYCLE
28/02/2018,1586794,13750.22,NHC NHS FOUNDATION TRUST,317869,Law & Governance,Central Services,102,Third Party Payments,505,Health Authorities,5038,Revenue,PUB HEALTH.PUBLIC HEALTH
21/02/2018,1580612,13628.21,MR DAVID KNIGHT,393175,"Health, Education, Care and Safeguarding",Adult Social Care,101,Income,509,Customer and Client Receipts,5064,Revenue,NON INDIVIDUAL
06/02/2018,1573587,13576.00,MAZARS LLP,389028,Finance,Central Services,102,Third Party Payments,505,Private Contractors,5042,Revenue,FIN AUDIT
14/02/2018,1575831,13556.00,CAPITA SYMONDS LTD,376582,"Environment, Housing & Leisure",Planning Services,110,Premises-Related Expenditure,502,"Repairs, alterations and maintenance of buildings",5005,Revenue,02.BUILDING SERVICES
20/02/2018,1580423,13487.65,HM REVENUE & CUSTOMS,361213,Capital,General Fund,N/A,Capital,Capital,Capital,Capital,Capital,00.PUBLIC SECTOR
01/02/2018,1568702,13468.14,CLEVELAND POTASH LIMITED,388317,"Environment, Housing & Leisure",Highways & Transport Services,107,Supplies and Services,504,Miscellaneous Expenses,5034,Revenue,ROCK SALT
20/02/2018,1580274,13446.00,HM REVENUE & CUSTOMS,361213,Capital,General Fund,N/A,Capital,Capital,Capital,Capital,Capital,00.PUBLIC SECTOR
20/02/2018,1580334,13430.18,HM REVENUE & CUSTOMS,361213,Capital,General Fund,N/A,Capital,Capital,Capital,Capital,Capital,00.PUBLIC SECTOR
27/02/2018,1582462,13417.84,HOUSING BENEFIT,299992,Finance,Housing Services,108,Transfer Payments,506,Housing Benefits,5048,Revenue,00.NON INFLUENCIBLE
01/02/2018,1568701,13292.71,CAPITA SYMONDS LTD,376582,Capital,Capital,Capital,Third Party Payments,505,Private Contractors,5042,Capital,02.BUILDING SERVICES
09/02/2018,1574270,13263.57,ST CUTHBERTS CARE,248775,"Health, Education, Care and Safeguarding",Children's & Education Services,103,Third Party Payments,505,Private Contractors,5042,Revenue,22.RESIDENTIAL
27/02/2018,1583361,13010.75,HOUSING BENEFIT,299992,Finance,Housing Services,108,Transfer Payments,506,Housing Benefits,5048,Revenue,00.NON INFLUENCIBLE
27/02/2018,1583294,13009.24,HOUSING BENEFIT,299992,Finance,Housing Services,108,Transfer Payments,506,Housing Benefits,5048,Revenue,00.NON INFLUENCIBLE
06/02/2018,1570160,12811.48,HOUSING BENEFIT,299992,Finance,Housing Services,108,Transfer Payments,506,Housing Benefits,5048,Revenue,00.NON INFLUENCIBLE
23/02/2018,1581039,12800.00,RADICAL SERVICES LTD,316763,"Health, Education, Care and Safeguarding",Children's & Education Services,103,Third Party Payments,505,Private Contractors,5042,Revenue,22.RESIDENTIAL
06/02/2018,1572011,12699.44,HOUSING BENEFIT,299992,Finance,Housing Services,108,Transfer Payments,506,Housing Benefits,5048,Revenue,00.NON INFLUENCIBLE
12/02/2018,1575153,12695.77,ROSEBERRY CARE CENTRES,387542,"Health, Education, Care and Safeguarding",Adult Social Care,101,Third Party Payments,505,Other Establishments,5041,Revenue,22.RESIDENTIAL
22/02/2018,1580854,12688.88,PEARTREE PROJECTS LTD,229287,"Health, Education, Care and Safeguarding",Children's & Education Services,103,Third Party Payments,505,Private Contractors,5042,Revenue,22.RESIDENTIAL
01/02/2018,1568694,12598.54,BALFOUR BEATTY WORKPLACE LIMITED,389026,Finance,Central Services,102,Third Party Payments,505,Private Contractors,5042,Revenue,HR PROFESS
28/02/2018,1586826,12598.54,BALFOUR BEATTY WORKPLACE LIMITED,389026,Finance,Central Services,102,Third Party Payments,505,Private Contractors,5042,Revenue,HR PROFESS
01/02/2018,1568707,12591.83,CAREVISIONS AT HOME LTD,384705,"Health, Education, Care and Safeguarding",Adult Social Care,101,Third Party Payments,505,Private Contractors,5042,Revenue,22.HOMECARE
07/02/2018,1573768,12494.84,PERCY HEDLEY FOUNDATION,252934,Commissioning & Investment,Children's & Education Services,103,Third Party Payments,505,Private Contractors,5042,Revenue,22.DAY CARE SERVICES
14/02/2018,1575831,12483.89,CAPITA SYMONDS LTD,376582,Capital,Capital,Capital,Third Party Payments,505,Private Contractors,5042,Capital,02.BUILDING SERVICES
01/02/2018,1568701,12334.32,CAPITA SYMONDS LTD,376582,Capital,Capital,Capital,Third Party Payments,505,Private Contractors,5042,Capital,02.BUILDING SERVICES
06/02/2018,1572036,12312.32,HOUSING BENEFIT,299992,Finance,Housing Services,108,Transfer Payments,506,Housing Benefits,5048,Revenue,00.NON INFLUENCIBLE
19/02/2018,1577404,12288.15,KIER NORTH TYNESIDE LIMITED,383278,Capital,Capital,Capital,Third Party Payments,505,Private Contractors,5042,Capital,02.BUILDING SERVICES
27/02/2018,1584355,12262.20,HOUSING BENEFIT,299992,Finance,Housing Services,108,Transfer Payments,506,Housing Benefits,5048,Revenue,00.NON INFLUENCIBLE
06/02/2018,1572133,12176.12,HOUSING BENEFIT,299992,Finance,Housing Services,108,Transfer Payments,506,Housing Benefits,5048,Revenue,00.NON INFLUENCIBLE
09/02/2018,1574222,12164.09,LINCOLN HEALTHCARE GROUP LTD,393778,"Health, Education, Care and Safeguarding",Public Health,112,Third Party Payments,505,Private Contractors,5042,Revenue,22.HOMECARE
06/02/2018,1570126,12163.36,HOUSING BENEFIT,299992,Finance,Housing Services,108,Transfer Payments,506,Housing Benefits,5048,Revenue,00.NON INFLUENCIBLE
28/02/2018,1586874,11995.00,FRONTLINE DATA LIMITED,393405,Commissioning & Investment,Children's & Education Services,103,Third Party Payments,505,Private Contractors,5042,Revenue,ICT ONLINE
05/02/2018,1569074,11376.22,KIER NORTH TYNESIDE LIMITED,383278,Capital,Capital,Capital,Third Party Payments,505,Private Contractors,5042,Capital,02.BUILDING SERVICES
05/02/2018,1569144,11212.27,AGE UK NORTH TYNESIDE,334565,"Health, Education, Care and Safeguarding",Adult Social Care,101,Third Party Payments,505,Private Contractors,5042,Revenue,22.DAY CARE SERVICES
07/02/2018,1573697,11168.00,ISS FACILITY SERVICES - LANDSCAPING,386557,"Environment, Housing & Leisure",Environmental & Regulatory Services,105,Premises-Related Expenditure,502,"Repairs, alterations and maintenance of buildings",5005,Revenue,12.LANDSCAPING
28/02/2018,1586800,11160.00,NAVMAN WIRELESS UK LIMITED,378101,"Environment, Housing & Leisure",Unallocated,N/A,Supplies and Services,504,Equipment,5023,Revenue,28.VEHICLE PARTS
20/02/2018,1580276,11122.06,HM REVENUE & CUSTOMS,361213,Capital,General Fund,N/A,Capital,Capital,Capital,Capital,Capital,00.PUBLIC SECTOR
20/02/2018,1580332,11007.06,HM REVENUE & CUSTOMS,361213,Capital,General Fund,N/A,Capital,Capital,Capital,Capital,Capital,00.PUBLIC SECTOR
06/02/2018,1571849,10834.19,HOUSING BENEFIT,299992,Finance,Housing Services,108,Transfer Payments,506,Housing Benefits,5048,Revenue,00.NON INFLUENCIBLE
27/02/2018,1582392,10812.48,HOUSING BENEFIT,299992,Finance,Housing Services,108,Transfer Payments,506,Housing Benefits,5048,Revenue,00.NON INFLUENCIBLE
20/02/2018,1580419,10786.42,HM REVENUE & CUSTOMS,361213,Capital,General Fund,N/A,Capital,Capital,Capital,Capital,Capital,00.PUBLIC SECTOR
01/02/2018,1568702,10628.10,CLEVELAND POTASH LIMITED,388317,"Environment, Housing & Leisure",Highways & Transport Services,107,Supplies and Services,504,Miscellaneous Expenses,5034,Revenue,ROCK SALT
07/02/2018,1573697,10617.61,ISS FACILITY SERVICES - LANDSCAPING,386557,"Environment, Housing & Leisure",Environmental & Regulatory Services,105,Third Party Payments,505,Private Contractors,5042,Revenue,12.LANDSCAPING
26/02/2018,1581605,10601.51,CREATIVE SUPPORT LTD,359340,"Health, Education, Care and Safeguarding",Adult Social Care,101,Third Party Payments,505,Private Contractors,5042,Revenue,22.HOMECARE
20/02/2018,1580277,10574.03,HM REVENUE & CUSTOMS,361213,Capital,General Fund,N/A,Capital,Capital,Capital,Capital,Capital,00.PUBLIC SECTOR
09/02/2018,1574084,10549.42,BURNT TREE GROUP LTD,348086,"Environment, Housing & Leisure",Unallocated,N/A,Transport,503,Contract Hire and Operating Leases,5018,Revenue,28.HIRE AND LEASE
07/02/2018,1573673,10542.87,RIVERSIDE PRIMARY SCHOOL,338722,Commissioning & Investment,Children's & Education Services,103,Third Party Payments,505,Independent Units within the Council,5035,Revenue,00.NT SCHOOLS
09/02/2018,1574091,10230.00,ALLIED HEALTHCARE GROUP LTD,347472,"Health, Education, Care and Safeguarding",Public Health,112,Third Party Payments,505,Private Contractors,5042,Revenue,22.HOMECARE
21/02/2018,1580606,10192.00,JB SKILLCARE LTD,338442,"Health, Education, Care and Safeguarding",Public Health,112,Third Party Payments,505,Private Contractors,5042,Revenue,18.TRAVEL
28/02/2018,1586776,10174.00,TYNE & WEAR PENSION FUND,364141,Central Items,N/A,N/A,Employees,501,Indirect Employee Expenses,5002,Revenue,00.PUBLIC SECTOR
05/02/2018,1569334,10123.08,Redacted Personal Data,395540,"Health, Education, Care and Safeguarding",Adult Social Care,101,Third Party Payments,505,Other Establishments,5041,Revenue,NON INDIVIDUAL
27/02/2018,1584287,10040.55,HOUSING BENEFIT,299992,Finance,Housing Services,108,Transfer Payments,506,Housing Benefits,5048,Revenue,00.NON INFLUENCIBLE
05/02/2018,1569174,10000.00,ST STEPHENS PRIMARY SCHOOL,259100,Commissioning & Investment,Children's & Education Services,103,Third Party Payments,505,Independent Units within the Council,5035,Revenue,00.NT SCHOOLS
07/02/2018,1573682,10000.00,ST BARTHOLOMEWS PRIMARY SCHOOL,276838,Commissioning & Investment,Children's & Education Services,103,Third Party Payments,505,Independent Units within the Council,5035,Revenue,00.NT SCHOOLS
27/02/2018,1586246,10000.00,GEORGE STEPHENSON HIGH SCHOOL,007493,"Health, Education, Care and Safeguarding",Children's & Education Services,103,Third Party Payments,505,Independent Units within the Council,5035,Revenue,00.NT SCHOOLS
27/02/2018,1586275,10000.00,MONKSEATON MIDDLE SCHOOL,253420,Capital,Capital,Capital,Capital Expenditure,Capital,Capital Expenditure,Capital,Capital,00.NT SCHOOLS
20/02/2018,1580265,9999.00,HM REVENUE & CUSTOMS,361213,Capital,General Fund,N/A,Capital,Capital,Capital,Capital,Capital,00.PUBLIC SECTOR
06/02/2018,1572096,9900.96,HOUSING BENEFIT,299992,Finance,Housing Services,108,Transfer Payments,506,Housing Benefits,5048,Revenue,00.NON INFLUENCIBLE
27/02/2018,1584382,9900.96,HOUSING BENEFIT,299992,Finance,Housing Services,108,Transfer Payments,506,Housing Benefits,5048,Revenue,00.NON INFLUENCIBLE
20/02/2018,1580421,9882.64,HM REVENUE & CUSTOMS,361213,Capital,General Fund,N/A,Capital,Capital,Capital,Capital,Capital,00.PUBLIC SECTOR
22/02/2018,1580857,9855.80,HIGHBRIDGE BUSINESS PARK LIMITED,372819,Chief Executive Office,Holding A/C,N/A,Supplies and Services,504,Equipment,5023,Revenue,18.TRAVEL
28/02/2018,1586868,9587.50,NITELITES LIMITED,014762,"Environment, Housing & Leisure",Cultural & Related Services,104,Third Party Payments,505,Private Contractors,5042,Revenue,17.OFFICE EQUIPMENT
05/02/2018,1568938,9573.04,NNDR,299990,General Fund Financing,Holding A/C,N/A,Excluded from General Fund,N/A,Collection Fund,N/A,Revenue,00.NON INFLUENCIBLE
06/02/2018,1569902,9567.36,HOUSING BENEFIT,299992,Finance,Housing Services,108,Transfer Payments,506,Housing Benefits,5048,Revenue,00.NON INFLUENCIBLE
27/02/2018,1582341,9567.36,HOUSING BENEFIT,299992,Finance,Housing Services,108,Transfer Payments,506,Housing Benefits,5048,Revenue,00.NON INFLUENCIBLE
14/02/2018,1575653,9456.94,PRUDENTIAL,336770,Capital,General Fund,N/A,Capital,Capital,Capital,Capital,Capital,00.NON INFLUENCIBLE
09/02/2018,1574183,9408.00,CARE OUTCOMES UK LTD,390953,"Health, Education, Care and Safeguarding",Adult Social Care,101,Third Party Payments,505,Other Establishments,5041,Revenue,22.HOMECARE
15/02/2018,1576058,9408.00,CARE OUTCOMES UK LTD,390953,"Health, Education, Care and Safeguarding",Adult Social Care,101,Third Party Payments,505,Other Establishments,5041,Revenue,22.HOMECARE
01/02/2018,1568706,9408.00,RADICAL SERVICES LTD,316763,"Health, Education, Care and Safeguarding",Children's & Education Services,103,Third Party Payments,505,Private Contractors,5042,Revenue,22.RESIDENTIAL
20/02/2018,1580403,9363.06,CLEVELAND POTASH LIMITED,388317,"Environment, Housing & Leisure",Highways & Transport Services,107,Supplies and Services,504,Miscellaneous Expenses,5034,Revenue,ROCK SALT
02/02/2018,1568775,9313.00,BALFOUR BEATTY WORKPLACE LIMITED,389026,Finance,Central Services,102,Supplies and Services,504,Grants and Subscriptions,5031,Revenue,HR PROFESS
06/02/2018,1571900,9302.71,HOUSING BENEFIT,299992,Finance,Housing Services,108,Transfer Payments,506,Housing Benefits,5048,Revenue,00.NON INFLUENCIBLE
14/02/2018,1575716,9300.00,NORTHUMBRIA YOUTH ACTION LTD,353408,"Health, Education, Care and Safeguarding",Children's & Education Services,103,Third Party Payments,505,Private Contractors,5042,Revenue,00.NON INFLUENCIBLE
05/02/2018,1568939,9292.38,NNDR,299990,General Fund Financing,Holding A/C,N/A,Excluded from General Fund,N/A,Collection Fund,N/A,Revenue,00.NON INFLUENCIBLE
28/02/2018,1586794,9260.35,NHC NHS FOUNDATION TRUST,317869,Law & Governance,Central Services,102,Third Party Payments,505,Health Authorities,5038,Revenue,PUB HEALTH.PUBLIC HEALTH
05/02/2018,1569147,9189.56,ORANGE PCS LTD,345889,Commercial & Business Redesign,Central Services,102,Supplies and Services,504,Communications & Computing,5028,Revenue,25.MOBILE TELEPHONES
23/02/2018,1581041,9180.00,EVAC+CHAIR INTERNATIONAL LIMITED,323869,Housing Revenue Account,Housing Services,108,Third Party Payments,505,Private Contractors,5042,Revenue,10.OFFICE
19/02/2018,1576688,9166.30,PRESTWICK CARE LTD,387214,"Health, Education, Care and Safeguarding",Adult Social Care,101,Third Party Payments,505,Other Establishments,5041,Revenue,22.RESIDENTIAL
26/02/2018,1581531,9138.95,Redacted Personal Data,396115,"Health, Education, Care and Safeguarding",Adult Social Care,101,Third Party Payments,505,Other Establishments,5041,Revenue,00.NON INFLUENCIBLE
07/02/2018,1573722,9028.00,RESCOM SYSTEMS LTD,390833,"Health, Education, Care and Safeguarding",Adult Social Care,101,Supplies and Services,504,Communications & Computing,5028,Revenue,14.MAINT OF COMPUTER EQU
09/02/2018,1574185,8904.00,SPRINGFIELD HOMECARE SERVICES LTD T/A POSITIVE LIFE CHOICES,392695,"Health, Education, Care and Safeguarding",Public Health,112,Third Party Payments,505,Private Contractors,5042,Revenue,22.HOMECARE
26/02/2018,1581605,8883.28,CREATIVE SUPPORT LTD,359340,"Health, Education, Care and Safeguarding",Adult Social Care,101,Third Party Payments,505,Private Contractors,5042,Revenue,22.HOMECARE
08/02/2018,1574066,8808.61,CAPITA SYMONDS LTD,376582,Capital,Capital,Capital,Third Party Payments,505,Private Contractors,5042,Capital,02.BUILDING SERVICES
16/02/2018,1576316,8800.00,W&M WHOLESALE LIMITED T/A START FITNESS (,348470,"Environment, Housing & Leisure",Cultural & Related Services,104,Third Party Payments,505,Private Contractors,5042,Revenue,CLOTH ADULT
09/02/2018,1574099,8751.14,CAPITA SYMONDS LTD,376582,Capital,Capital,Capital,Third Party Payments,505,Private Contractors,5042,Capital,02.BUILDING SERVICES
20/02/2018,1580267,8749.05,HM REVENUE & CUSTOMS,361213,Capital,General Fund,N/A,Capital,Capital,Capital,Capital,Capital,00.PUBLIC SECTOR
27/02/2018,1584383,8377.81,HOUSING BENEFIT,299992,Finance,Housing Services,108,Transfer Payments,506,Housing Benefits,5048,Revenue,00.NON INFLUENCIBLE
19/02/2018,1577404,8357.14,KIER NORTH TYNESIDE LIMITED,383278,Capital,Capital,Capital,Third Party Payments,505,Private Contractors,5042,Capital,02.BUILDING SERVICES
26/02/2018,1581605,8348.31,CREATIVE SUPPORT LTD,359340,"Health, Education, Care and Safeguarding",Adult Social Care,101,Third Party Payments,505,Private Contractors,5042,Revenue,22.HOMECARE
01/02/2018,1568694,8344.96,BALFOUR BEATTY WORKPLACE LIMITED,389026,Commercial & Business Redesign,Central Services,102,Third Party Payments,505,Private Contractors,5042,Revenue,HR PROFESS
28/02/2018,1586826,8344.96,BALFOUR BEATTY WORKPLACE LIMITED,389026,Commercial & Business Redesign,Central Services,102,Third Party Payments,505,Private Contractors,5042,Revenue,HR PROFESS
20/02/2018,1580417,8325.48,HM REVENUE & CUSTOMS,361213,Capital,General Fund,N/A,Capital,Capital,Capital,Capital,Capital,00.PUBLIC SECTOR
26/02/2018,1582267,8300.25,BALFOUR BEATTY WORKPLACE LIMITED,389026,Capital,Capital,Capital,Third Party Payments,505,Private Contractors,5042,Capital,HR PROFESS
27/02/2018,1583223,8289.28,HOUSING BENEFIT,299992,Finance,Housing Services,108,Transfer Payments,506,Housing Benefits,5048,Revenue,00.NON INFLUENCIBLE
16/02/2018,1576232,8246.00,ALLCARE COMMUNITY CARE SERVICES TRAFFORD LTD,395563,"Health, Education, Care and Safeguarding",Adult Social Care,101,Third Party Payments,505,Private Contractors,5042,Revenue,22.HOMECARE
12/02/2018,1574451,8195.09,NNDR,299990,General Fund Financing,Holding A/C,N/A,Excluded from General Fund,N/A,Collection Fund,N/A,Revenue,00.NON INFLUENCIBLE
01/02/2018,1568694,8152.25,BALFOUR BEATTY WORKPLACE LIMITED,389026,Finance,Central Services,102,Third Party Payments,505,Private Contractors,5042,Revenue,HR PROFESS
28/02/2018,1586826,8152.25,BALFOUR BEATTY WORKPLACE LIMITED,389026,Finance,Central Services,102,Third Party Payments,505,Private Contractors,5042,Revenue,HR PROFESS
23/02/2018,1581126,8151.75,BUILDING DESIGN NORTHERN LTD,333744,Capital,Capital,Capital,Third Party Payments,505,Private Contractors,5042,Capital,18.CONSULTANTS FEES
27/02/2018,1586275,8059.77,MONKSEATON MIDDLE SCHOOL,253420,Capital,Capital,Capital,Capital Expenditure,Capital,Capital Expenditure,Capital,Capital,00.NT SCHOOLS
26/02/2018,1581605,8026.43,CREATIVE SUPPORT LTD,359340,"Health, Education, Care and Safeguarding",Adult Social Care,101,Third Party Payments,505,Private Contractors,5042,Revenue,22.HOMECARE
05/02/2018,1569074,8000.00,KIER NORTH TYNESIDE LIMITED,383278,Capital,Capital,Capital,Third Party Payments,505,Private Contractors,5042,Capital,02.BUILDING SERVICES
16/02/2018,1576278,7933.20,DURHAM COUNTY COUNCIL,102874,HR & Organisational Development,Central Services,102,Employees,501,Indirect Employee Expenses,5002,Revenue,00.PUBLIC SECTOR
26/02/2018,1581948,7886.06,WILLOW LODGE - FOUR SEASONS HEALTH CARE,304310,"Health, Education, Care and Safeguarding",Adult Social Care,101,Third Party Payments,505,Other Establishments,5041,Revenue,22.RESIDENTIAL
05/02/2018,1569143,7866.00,ST OSWALDS HOSPICE,227723,"Health, Education, Care and Safeguarding",Children's & Education Services,103,Supplies and Services,504,Grants and Subscriptions,5031,Revenue,22.RESIDENTIAL
06/02/2018,1571902,7855.68,HOUSING BENEFIT,299992,Finance,Housing Services,108,Transfer Payments,506,Housing Benefits,5048,Revenue,00.NON INFLUENCIBLE
27/02/2018,1583329,7855.68,HOUSING BENEFIT,299992,Finance,Housing Services,108,Transfer Payments,506,Housing Benefits,5048,Revenue,00.NON INFLUENCIBLE
15/02/2018,1575984,7843.09,NHS PENSION SCHEME,389730,Capital,General Fund,N/A,Capital,Capital,Capital,Capital,Capital,00.NON INFLUENCIBLE
06/02/2018,1572097,7825.72,HOUSING BENEFIT,299992,Finance,Housing Services,108,Transfer Payments,506,Housing Benefits,5048,Revenue,00.NON INFLUENCIBLE
26/02/2018,1581605,7704.54,CREATIVE SUPPORT LTD,359340,"Health, Education, Care and Safeguarding",Adult Social Care,101,Third Party Payments,505,Private Contractors,5042,Revenue,22.HOMECARE
06/02/2018,1569974,7623.50,HOUSING BENEFIT,299992,Finance,Housing Services,108,Transfer Payments,506,Housing Benefits,5048,Revenue,00.NON INFLUENCIBLE
26/02/2018,1581916,7614.60,HELEN MCARDLE CARE RE HARTFORD COURT,382904,"Health, Education, Care and Safeguarding",Adult Social Care,101,Third Party Payments,505,Private Contractors,5042,Revenue,22.RESIDENTIAL
08/02/2018,1574070,7450.00,GEORGE STEPHENSON HIGH SCHOOL,007493,"Health, Education, Care and Safeguarding",Children's & Education Services,103,Third Party Payments,505,Independent Units within the Council,5035,Revenue,00.NT SCHOOLS
14/02/2018,1575831,7433.06,CAPITA SYMONDS LTD,376582,Capital,Capital,Capital,Third Party Payments,505,Private Contractors,5042,Capital,02.BUILDING SERVICES
05/02/2018,1569063,7429.33,ESPA LIMITED,327122,Commissioning & Investment,Children's & Education Services,103,Third Party Payments,505,Private Contractors,5042,Revenue,22.RESIDENTIAL
06/02/2018,1573547,7429.33,ESPA LIMITED,327122,Commissioning & Investment,Children's & Education Services,103,Third Party Payments,505,Private Contractors,5042,Revenue,22.RESIDENTIAL
13/02/2018,1575352,7429.33,ESPA LIMITED,327122,Commissioning & Investment,Children's & Education Services,103,Third Party Payments,505,Private Contractors,5042,Revenue,22.RESIDENTIAL
27/02/2018,1586275,7399.12,MONKSEATON MIDDLE SCHOOL,253420,Capital,Capital,Capital,Capital Expenditure,Capital,Capital Expenditure,Capital,Capital,00.NT SCHOOLS
06/02/2018,1571967,7313.14,HOUSING BENEFIT,299992,Finance,Housing Services,108,Transfer Payments,506,Housing Benefits,5048,Revenue,00.NON INFLUENCIBLE
27/02/2018,1584311,7313.14,HOUSING BENEFIT,299992,Finance,Housing Services,108,Transfer Payments,506,Housing Benefits,5048,Revenue,00.NON INFLUENCIBLE
26/02/2018,1581649,7280.70,AKARI CARE HOMES LIMITED,387465,"Health, Education, Care and Safeguarding",Adult Social Care,101,Third Party Payments,505,Private Contractors,5042,Revenue,22.RESIDENTIAL
05/02/2018,1569337,7237.89,Redacted Personal Data,395525,"Health, Education, Care and Safeguarding",Adult Social Care,101,Third Party Payments,505,Other Establishments,5041,Revenue,NON INDIVIDUAL
07/02/2018,1573770,7235.20,ROYAL BLIND ASYLUM AND SCHOOL,018071,Commissioning & Investment,Children's & Education Services,103,Third Party Payments,505,Private Contractors,5042,Revenue,00.EXT SCHOOLS
06/02/2018,1570042,7201.52,HOUSING BENEFIT,299992,Finance,Housing Services,108,Transfer Payments,506,Housing Benefits,5048,Revenue,00.NON INFLUENCIBLE
12/02/2018,1574286,7199.81,HOUSING BENEFIT,299992,Finance,Housing Services,108,Transfer Payments,506,Housing Benefits,5048,Revenue,00.NON INFLUENCIBLE
22/02/2018,1580903,7193.55,BALFOUR BEATTY WORKPLACE LIMITED,389026,Capital,Capital,Capital,Third Party Payments,505,Private Contractors,5042,Capital,HR PROFESS
20/02/2018,1580334,7190.06,HM REVENUE & CUSTOMS,361213,Capital,General Fund,N/A,Capital,Capital,Capital,Capital,Capital,00.PUBLIC SECTOR
05/02/2018,1569144,7145.98,AGE UK NORTH TYNESIDE,334565,"Health, Education, Care and Safeguarding",Adult Social Care,101,Third Party Payments,505,Private Contractors,5042,Revenue,22.DAY CARE SERVICES
06/02/2018,1572111,7130.40,HOUSING BENEFIT,299992,Finance,Housing Services,108,Transfer Payments,506,Housing Benefits,5048,Revenue,00.NON INFLUENCIBLE
28/02/2018,1586826,7079.38,BALFOUR BEATTY WORKPLACE LIMITED,389026,Finance,Central Services,102,Third Party Payments,505,Private Contractors,5042,Revenue,HR PROFESS
20/02/2018,1580277,7031.64,HM REVENUE & CUSTOMS,361213,Capital,General Fund,N/A,Capital,Capital,Capital,Capital,Capital,00.PUBLIC SECTOR
20/02/2018,1580423,7024.66,HM REVENUE & CUSTOMS,361213,Capital,General Fund,N/A,Capital,Capital,Capital,Capital,Capital,00.PUBLIC SECTOR
23/02/2018,1581075,6985.00,IDOX SOFTWARE LIMITED,378850,Commissioning & Investment,Children's & Education Services,103,Supplies and Services,504,Grants and Subscriptions,5031,Revenue,15.SOFTWARE
19/02/2018,1577355,6895.00,ALLCARE COMMUNITY CARE SERVICES TRAFFORD LTD,395563,"Health, Education, Care and Safeguarding",Public Health,112,Third Party Payments,505,Private Contractors,5042,Revenue,22.HOMECARE
06/02/2018,1573559,6845.41,ISS FACILITY SERVICES - LANDSCAPING,386557,"Environment, Housing & Leisure",Cultural & Related Services,104,Premises-Related Expenditure,502,"Repairs, alterations and maintenance of buildings",5005,Revenue,12.LANDSCAPING
12/02/2018,1574679,6828.17,WALLDENE COURT - ANCHOR TRUST,323724,"Health, Education, Care and Safeguarding",Public Health,112,Third Party Payments,505,Other Establishments,5041,Revenue,22.RESIDENTIAL
05/02/2018,1569063,6789.49,ESPA LIMITED,327122,Commissioning & Investment,Children's & Education Services,103,Third Party Payments,505,Private Contractors,5042,Revenue,22.RESIDENTIAL
28/02/2018,1586889,6750.00,BEAUMONT BROWN ARCHITECTS LLP,394611,"Environment, Housing & Leisure",Cultural & Related Services,104,Third Party Payments,505,Private Contractors,5042,Revenue,18.CONSULTANTS FEES
19/02/2018,1576658,6748.81,AKARI CARE HOMES LIMITED,387465,"Health, Education, Care and Safeguarding",Public Health,112,Third Party Payments,505,Other Establishments,5041,Revenue,22.RESIDENTIAL
23/02/2018,1581044,6711.60,ST JOHN AMBULANCE,313143,"Health, Education, Care and Safeguarding",Adult Social Care,101,Third Party Payments,505,Private Contractors,5042,Revenue,22.SUPPORT SERVICES
15/02/2018,1575937,6710.07,CHURCHILL COMMUNITY COLLEGE,338724,Commissioning & Investment,Children's & Education Services,103,Employees,501,Direct Employee Expenses,5001,Revenue,00.NT SCHOOLS
23/02/2018,1581067,6694.24,WARMZONES LTD,380101,Capital,Capital,Capital,Third Party Payments,505,Private Contractors,5042,Capital,REPAIR ADAPT
19/02/2018,1577404,6650.00,KIER NORTH TYNESIDE LIMITED,383278,Capital,Capital,Capital,Third Party Payments,505,Private Contractors,5042,Capital,02.BUILDING SERVICES
27/02/2018,1586152,6631.55,DR EWA HARRINGTON,385767,"Health, Education, Care and Safeguarding",Adult Social Care,101,Supplies and Services,504,Miscellaneous Expenses,5034,Revenue,00.DOCTORS/MEDICAL FEES
16/02/2018,1576288,6625.25,CAREVISIONS AT HOME LTD,384705,"Health, Education, Care and Safeguarding",Adult Social Care,101,Third Party Payments,505,Private Contractors,5042,Revenue,22.HOMECARE
19/02/2018,1576658,6613.10,AKARI CARE HOMES LIMITED,387465,"Health, Education, Care and Safeguarding",Adult Social Care,101,Third Party Payments,505,Private Contractors,5042,Revenue,22.RESIDENTIAL
05/02/2018,1569055,6598.91,TEACHERS PENSIONS AGENCY,341172,Capital,General Fund,N/A,Capital,Capital,Capital,Capital,Capital,00.NON INFLUENCIBLE
05/02/2018,1569653,6550.50,Redacted Personal Data,395633,"Health, Education, Care and Safeguarding",Adult Social Care,101,Third Party Payments,505,Other Establishments,5041,Revenue,NON INDIVIDUAL
09/02/2018,1574099,6549.56,CAPITA SYMONDS LTD,376582,"Environment, Housing & Leisure",Capital,Capital,Third Party Payments,505,Private Contractors,5042,Revenue,02.BUILDING SERVICES
26/02/2018,20917,6495.04,NNDR,299990,General Fund Financing,Holding A/C,N/A,Excluded from General Fund,N/A,Collection Fund,N/A,Revenue,00.NON INFLUENCIBLE
07/02/2018,1573683,6469.38,BALLIOL PRIMARY SCHOOL,244499,Commissioning & Investment,Children's & Education Services,103,Third Party Payments,505,Independent Units within the Council,5035,Revenue,00.NT SCHOOLS
27/02/2018,1584429,6407.06,HOUSING BENEFIT,299992,Finance,Housing Services,108,Transfer Payments,506,Housing Benefits,5048,Revenue,00.NON INFLUENCIBLE
27/02/2018,1585191,6373.04,HOUSING BENEFIT,299992,Finance,Housing Services,108,Transfer Payments,506,Housing Benefits,5048,Revenue,00.NON INFLUENCIBLE
22/02/2018,1580875,6337.48,CAPITA SYMONDS LTD,376582,Commissioning & Investment,Planning Services,110,Third Party Payments,505,Private Contractors,5042,Revenue,02.BUILDING SERVICES
26/02/2018,1581649,6322.41,AKARI CARE HOMES LIMITED,387465,"Health, Education, Care and Safeguarding",Adult Social Care,101,Third Party Payments,505,Private Contractors,5042,Revenue,22.RESIDENTIAL
01/02/2018,1568702,6238.26,CLEVELAND POTASH LIMITED,388317,"Environment, Housing & Leisure",Highways & Transport Services,107,Supplies and Services,504,Miscellaneous Expenses,5034,Revenue,ROCK SALT
19/02/2018,1577409,6207.67,CIVICA UK LTD,373166,"Environment, Housing & Leisure",Unallocated,N/A,Supplies and Services,504,Grants and Subscriptions,5031,Revenue,15.SOFTWARE
05/02/2018,1569807,6184.01,AUTISM CARE (UK) LIMITED,387636,"Health, Education, Care and Safeguarding",Public Health,112,Third Party Payments,505,Private Contractors,5042,Revenue,22.RESIDENTIAL
12/02/2018,1574661,6184.01,AUTISM CARE (UK) LIMITED,387636,"Health, Education, Care and Safeguarding",Public Health,112,Third Party Payments,505,Private Contractors,5042,Revenue,22.RESIDENTIAL
19/02/2018,1576980,6184.01,AUTISM CARE (UK) LIMITED,387636,"Health, Education, Care and Safeguarding",Public Health,112,Third Party Payments,505,Private Contractors,5042,Revenue,22.RESIDENTIAL
26/02/2018,1581588,6184.01,AUTISM CARE (UK) LIMITED,387636,"Health, Education, Care and Safeguarding",Public Health,112,Third Party Payments,505,Private Contractors,5042,Revenue,22.RESIDENTIAL
19/02/2018,1577403,6170.00,DJ INSTALLATION & FABRICATION LTD,004782,Capital,Capital,Capital,Third Party Payments,505,Private Contractors,5042,Capital,02.BUILDING SERVICES
01/02/2018,1568702,6165.81,CLEVELAND POTASH LIMITED,388317,"Environment, Housing & Leisure",Highways & Transport Services,107,Supplies and Services,504,Miscellaneous Expenses,5034,Revenue,ROCK SALT
06/02/2018,1573608,6165.00,THE LOCKER MANAGEMENT COMPANY LTD,379973,"Environment, Housing & Leisure",Cultural & Related Services,104,Supplies and Services,504,Equipment,5023,Revenue,10.OFFICE
01/02/2018,1568702,6164.55,CLEVELAND POTASH LIMITED,388317,"Environment, Housing & Leisure",Highways & Transport Services,107,Supplies and Services,504,Miscellaneous Expenses,5034,Revenue,ROCK SALT
27/02/2018,1583402,6156.92,HOUSING BENEFIT,299992,Finance,Housing Services,108,Transfer Payments,506,Housing Benefits,5048,Revenue,00.NON INFLUENCIBLE
26/02/2018,1581605,6132.28,CREATIVE SUPPORT LTD,359340,"Health, Education, Care and Safeguarding",Adult Social Care,101,Third Party Payments,505,Private Contractors,5042,Revenue,22.HOMECARE
22/02/2018,1581001,6115.04,A & J KEITH LTD,322019,Capital,Capital,Capital,Third Party Payments,505,Private Contractors,5042,Capital,02.BUILDING SERVICES
28/02/2018,1586756,6114.76,KIER NORTH TYNESIDE LIMITED,383278,Capital,Capital,Capital,Supplies and Services,504,Miscellaneous Expenses,5034,Capital,02.BUILDING SERVICES
19/02/2018,1577175,6088.18,COUNCIL TAX REFUND,299993,General Fund Financing,Holding A/C,N/A,Excluded from General Fund,N/A,Collection Fund,N/A,Revenue,00.NON INFLUENCIBLE
06/02/2018,1570359,6087.16,HOUSING BENEFIT,299992,Finance,Housing Services,108,Transfer Payments,506,Housing Benefits,5048,Revenue,00.NON INFLUENCIBLE
26/02/2018,1581914,6046.55,INTERACTIVE DEVELOPMENT SUPPORT LIMITED,383543,"Health, Education, Care and Safeguarding",Adult Social Care,101,Third Party Payments,505,Other Establishments,5041,Revenue,22.SUPPORT SERVICES
19/02/2018,1577408,6039.97,CARE MONITORING 2000 LTD,383491,"Health, Education, Care and Safeguarding",Adult Social Care,101,Supplies and Services,504,"Printing, Stationery and General Office Expenses",5026,Revenue,15.SOFTWARE
20/02/2018,1580335,6034.91,HM REVENUE & CUSTOMS,361213,Capital,General Fund,N/A,Capital,Capital,Capital,Capital,Capital,00.PUBLIC SECTOR
15/02/2018,1576062,6010.00,CIPFA BUSINESS LIMITED,383093,Finance,Central Services,102,Supplies and Services,504,Grants and Subscriptions,5031,Revenue,18.SUBSCRIPTIONS
21/02/2018,1580714,6000.00,NAVMAN WIRELESS UK LIMITED,378101,"Environment, Housing & Leisure",Unallocated,N/A,Supplies and Services,504,Equipment,5023,Revenue,28.VEHICLE PARTS
06/02/2018,1572139,5993.24,HOUSING BENEFIT,299992,Finance,Housing Services,108,Transfer Payments,506,Housing Benefits,5048,Revenue,00.NON INFLUENCIBLE
27/02/2018,1584403,5993.24,HOUSING BENEFIT,299992,Finance,Housing Services,108,Transfer Payments,506,Housing Benefits,5048,Revenue,00.NON INFLUENCIBLE
26/02/2018,1582264,5828.16,NEPRO LIMITED,392147,Capital,Capital,Capital,Third Party Payments,505,Private Contractors,5042,Capital,18.CONSULTANTS FEES
20/02/2018,1580419,5817.60,HM REVENUE & CUSTOMS,361213,Capital,General Fund,N/A,Capital,Capital,Capital,Capital,Capital,00.PUBLIC SECTOR
05/02/2018,1569741,5789.52,DAV HOMES LTD,390262,"Health, Education, Care and Safeguarding",Public Health,112,Third Party Payments,505,Other Establishments,5041,Revenue,22.RESIDENTIAL
26/02/2018,1581605,5773.23,CREATIVE SUPPORT LTD,359340,"Health, Education, Care and Safeguarding",Adult Social Care,101,Third Party Payments,505,Private Contractors,5042,Revenue,22.HOMECARE
06/02/2018,1572056,5739.64,HOUSING BENEFIT,299992,Finance,Housing Services,108,Transfer Payments,506,Housing Benefits,5048,Revenue,00.NON INFLUENCIBLE
05/02/2018,1569514,5720.00,PRESTWICK CARE LTD,387214,"Health, Education, Care and Safeguarding",Public Health,112,Third Party Payments,505,Other Establishments,5041,Revenue,22.RESIDENTIAL
01/02/2018,1568725,5700.00,HOWARD HOUSE CARE LIMITED,358471,"Health, Education, Care and Safeguarding",Children's & Education Services,103,Third Party Payments,505,Private Contractors,5042,Revenue,22.RESIDENTIAL
08/02/2018,1573991,5700.00,HOWARD HOUSE CARE LIMITED,358471,"Health, Education, Care and Safeguarding",Children's & Education Services,103,Third Party Payments,505,Private Contractors,5042,Revenue,22.RESIDENTIAL
12/02/2018,1575198,5700.00,HOWARD HOUSE CARE LIMITED,358471,"Health, Education, Care and Safeguarding",Children's & Education Services,103,Third Party Payments,505,Private Contractors,5042,Revenue,22.RESIDENTIAL
23/02/2018,1581058,5700.00,HOWARD HOUSE CARE LIMITED,358471,"Health, Education, Care and Safeguarding",Children's & Education Services,103,Third Party Payments,505,Private Contractors,5042,Revenue,22.RESIDENTIAL
26/02/2018,1582183,5700.00,HOWARD HOUSE CARE LIMITED,358471,"Health, Education, Care and Safeguarding",Children's & Education Services,103,Third Party Payments,505,Private Contractors,5042,Revenue,22.RESIDENTIAL
20/02/2018,1580275,5613.87,HM REVENUE & CUSTOMS,361213,Capital,General Fund,N/A,Capital,Capital,Capital,Capital,Capital,00.PUBLIC SECTOR
20/02/2018,1580268,5573.20,HM REVENUE & CUSTOMS,361213,Capital,General Fund,N/A,Capital,Capital,Capital,Capital,Capital,00.PUBLIC SECTOR
22/02/2018,1580970,5569.39,GENERAL BACS PAYMENTS - BSS ONLY,381148,"Health, Education, Care and Safeguarding",Adult Social Care,101,Premises-Related Expenditure,502,Rates,5008,Revenue,00.NON INFLUENCIBLE
19/02/2018,1577355,5516.00,ALLCARE COMMUNITY CARE SERVICES TRAFFORD LTD,395563,"Health, Education, Care and Safeguarding",Public Health,112,Third Party Payments,505,Private Contractors,5042,Revenue,22.HOMECARE
07/02/2018,1573675,5514.00,SHIREMOOR PRIMARY SCHOOL,256148,Capital,Capital,Capital,Capital Expenditure,Capital,Capital Expenditure,Capital,Capital,00.NT SCHOOLS
01/02/2018,1568701,5510.12,CAPITA SYMONDS LTD,376582,Capital,Capital,Capital,Third Party Payments,505,Private Contractors,5042,Capital,02.BUILDING SERVICES
27/02/2018,1582428,5499.07,HOUSING BENEFIT,299992,Finance,Housing Services,108,Transfer Payments,506,Housing Benefits,5048,Revenue,00.NON INFLUENCIBLE
19/02/2018,1576992,5497.67,HELEN MCARDLE CARE,391638,"Health, Education, Care and Safeguarding",Adult Social Care,101,Third Party Payments,505,Private Contractors,5042,Revenue,22.RESIDENTIAL
06/02/2018,1570243,5489.68,HOUSING BENEFIT,299992,Finance,Housing Services,108,Transfer Payments,506,Housing Benefits,5048,Revenue,00.NON INFLUENCIBLE
12/02/2018,1575153,5488.32,ROSEBERRY CARE CENTRES,387542,"Health, Education, Care and Safeguarding",Adult Social Care,101,Third Party Payments,505,Private Contractors,5042,Revenue,22.RESIDENTIAL
16/02/2018,1576232,5479.00,ALLCARE COMMUNITY CARE SERVICES TRAFFORD LTD,395563,"Health, Education, Care and Safeguarding",Adult Social Care,101,Third Party Payments,505,Private Contractors,5042,Revenue,22.HOMECARE
05/02/2018,1569149,5420.00,BALFOUR BEATTY WORKPLACE LIMITED,389026,Commercial & Business Redesign,Central Services,102,Employees,501,Direct Employee Expenses,5001,Revenue,HR PROFESS
26/02/2018,1581238,5395.75,HOUSING BENEFIT,299992,Finance,Housing Services,108,Transfer Payments,506,Housing Benefits,5048,Revenue,00.NON INFLUENCIBLE
05/02/2018,1569484,5369.65,WILLOW LODGE - FOUR SEASONS HEALTH CARE,304310,"Health, Education, Care and Safeguarding",Adult Social Care,101,Third Party Payments,505,Private Contractors,5042,Revenue,22.RESIDENTIAL
05/02/2018,1569499,5369.65,HUNTER HALL FOUR SEASONS HEALTH CARE,253473,"Health, Education, Care and Safeguarding",Adult Social Care,101,Third Party Payments,505,Private Contractors,5042,Revenue,22.RESIDENTIAL
13/02/2018,1575253,5367.75,HOUSING BENEFIT,299992,Finance,Housing Services,108,Transfer Payments,506,Housing Benefits,5048,Revenue,00.NON INFLUENCIBLE
01/02/2018,1568694,5358.20,BALFOUR BEATTY WORKPLACE LIMITED,389026,Finance,Central Services,102,Third Party Payments,505,Private Contractors,5042,Revenue,HR PROFESS
28/02/2018,1586826,5358.20,BALFOUR BEATTY WORKPLACE LIMITED,389026,Finance,Central Services,102,Third Party Payments,505,Private Contractors,5042,Revenue,HR PROFESS
21/02/2018,1580717,5355.00,AGE UK NORTH TYNESIDE,334565,"Health, Education, Care and Safeguarding",Adult Social Care,101,Third Party Payments,505,Private Contractors,5042,Revenue,22.DAY CARE SERVICES
06/02/2018,1571947,5333.32,HOUSING BENEFIT,299992,Finance,Housing Services,108,Transfer Payments,506,Housing Benefits,5048,Revenue,00.NON INFLUENCIBLE
12/02/2018,1574294,5323.32,HOUSING BENEFIT,299992,Finance,Housing Services,108,Transfer Payments,506,Housing Benefits,5048,Revenue,00.NON INFLUENCIBLE
22/02/2018,1580879,5300.00,SEATING MATTERS LIMITED,385236,"Health, Education, Care and Safeguarding",Adult Social Care,101,Supplies and Services,504,Equipment,5023,Revenue,SOCIAL SUPP
16/02/2018,1576240,5288.80,STOCKTON-ON-TEES BOROUGH COUNCIL,258202,HR & Organisational Development,Central Services,102,Employees,501,Indirect Employee Expenses,5002,Revenue,00.PUBLIC SECTOR
16/02/2018,1576245,5288.80,MIDDLESBROUGH COUNCIL,337924,HR & Organisational Development,Central Services,102,Employees,501,Indirect Employee Expenses,5002,Revenue,00.PUBLIC SECTOR
16/02/2018,1576263,5288.80,SOUTH TYNESIDE COUNCIL,262872,HR & Organisational Development,Central Services,102,Employees,501,Indirect Employee Expenses,5002,Revenue,00.PUBLIC SECTOR
16/02/2018,1576317,5288.80,REDCAR & CLEVELAND BOROUGH COUNCIL,319999,HR & Organisational Development,Central Services,102,Employees,501,Indirect Employee Expenses,5002,Revenue,00.PUBLIC SECTOR
16/02/2018,1576321,5288.80,SUNDERLAND CITY COUNCIL,019534,HR & Organisational Development,Central Services,102,Employees,501,Indirect Employee Expenses,5002,Revenue,00.PUBLIC SECTOR
20/02/2018,1578852,5277.35,HOUSING BENEFIT,299992,Finance,Housing Services,108,Transfer Payments,506,Housing Benefits,5048,Revenue,00.NON INFLUENCIBLE
06/02/2018,1570036,5206.72,HOUSING BENEFIT,299992,Finance,Housing Services,108,Transfer Payments,506,Housing Benefits,5048,Revenue,00.NON INFLUENCIBLE
12/02/2018,1574694,5200.89,DAV HOMES LTD,390262,"Health, Education, Care and Safeguarding",Adult Social Care,101,Third Party Payments,505,Other Establishments,5041,Revenue,22.RESIDENTIAL
05/02/2018,1569503,5200.50,Redacted Personal Data,224173,"Health, Education, Care and Safeguarding",Adult Social Care,101,Third Party Payments,505,Private Contractors,5042,Revenue,22.RESIDENTIAL
15/02/2018,1575907,5196.84,STANNAH LIFT SERVICES LIMITED,102817,"Health, Education, Care and Safeguarding",Adult Social Care,101,Third Party Payments,505,Private Contractors,5042,Revenue,SOCIAL FITTED
05/02/2018,1568923,5177.63,NNDR,299990,General Fund Financing,Holding A/C,N/A,Excluded from General Fund,N/A,Collection Fund,N/A,Revenue,00.NON INFLUENCIBLE
15/02/2018,1575907,5171.45,STANNAH LIFT SERVICES LIMITED,102817,Capital,Capital,Capital,Third Party Payments,505,Private Contractors,5042,Capital,SOCIAL FITTED
28/02/2018,1586848,5170.00,LG FUTURES LTD,394306,Finance,Central Services,102,Supplies and Services,504,Miscellaneous Expenses,5034,Revenue,18.SUBSCRIPTIONS
12/02/2018,1575170,5144.00,COOPERS TOURMASTER TRAVEL LIMITED,304672,"Health, Education, Care and Safeguarding",Children's & Education Services,103,Transport,503,Contract Hire and Operating Leases,5018,Revenue,26.TAXIS
27/02/2018,1584404,5118.75,HOUSING BENEFIT,299992,Finance,Housing Services,108,Transfer Payments,506,Housing Benefits,5048,Revenue,00.NON INFLUENCIBLE
01/02/2018,1568701,5104.78,CAPITA SYMONDS LTD,376582,Capital,Capital,Capital,Third Party Payments,505,Private Contractors,5042,Capital,02.BUILDING SERVICES
27/02/2018,1585262,5087.68,HOUSING BENEFIT,299992,Finance,Housing Services,108,Transfer Payments,506,Housing Benefits,5048,Revenue,00.NON INFLUENCIBLE
27/02/2018,1585141,5084.40,HOUSING BENEFIT,299992,Finance,Housing Services,108,Transfer Payments,506,Housing Benefits,5048,Revenue,00.NON INFLUENCIBLE
12/02/2018,1574816,5078.60,ST ANNES RESIDENTIAL CARE HOME,358733,"Health, Education, Care and Safeguarding",Adult Social Care,101,Third Party Payments,505,Private Contractors,5042,Revenue,22.RESIDENTIAL
27/02/2018,1584427,5068.94,HOUSING BENEFIT,299992,Finance,Housing Services,108,Transfer Payments,506,Housing Benefits,5048,Revenue,00.NON INFLUENCIBLE
27/02/2018,1584428,5061.20,HOUSING BENEFIT,299992,Finance,Housing Services,108,Transfer Payments,506,Housing Benefits,5048,Revenue,00.NON INFLUENCIBLE
26/02/2018,1581571,5051.91,DAV HOMES LTD,390262,"Health, Education, Care and Safeguarding",Adult Social Care,101,Third Party Payments,505,Private Contractors,5042,Revenue,22.RESIDENTIAL
05/02/2018,1569486,5040.00,CARE HOMES FOR ADULTS WITH DISABILITIES,364959,"Health, Education, Care and Safeguarding",Adult Social Care,101,Third Party Payments,505,Private Contractors,5042,Revenue,22.RESIDENTIAL
12/02/2018,1574786,5040.00,CARE HOMES FOR ADULTS WITH DISABILITIES,364959,"Health, Education, Care and Safeguarding",Adult Social Care,101,Third Party Payments,505,Private Contractors,5042,Revenue,22.RESIDENTIAL
19/02/2018,1576758,5040.00,CARE HOMES FOR ADULTS WITH DISABILITIES,364959,"Health, Education, Care and Safeguarding",Adult Social Care,101,Third Party Payments,505,Private Contractors,5042,Revenue,22.RESIDENTIAL
26/02/2018,1581950,5040.00,CARE HOMES FOR ADULTS WITH DISABILITIES,364959,"Health, Education, Care and Safeguarding",Adult Social Care,101,Third Party Payments,505,Private Contractors,5042,Revenue,22.RESIDENTIAL
05/02/2018,1569518,5009.60,ESPA LIMITED,327122,"Health, Education, Care and Safeguarding",Adult Social Care,101,Third Party Payments,505,Private Contractors,5042,Revenue,22.RESIDENTIAL
12/02/2018,1575059,5009.60,ESPA LIMITED,327122,"Health, Education, Care and Safeguarding",Adult Social Care,101,Third Party Payments,505,Private Contractors,5042,Revenue,22.RESIDENTIAL
19/02/2018,1576692,5009.60,ESPA LIMITED,327122,"Health, Education, Care and Safeguarding",Adult Social Care,101,Third Party Payments,505,Private Contractors,5042,Revenue,22.RESIDENTIAL
26/02/2018,1581452,5009.60,ESPA LIMITED,327122,"Health, Education, Care and Safeguarding",Adult Social Care,101,Third Party Payments,505,Private Contractors,5042,Revenue,22.RESIDENTIAL
19/02/2018,1576773,5003.88,BONDCARE - DE BALLIOL,388231,"Health, Education, Care and Safeguarding",Adult Social Care,101,Third Party Payments,505,Private Contractors,5042,Revenue,22.RESIDENTIAL
08/02/2018,1574057,5000.00,FOREVER CARE,391221,"Health, Education, Care and Safeguarding",Children's & Education Services,103,Third Party Payments,505,Other Establishments,5041,Revenue,22.SUPPORT SERVICES
19/02/2018,1576978,3600.10,UNITED RESPONSE,330350,"Health, Education, Care and Safeguarding",Public Health,112,Third Party Payments,505,Private Contractors,5042,Revenue,22.SUPPORT SERVICES
26/02/2018,1581586,3600.10,UNITED RESPONSE,330350,"Health, Education, Care and Safeguarding",Public Health,112,Third Party Payments,505,Private Contractors,5042,Revenue,22.SUPPORT SERVICES
27/02/2018,1586138,3600.00,VISION TECHNIQUES (UK) LTD,336467,"Environment, Housing & Leisure",Unallocated,N/A,Supplies and Services,504,Equipment,5023,Revenue,FLEET MGMT
22/02/2018,1580896,3600.00,CCATS LTD,393916,"Health, Education, Care and Safeguarding",Children's & Education Services,103,Third Party Payments,505,Private Contractors,5042,Revenue,22.SUPPORT SERVICES
14/02/2018,1575679,3600.00,CYGNET LAW,395956,HR & Organisational Development,Central Services,102,Employees,501,Indirect Employee Expenses,5002,Revenue,18.CONFERENCING
05/02/2018,1569552,3593.92,Redacted Personal Data,395868,"Health, Education, Care and Safeguarding",Adult Social Care,101,Third Party Payments,505,Other Establishments,5041,Revenue,NON INDIVIDUAL
05/02/2018,1569805,3580.40,UNITED RESPONSE,330350,"Health, Education, Care and Safeguarding",Adult Social Care,101,Third Party Payments,505,Other Establishments,5041,Revenue,22.SUPPORT SERVICES
02/02/2018,1568760,5000.00,WALKING WITH,362924,"Environment, Housing & Leisure",Housing Services,108,Supplies and Services,504,Miscellaneous Expenses,5034,Revenue,00.GRANT
19/02/2018,1577404,4997.43,KIER NORTH TYNESIDE LIMITED,383278,"Environment, Housing & Leisure",Capital,Capital,Capital,Capital,Capital,Capital,Revenue,02.BUILDING SERVICES
16/02/2018,1576218,4995.00,THE LOCKER MANAGEMENT COMPANY LTD,379973,"Environment, Housing & Leisure",Cultural & Related Services,104,Supplies and Services,504,Equipment,5023,Revenue,10.OFFICE
27/02/2018,1586275,4995.00,MONKSEATON MIDDLE SCHOOL,253420,Capital,Capital,Capital,Capital Expenditure,Capital,Capital Expenditure,Capital,Capital,00.NT SCHOOLS
20/02/2018,1580421,4973.40,HM REVENUE & CUSTOMS,361213,Capital,General Fund,N/A,Capital,Capital,Capital,Capital,Capital,00.PUBLIC SECTOR
06/02/2018,1573606,4970.00,INTERPLAN SIGN SYSTEMS LTD (102313),102313,Capital,Capital,Capital,Third Party Payments,505,Private Contractors,5042,Capital,11.ROAD SAFETY
05/02/2018,1569144,4941.47,AGE UK NORTH TYNESIDE,334565,"Health, Education, Care and Safeguarding",Adult Social Care,101,Third Party Payments,505,Private Contractors,5042,Revenue,22.DAY CARE SERVICES
15/02/2018,1576062,4930.00,CIPFA BUSINESS LIMITED,383093,Finance,Central Services,102,Supplies and Services,504,Grants and Subscriptions,5031,Revenue,18.SUBSCRIPTIONS
15/02/2018,1576095,4912.67,NEWCASTLE CITY COUNCIL,014331,"Health, Education, Care and Safeguarding",Adult Social Care,101,Third Party Payments,505,Other Local Authorities,5037,Revenue,00.PUBLIC SECTOR
05/02/2018,1569829,4851.96,ROSEMOUNT - FOUR SEASONS HEALTH CARE,300716,"Health, Education, Care and Safeguarding",Public Health,112,Third Party Payments,505,Other Establishments,5041,Revenue,22.RESIDENTIAL
26/02/2018,1581605,4848.48,CREATIVE SUPPORT LTD,359340,"Health, Education, Care and Safeguarding",Adult Social Care,101,Third Party Payments,505,Private Contractors,5042,Revenue,22.HOMECARE
28/02/2018,1586750,4844.46,NORTH TYNESIDE LABOUR GROUP,314642,Capital,General Fund,N/A,Capital,Capital,Capital,Capital,Capital,00.NON INFLUENCIBLE
27/02/2018,1586275,4840.00,MONKSEATON MIDDLE SCHOOL,253420,Capital,Capital,Capital,Capital Expenditure,Capital,Capital Expenditure,Capital,Capital,00.NT SCHOOLS
19/02/2018,1577355,4816.00,ALLCARE COMMUNITY CARE SERVICES TRAFFORD LTD,395563,"Health, Education, Care and Safeguarding",Adult Social Care,101,Third Party Payments,505,Other Establishments,5041,Revenue,22.HOMECARE
01/02/2018,1568720,400.00,THE TRUSTEES OF THE DIOCESE OF HEXHAM & NEWCASTLE,004510,Commissioning & Investment,Children's & Education Services,103,Premises-Related Expenditure,502,Rents,5007,Revenue,16.REAL ESTATE
06/02/2018,1572140,4793.36,HOUSING BENEFIT,299992,Finance,Housing Services,108,Transfer Payments,506,Housing Benefits,5048,Revenue,00.NON INFLUENCIBLE
06/02/2018,1572109,4784.48,HOUSING BENEFIT,299992,Finance,Housing Services,108,Transfer Payments,506,Housing Benefits,5048,Revenue,00.NON INFLUENCIBLE
01/02/2018,1568701,4754.87,CAPITA SYMONDS LTD,376582,Capital,Capital,Capital,Third Party Payments,505,Private Contractors,5042,Capital,02.BUILDING SERVICES
19/02/2018,1576978,4749.56,UNITED RESPONSE,330350,"Health, Education, Care and Safeguarding",Adult Social Care,101,Third Party Payments,505,Private Contractors,5042,Revenue,22.SUPPORT SERVICES
28/02/2018,1586893,4713.10,DE LAGE LANDEN LEASING LIMITED,392448,Central Items,Central Services,102,Capital,Capital,Capital,Capital,Revenue,01.LIFT MAINTENANCE
05/02/2018,1569076,4712.00,WALLERS SOLICITORS,350832,Housing Revenue Account,Housing Services,108,Third Party Payments,505,Private Contractors,5042,Revenue,16.LEGAL SERVICES
20/02/2018,1580266,4711.00,HM REVENUE & CUSTOMS,361213,Capital,General Fund,N/A,Capital,Capital,Capital,Capital,Capital,00.PUBLIC SECTOR
05/02/2018,1569061,4708.70,NORTHUMBRIAN WATER LIMITED,014360,Housing Revenue Account,Adult Social Care,101,Premises-Related Expenditure,502,Rates,5008,Revenue,27.WATER
27/02/2018,1584397,4702.00,HOUSING BENEFIT,299992,Finance,Housing Services,108,Transfer Payments,506,Housing Benefits,5048,Revenue,00.NON INFLUENCIBLE
09/02/2018,1574150,4694.60,DELL SOFTWARE INTERNATIONAL LIMITED,390723,Chief Executive Office,Central Services,102,Supplies and Services,504,Communications & Computing,5028,Revenue,15.SOFTWARE
14/02/2018,1575722,4681.05,NORTH EAST REGIONAL EMPLOYERS ORGANISATION,324213,HR & Organisational Development,Central Services,102,Employees,501,Indirect Employee Expenses,5002,Revenue,00.NON INFLUENCIBLE
02/02/2018,1568775,4674.99,BALFOUR BEATTY WORKPLACE LIMITED,389026,Chief Executive Office,Central Services,102,Third Party Payments,505,Private Contractors,5042,Revenue,HR PROFESS
05/02/2018,1569509,4672.29,ROSEBERRY CARE CENTRES,387541,"Health, Education, Care and Safeguarding",Adult Social Care,101,Third Party Payments,505,Private Contractors,5042,Revenue,22.RESIDENTIAL
26/02/2018,1581605,4665.08,CREATIVE SUPPORT LTD,359340,"Health, Education, Care and Safeguarding",Adult Social Care,101,Third Party Payments,505,Private Contractors,5042,Revenue,22.HOMECARE
05/02/2018,1568919,4660.00,NNDR,299990,General Fund Financing,Holding A/C,N/A,Excluded from General Fund,N/A,Collection Fund,N/A,Revenue,00.NON INFLUENCIBLE
26/02/2018,1582264,4648.72,NEPRO LIMITED,392147,Capital,Capital,Capital,Third Party Payments,505,Private Contractors,5042,Capital,18.CONSULTANTS FEES
27/02/2018,1586275,4621.24,MONKSEATON MIDDLE SCHOOL,253420,Capital,Capital,Capital,Capital Expenditure,Capital,Capital Expenditure,Capital,Capital,00.NT SCHOOLS
01/02/2018,1568701,4594.64,CAPITA SYMONDS LTD,376582,Capital,Capital,Capital,Third Party Payments,505,Private Contractors,5042,Capital,02.BUILDING SERVICES
22/02/2018,1580834,4588.17,STANNAH LIFT SERVICES LIMITED,102817,Capital,Capital,Capital,Third Party Payments,505,Private Contractors,5042,Capital,SOCIAL FITTED
09/02/2018,1574186,4560.00,NEATER SOLUTIONS LTD,318780,"Health, Education, Care and Safeguarding",Adult Social Care,101,Supplies and Services,504,Equipment,5023,Revenue,03.CROCKERY
20/02/2018,1580333,4545.00,HM REVENUE & CUSTOMS,361213,Capital,General Fund,N/A,Capital,Capital,Capital,Capital,Capital,00.PUBLIC SECTOR
26/02/2018,1581918,4539.97,NORTH EAST CARE HOMES LIMITED,359922,"Health, Education, Care and Safeguarding",Adult Social Care,101,Third Party Payments,505,Private Contractors,5042,Revenue,22.RESIDENTIAL
22/02/2018,1580904,4530.00,KINDERKEY HEALTHCARE LIMITED,391581,"Health, Education, Care and Safeguarding",Public Health,112,Supplies and Services,504,Equipment,5023,Revenue,SOCIAL SUPP
12/02/2018,1574778,4498.00,INTERACTIVE DEVELOPMENT SUPPORT LIMITED,383543,"Health, Education, Care and Safeguarding",Adult Social Care,101,Third Party Payments,505,Other Establishments,5041,Revenue,22.SUPPORT SERVICES
26/02/2018,1581605,4481.68,CREATIVE SUPPORT LTD,359340,"Health, Education, Care and Safeguarding",Adult Social Care,101,Third Party Payments,505,Private Contractors,5042,Revenue,22.HOMECARE
16/02/2018,1576264,4475.00,CIPFA BUSINESS LIMITED,383093,Finance,Central Services,102,Supplies and Services,504,Miscellaneous Expenses,5034,Revenue,18.SUBSCRIPTIONS
27/02/2018,1585119,4470.48,HOUSING BENEFIT,299992,Finance,Housing Services,108,Transfer Payments,506,Housing Benefits,5048,Revenue,00.NON INFLUENCIBLE
22/02/2018,1580875,4431.00,CAPITA SYMONDS LTD,376582,Commissioning & Investment,Unallocated,N/A,Third Party Payments,505,Private Contractors,5042,Revenue,02.BUILDING SERVICES
06/02/2018,1572157,4426.14,HOUSING BENEFIT,299992,Finance,Housing Services,108,Transfer Payments,506,Housing Benefits,5048,Revenue,00.NON INFLUENCIBLE
02/02/2018,1568780,4381.91,CAPITA SYMONDS LTD,376582,Commissioning & Investment,Planning Services,110,Third Party Payments,505,Private Contractors,5042,Revenue,02.BUILDING SERVICES
26/02/2018,20916,4330.03,NNDR,299990,General Fund Financing,Holding A/C,N/A,Excluded from General Fund,N/A,Collection Fund,N/A,Revenue,00.NON INFLUENCIBLE
22/02/2018,1580903,4279.00,BALFOUR BEATTY WORKPLACE LIMITED,389026,Commissioning & Investment,Central Services,102,Third Party Payments,505,Private Contractors,5042,Revenue,HR PROFESS
22/02/2018,1580903,4279.00,BALFOUR BEATTY WORKPLACE LIMITED,389026,Commissioning & Investment,Central Services,102,Third Party Payments,505,Private Contractors,5042,Revenue,HR PROFESS
22/02/2018,1580903,4279.00,BALFOUR BEATTY WORKPLACE LIMITED,389026,Commissioning & Investment,Central Services,102,Third Party Payments,505,Private Contractors,5042,Revenue,HR PROFESS
16/02/2018,1576304,4278.00,JBL SERVICES LTD,361661,Commissioning & Investment,Children's & Education Services,103,Supplies and Services,504,Equipment,5023,Revenue,03.CROCKERY
15/02/2018,1576062,4260.00,CIPFA BUSINESS LIMITED,383093,Finance,Central Services,102,Supplies and Services,504,Grants and Subscriptions,5031,Revenue,18.SUBSCRIPTIONS
09/02/2018,1574276,4239.00,FOSTER CARE ASSOCIATES LIMITED,343163,"Health, Education, Care and Safeguarding",Children's & Education Services,103,Third Party Payments,505,Voluntary Associations,5040,Revenue,FOSTER CARE
05/02/2018,1569769,4236.40,NEW BEGINNINGS (N.E.) LTD,337005,"Health, Education, Care and Safeguarding",Adult Social Care,101,Third Party Payments,505,Private Contractors,5042,Revenue,22.RESIDENTIAL
05/02/2018,1569769,4236.40,NEW BEGINNINGS (N.E.) LTD,337005,"Health, Education, Care and Safeguarding",Adult Social Care,101,Third Party Payments,505,Private Contractors,5042,Revenue,22.RESIDENTIAL
12/02/2018,1575116,4236.40,NEW BEGINNINGS (N.E.) LTD,337005,"Health, Education, Care and Safeguarding",Adult Social Care,101,Third Party Payments,505,Private Contractors,5042,Revenue,22.RESIDENTIAL
12/02/2018,1575116,4236.40,NEW BEGINNINGS (N.E.) LTD,337005,"Health, Education, Care and Safeguarding",Adult Social Care,101,Third Party Payments,505,Private Contractors,5042,Revenue,22.RESIDENTIAL
19/02/2018,1577042,4236.40,NEW BEGINNINGS (N.E.) LTD,337005,"Health, Education, Care and Safeguarding",Adult Social Care,101,Third Party Payments,505,Private Contractors,5042,Revenue,22.RESIDENTIAL
19/02/2018,1577042,4236.40,NEW BEGINNINGS (N.E.) LTD,337005,"Health, Education, Care and Safeguarding",Adult Social Care,101,Third Party Payments,505,Private Contractors,5042,Revenue,22.RESIDENTIAL
26/02/2018,1581502,4236.40,NEW BEGINNINGS (N.E.) LTD,337005,"Health, Education, Care and Safeguarding",Adult Social Care,101,Third Party Payments,505,Private Contractors,5042,Revenue,22.RESIDENTIAL
26/02/2018,1581502,4236.40,NEW BEGINNINGS (N.E.) LTD,337005,"Health, Education, Care and Safeguarding",Adult Social Care,101,Third Party Payments,505,Private Contractors,5042,Revenue,22.RESIDENTIAL
20/02/2018,1580276,4223.92,HM REVENUE & CUSTOMS,361213,Capital,General Fund,N/A,Capital,Capital,Capital,Capital,Capital,00.PUBLIC SECTOR
06/02/2018,1572000,4221.09,HOUSING BENEFIT,299992,Finance,Housing Services,108,Transfer Payments,506,Housing Benefits,5048,Revenue,00.NON INFLUENCIBLE
26/02/2018,1582184,4202.07,BLP (NORTHERN) LTD,220069,Housing Revenue Account,Housing Services,108,Supplies and Services,504,Communications & Computing,5028,Revenue,PRINT PRINT
20/02/2018,1580343,4200.00,MEADOW WELL CONNECTED,355522,"Health, Education, Care and Safeguarding",Children's & Education Services,103,Third Party Payments,505,Private Contractors,5042,Revenue,22.SUPPORT SERVICES
05/02/2018,1569796,4200.00,NORTHRIDGE HEALTHCARE LTD,393276,"Health, Education, Care and Safeguarding",Adult Social Care,101,Third Party Payments,505,Private Contractors,5042,Revenue,22.RESIDENTIAL
12/02/2018,1574751,4200.00,NORTHRIDGE HEALTHCARE LTD,393276,"Health, Education, Care and Safeguarding",Adult Social Care,101,Third Party Payments,505,Private Contractors,5042,Revenue,22.RESIDENTIAL
19/02/2018,1577068,4200.00,NORTHRIDGE HEALTHCARE LTD,393276,"Health, Education, Care and Safeguarding",Adult Social Care,101,Third Party Payments,505,Private Contractors,5042,Revenue,22.RESIDENTIAL
26/02/2018,1581577,4200.00,NORTHRIDGE HEALTHCARE LTD,393276,"Health, Education, Care and Safeguarding",Adult Social Care,101,Third Party Payments,505,Private Contractors,5042,Revenue,22.RESIDENTIAL
12/02/2018,1575169,4159.22,CAPITA SYMONDS LTD,376582,Capital,Capital,Capital,Supplies and Services,504,Miscellaneous Expenses,5034,Capital,02.BUILDING SERVICES
05/02/2018,1569769,4138.75,NEW BEGINNINGS (N.E.) LTD,337005,"Health, Education, Care and Safeguarding",Adult Social Care,101,Third Party Payments,505,Private Contractors,5042,Revenue,22.RESIDENTIAL
12/02/2018,1575116,4138.75,NEW BEGINNINGS (N.E.) LTD,337005,"Health, Education, Care and Safeguarding",Adult Social Care,101,Third Party Payments,505,Private Contractors,5042,Revenue,22.RESIDENTIAL
19/02/2018,1577042,4138.75,NEW BEGINNINGS (N.E.) LTD,337005,"Health, Education, Care and Safeguarding",Adult Social Care,101,Third Party Payments,505,Private Contractors,5042,Revenue,22.RESIDENTIAL
26/02/2018,1581502,4138.75,NEW BEGINNINGS (N.E.) LTD,337005,"Health, Education, Care and Safeguarding",Adult Social Care,101,Third Party Payments,505,Private Contractors,5042,Revenue,22.RESIDENTIAL
26/02/2018,1581197,4136.54,HOUSING BENEFIT,299992,Finance,Housing Services,108,Transfer Payments,506,Housing Benefits,5048,Revenue,00.NON INFLUENCIBLE
05/02/2018,1569769,4119.80,NEW BEGINNINGS (N.E.) LTD,337005,"Health, Education, Care and Safeguarding",Public Health,112,Third Party Payments,505,Private Contractors,5042,Revenue,22.RESIDENTIAL
12/02/2018,1575116,4119.80,NEW BEGINNINGS (N.E.) LTD,337005,"Health, Education, Care and Safeguarding",Public Health,112,Third Party Payments,505,Private Contractors,5042,Revenue,22.RESIDENTIAL
19/02/2018,1577042,4119.80,NEW BEGINNINGS (N.E.) LTD,337005,"Health, Education, Care and Safeguarding",Public Health,112,Third Party Payments,505,Private Contractors,5042,Revenue,22.RESIDENTIAL
26/02/2018,1581502,4119.80,NEW BEGINNINGS (N.E.) LTD,337005,"Health, Education, Care and Safeguarding",Public Health,112,Third Party Payments,505,Private Contractors,5042,Revenue,22.RESIDENTIAL
27/02/2018,1583270,4116.00,HOUSING BENEFIT,299992,Finance,Housing Services,108,Transfer Payments,506,Housing Benefits,5048,Revenue,00.NON INFLUENCIBLE
09/02/2018,1574132,4094.42,IMPARTIAL OUTCOMES (UK) LTD,391267,Commissioning & Investment,Children's & Education Services,103,Third Party Payments,505,Private Contractors,5042,Revenue,18.CONSULTANTS FEES
05/02/2018,1569384,4086.11,AKARI CARE HOMES LIMITED,387465,"Health, Education, Care and Safeguarding",Adult Social Care,101,Third Party Payments,505,Private Contractors,5042,Revenue,22.RESIDENTIAL
05/02/2018,1569144,4076.07,AGE UK NORTH TYNESIDE,334565,"Health, Education, Care and Safeguarding",Adult Social Care,101,Third Party Payments,505,Private Contractors,5042,Revenue,22.DAY CARE SERVICES
06/02/2018,1572110,4062.97,HOUSING BENEFIT,299992,Finance,Housing Services,108,Transfer Payments,506,Housing Benefits,5048,Revenue,00.NON INFLUENCIBLE
07/02/2018,1573763,4060.55,HESLEY GROUP LIMITED,008273,Commissioning & Investment,Children's & Education Services,103,Third Party Payments,505,Private Contractors,5042,Revenue,CHILDCARE
22/02/2018,20905,4050.00,DR C A BLOXHAM,394715,Law & Governance,Central Services,102,Third Party Payments,505,Health Authorities,5038,Revenue,00.DOCTORS/MEDICAL FEES
20/02/2018,1580383,4000.00,NORTH TYNESIDE BUSINESS FORUM CIC,390839,Business & Economic Development,Planning Services,110,Supplies and Services,504,Miscellaneous Expenses,5034,Revenue,18.CONFERENCING
02/02/2018,1568775,3987.19,BALFOUR BEATTY WORKPLACE LIMITED,389026,Chief Executive Office,Central Services,102,Third Party Payments,505,Private Contractors,5042,Revenue,HR PROFESS
26/02/2018,1581914,3969.00,INTERACTIVE DEVELOPMENT SUPPORT LIMITED,383543,"Health, Education, Care and Safeguarding",Adult Social Care,101,Third Party Payments,505,Other Establishments,5041,Revenue,22.SUPPORT SERVICES
16/02/2018,1576222,3966.60,DARLINGTON BOROUGH COUNCIL,316020,HR & Organisational Development,Central Services,102,Employees,501,Indirect Employee Expenses,5002,Revenue,00.PUBLIC SECTOR
16/02/2018,1576257,3966.60,NEWCASTLE CITY COUNCIL,014331,HR & Organisational Development,Central Services,102,Employees,501,Indirect Employee Expenses,5002,Revenue,00.PUBLIC SECTOR
16/02/2018,1576302,3966.60,GATESHEAD COUNCIL,231440,HR & Organisational Development,Central Services,102,Employees,501,Indirect Employee Expenses,5002,Revenue,00.PUBLIC SECTOR
27/02/2018,1585297,3965.05,HOUSING BENEFIT,299992,Finance,Housing Services,108,Transfer Payments,506,Housing Benefits,5048,Revenue,00.NON INFLUENCIBLE
27/02/2018,1585272,3942.36,HOUSING BENEFIT,299992,Finance,Housing Services,108,Transfer Payments,506,Housing Benefits,5048,Revenue,00.NON INFLUENCIBLE
23/02/2018,1581091,3915.19,DAISY COMMUNICATIONS PLC,390630,Commercial & Business Redesign,Central Services,102,Supplies and Services,504,Communications & Computing,5028,Revenue,TELECOM RENTALS
14/02/2018,1575828,3900.00,MCKECHNIES LIMITED,326115,HR & Organisational Development,Central Services,102,Supplies and Services,504,Contribution to Provisions,5033,Revenue,18.CONFERENCING
09/02/2018,1574231,3882.33,HOMECARE REFUNDS - BSS ONLY,384082,Housing Revenue Account,Housing Revenue Account,N/A,Supplies and Services,504,Miscellaneous Expenses,5034,Revenue,NON INDIVIDUAL
21/02/2018,1580616,3873.45,BALFOUR BEATTY WORKPLACE LIMITED,389026,Capital,Capital,Capital,Third Party Payments,505,Private Contractors,5042,Capital,HR PROFESS
22/02/2018,1580835,3872.58,STANNAH LIFT SERVICES LIMITED,102817,Capital,Capital,Capital,Third Party Payments,505,Private Contractors,5042,Capital,SOCIAL FITTED
26/02/2018,1582264,3862.42,NEPRO LIMITED,392147,Capital,Capital,Capital,Third Party Payments,505,Private Contractors,5042,Capital,18.CONSULTANTS FEES
19/02/2018,1576658,3851.59,AKARI CARE HOMES LIMITED,387465,"Health, Education, Care and Safeguarding",Adult Social Care,101,Third Party Payments,505,Private Contractors,5042,Revenue,22.RESIDENTIAL
22/02/2018,1580875,3835.00,CAPITA SYMONDS LTD,376582,Finance,Central Services,102,Third Party Payments,505,Private Contractors,5042,Revenue,02.BUILDING SERVICES
26/02/2018,20912,3833.43,NNDR,299990,General Fund Financing,Holding A/C,N/A,Excluded from General Fund,N/A,Collection Fund,N/A,Revenue,00.NON INFLUENCIBLE
16/02/2018,1576271,3808.00,METTA CONSTRUCTION,390429,Capital,Capital,Capital,Third Party Payments,505,Private Contractors,5042,Capital,REPAIR ADAPT
05/02/2018,1569805,3798.90,UNITED RESPONSE,330350,"Health, Education, Care and Safeguarding",Adult Social Care,101,Third Party Payments,505,Private Contractors,5042,Revenue,22.SUPPORT SERVICES
12/02/2018,1574659,3798.90,UNITED RESPONSE,330350,"Health, Education, Care and Safeguarding",Adult Social Care,101,Third Party Payments,505,Private Contractors,5042,Revenue,22.SUPPORT SERVICES
19/02/2018,1576978,3798.90,UNITED RESPONSE,330350,"Health, Education, Care and Safeguarding",Adult Social Care,101,Third Party Payments,505,Private Contractors,5042,Revenue,22.SUPPORT SERVICES
26/02/2018,1581586,3798.90,UNITED RESPONSE,330350,"Health, Education, Care and Safeguarding",Adult Social Care,101,Third Party Payments,505,Private Contractors,5042,Revenue,22.SUPPORT SERVICES
09/02/2018,1574270,3780.00,ST CUTHBERTS CARE,248775,"Health, Education, Care and Safeguarding",Children's & Education Services,103,Third Party Payments,505,Voluntary Associations,5040,Revenue,22.RESIDENTIAL
19/02/2018,1577073,3770.48,NORTH EAST CARE HOMES LIMITED,359922,"Health, Education, Care and Safeguarding",Adult Social Care,101,Third Party Payments,505,Private Contractors,5042,Revenue,22.RESIDENTIAL
06/02/2018,1569996,3769.28,HOUSING BENEFIT,299992,Finance,Housing Services,108,Transfer Payments,506,Housing Benefits,5048,Revenue,00.NON INFLUENCIBLE
27/02/2018,1584296,3769.28,HOUSING BENEFIT,299992,Finance,Housing Services,108,Transfer Payments,506,Housing Benefits,5048,Revenue,00.NON INFLUENCIBLE
01/02/2018,1568615,3758.98,HOUSING BENEFIT,299992,Finance,Housing Services,108,Transfer Payments,506,Housing Benefits,5048,Revenue,00.NON INFLUENCIBLE
05/02/2018,1569147,3757.14,ORANGE PCS LTD,345889,Commercial & Business Redesign,Central Services,102,Supplies and Services,504,Communications & Computing,5028,Revenue,25.MOBILE TELEPHONES
21/02/2018,1580717,3750.00,AGE UK NORTH TYNESIDE,334565,"Health, Education, Care and Safeguarding",Adult Social Care,101,Third Party Payments,505,Private Contractors,5042,Revenue,22.DAY CARE SERVICES
21/02/2018,1580646,3746.47,PRUDENTIAL,336770,Capital,General Fund,N/A,Capital,Capital,Capital,Capital,Capital,00.NON INFLUENCIBLE
19/02/2018,1577153,3725.93,NNDR,299990,General Fund Financing,Holding A/C,N/A,Excluded from General Fund,N/A,Collection Fund,N/A,Revenue,00.NON INFLUENCIBLE
12/02/2018,1574455,3720.34,NNDR,299990,General Fund Financing,Holding A/C,N/A,Excluded from General Fund,N/A,Collection Fund,N/A,Revenue,00.NON INFLUENCIBLE
21/02/2018,1580643,3720.00,HM REVENUE & CUSTOMS,361213,Law & Governance,Central Services,102,Income,509,Customer and Client Receipts,5064,Revenue,00.PUBLIC SECTOR
06/02/2018,1570013,3714.08,HOUSING BENEFIT,299992,Finance,Housing Services,108,Transfer Payments,506,Housing Benefits,5048,Revenue,00.NON INFLUENCIBLE
23/02/2018,1581043,3708.30,KEY ENTERPRISES (1983) LTD,011981,Commissioning & Investment,Cultural & Related Services,104,Third Party Payments,505,Private Contractors,5042,Revenue,22.DAY CARE SERVICES
05/02/2018,1568817,3697.28,HOUSING BENEFIT,299992,Finance,Housing Services,108,Transfer Payments,506,Housing Benefits,5048,Revenue,00.NON INFLUENCIBLE
27/02/2018,1585255,3670.44,HOUSING BENEFIT,299992,Finance,Housing Services,108,Transfer Payments,506,Housing Benefits,5048,Revenue,00.NON INFLUENCIBLE
27/02/2018,1582349,3635.08,HOUSING BENEFIT,299992,Finance,Housing Services,108,Transfer Payments,506,Housing Benefits,5048,Revenue,00.NON INFLUENCIBLE
02/02/2018,1568739,3631.43,TEAM FOSTERING,356875,"Health, Education, Care and Safeguarding",Children's & Education Services,103,Third Party Payments,505,Voluntary Associations,5040,Revenue,FOSTER CARE
07/02/2018,1573715,3631.34,FOSTER CARE SOLUTIONS LTD,334274,"Health, Education, Care and Safeguarding",Children's & Education Services,103,Third Party Payments,505,Voluntary Associations,5040,Revenue,FOSTER CARE
05/02/2018,1569805,3621.24,UNITED RESPONSE,330350,"Health, Education, Care and Safeguarding",Adult Social Care,101,Third Party Payments,505,Private Contractors,5042,Revenue,22.SUPPORT SERVICES
12/02/2018,1574659,3621.24,UNITED RESPONSE,330350,"Health, Education, Care and Safeguarding",Adult Social Care,101,Third Party Payments,505,Private Contractors,5042,Revenue,22.SUPPORT SERVICES
19/02/2018,1576978,3621.24,UNITED RESPONSE,330350,"Health, Education, Care and Safeguarding",Adult Social Care,101,Third Party Payments,505,Private Contractors,5042,Revenue,22.SUPPORT SERVICES
26/02/2018,1581586,3621.24,UNITED RESPONSE,330350,"Health, Education, Care and Safeguarding",Adult Social Care,101,Third Party Payments,505,Private Contractors,5042,Revenue,22.SUPPORT SERVICES
20/02/2018,1580403,3608.01,CLEVELAND POTASH LIMITED,388317,"Environment, Housing & Leisure",Highways & Transport Services,107,Supplies and Services,504,Miscellaneous Expenses,5034,Revenue,ROCK SALT
06/02/2018,1571703,3604.00,HOUSING BENEFIT,299992,Finance,Housing Services,108,Transfer Payments,506,Housing Benefits,5048,Revenue,00.NON INFLUENCIBLE
27/02/2018,1583233,3604.00,HOUSING BENEFIT,299992,Finance,Housing Services,108,Transfer Payments,506,Housing Benefits,5048,Revenue,00.NON INFLUENCIBLE
05/02/2018,1569805,3600.10,UNITED RESPONSE,330350,"Health, Education, Care and Safeguarding",Public Health,112,Third Party Payments,505,Private Contractors,5042,Revenue,22.SUPPORT SERVICES
12/02/2018,1574659,3600.10,UNITED RESPONSE,330350,"Health, Education, Care and Safeguarding",Public Health,112,Third Party Payments,505,Private Contractors,5042,Revenue,22.SUPPORT SERVICES
12/02/2018,1574659,3580.40,UNITED RESPONSE,330350,"Health, Education, Care and Safeguarding",Adult Social Care,101,Third Party Payments,505,Other Establishments,5041,Revenue,22.SUPPORT SERVICES
19/02/2018,1576978,3580.40,UNITED RESPONSE,330350,"Health, Education, Care and Safeguarding",Adult Social Care,101,Third Party Payments,505,Other Establishments,5041,Revenue,22.SUPPORT SERVICES
26/02/2018,1581586,3580.40,UNITED RESPONSE,330350,"Health, Education, Care and Safeguarding",Adult Social Care,101,Third Party Payments,505,Other Establishments,5041,Revenue,22.SUPPORT SERVICES
06/02/2018,1570335,3576.50,HOUSING BENEFIT,299992,Finance,Housing Services,108,Transfer Payments,506,Housing Benefits,5048,Revenue,00.NON INFLUENCIBLE
06/02/2018,1570253,3564.66,HOUSING BENEFIT,299992,Finance,Housing Services,108,Transfer Payments,506,Housing Benefits,5048,Revenue,00.NON INFLUENCIBLE
19/02/2018,1577355,3563.00,ALLCARE COMMUNITY CARE SERVICES TRAFFORD LTD,395563,"Health, Education, Care and Safeguarding",Adult Social Care,101,Third Party Payments,505,Other Establishments,5041,Revenue,22.HOMECARE
15/02/2018,1575986,3550.77,NHS PENSION SCHEME,389730,Capital,General Fund,N/A,Capital,Capital,Capital,Capital,Capital,00.NON INFLUENCIBLE
13/02/2018,1575325,3550.00,CC LEISURE SOLUTIONS LTD,395411,HR & Organisational Development,Children's & Education Services,103,Third Party Payments,505,Private Contractors,5042,Revenue,18.CONFERENCING
20/02/2018,1580415,3550.00,MY PERFORMANCE FACTORY,385783,"Health, Education, Care and Safeguarding",Children's & Education Services,103,Third Party Payments,505,Other Establishments,5041,Revenue,18.CONFERENCING
01/02/2018,1568725,3520.00,HOWARD HOUSE CARE LIMITED,358471,"Health, Education, Care and Safeguarding",Children's & Education Services,103,Third Party Payments,505,Private Contractors,5042,Revenue,22.RESIDENTIAL
09/02/2018,1574275,3520.00,HOWARD HOUSE CARE LIMITED,358471,"Health, Education, Care and Safeguarding",Children's & Education Services,103,Third Party Payments,505,Private Contractors,5042,Revenue,22.RESIDENTIAL
12/02/2018,1575198,3520.00,HOWARD HOUSE CARE LIMITED,358471,"Health, Education, Care and Safeguarding",Children's & Education Services,103,Third Party Payments,505,Private Contractors,5042,Revenue,22.RESIDENTIAL
23/02/2018,1581058,3520.00,HOWARD HOUSE CARE LIMITED,358471,"Health, Education, Care and Safeguarding",Children's & Education Services,103,Third Party Payments,505,Private Contractors,5042,Revenue,22.RESIDENTIAL
22/02/2018,1580896,3000.00,CCATS LTD,393916,"Health, Education, Care and Safeguarding",Children's & Education Services,103,Third Party Payments,505,Private Contractors,5042,Revenue,22.SUPPORT SERVICES
07/02/2018,1573767,3000.00,CBS OUTDOOR LIMITED,372133,Corporate Strategy,Central Services,102,Supplies and Services,504,"Printing, Stationery and General Office Expenses",5026,Revenue,16.ADVERTISING
28/02/2018,1586743,3000.00,BARNSLEY MET BOROUGH COUNCIL,107974,Finance,Central Services,102,Supplies and Services,504,Grants and Subscriptions,5031,Revenue,18.SUBSCRIPTIONS
08/02/2018,1574066,2990.48,CAPITA SYMONDS LTD,376582,Capital,Capital,Capital,Third Party Payments,505,Private Contractors,5042,Capital,02.BUILDING SERVICES
14/02/2018,1575712,2988.00,KIER NORTH TYNESIDE LIMITED,383278,Commissioning & Investment,Children's & Education Services,103,Third Party Payments,505,Private Contractors,5042,Revenue,02.BUILDING SERVICES
06/02/2018,1570222,2985.36,HOUSING BENEFIT,299992,Finance,Housing Services,108,Transfer Payments,506,Housing Benefits,5048,Revenue,00.NON INFLUENCIBLE
19/02/2018,1577424,2981.00,HOMECARE REFUNDS - BSS ONLY,384082,Housing Revenue Account,Housing Revenue Account,N/A,Supplies and Services,504,Miscellaneous Expenses,5034,Revenue,NON INDIVIDUAL
05/02/2018,1569489,2977.80,COQUET TRUST,347369,"Health, Education, Care and Safeguarding",Adult Social Care,101,Third Party Payments,505,Private Contractors,5042,Revenue,22.RESIDENTIAL
12/02/2018,1574795,2977.80,COQUET TRUST,347369,"Health, Education, Care and Safeguarding",Adult Social Care,101,Third Party Payments,505,Private Contractors,5042,Revenue,22.RESIDENTIAL
19/02/2018,1576761,2977.80,COQUET TRUST,347369,"Health, Education, Care and Safeguarding",Adult Social Care,101,Third Party Payments,505,Private Contractors,5042,Revenue,22.RESIDENTIAL
26/02/2018,1581894,2977.80,COQUET TRUST,347369,"Health, Education, Care and Safeguarding",Adult Social Care,101,Third Party Payments,505,Private Contractors,5042,Revenue,22.RESIDENTIAL
21/02/2018,1580750,2971.98,BLUE LINE TAXIS,002700,"Health, Education, Care and Safeguarding",Children's & Education Services,103,Supplies and Services,504,Expenses,5030,Revenue,26.TAXIS
21/02/2018,1580750,2971.98,BLUE LINE TAXIS,002700,"Health, Education, Care and Safeguarding",Children's & Education Services,103,Supplies and Services,504,Expenses,5030,Revenue,26.TAXIS
28/02/2018,1586732,2971.46,GMB,318434,Capital,General Fund,N/A,Capital,Capital,Capital,Capital,Capital,00.NON INFLUENCIBLE
23/02/2018,1581058,3520.00,HOWARD HOUSE CARE LIMITED,358471,"Health, Education, Care and Safeguarding",Children's & Education Services,103,Third Party Payments,505,Private Contractors,5042,Revenue,22.RESIDENTIAL
09/02/2018,1574276,3514.20,FOSTER CARE ASSOCIATES LIMITED,343163,"Health, Education, Care and Safeguarding",Children's & Education Services,103,Third Party Payments,505,Voluntary Associations,5040,Revenue,FOSTER CARE
22/02/2018,1580827,3500.00,GREENLAY (GRASS MACHINERY) LTD,337595,"Environment, Housing & Leisure",Cultural & Related Services,104,Transport,503,Direct Transport Costs,5016,Revenue,13.EQUIPMENT
22/02/2018,1580827,3500.00,GREENLAY (GRASS MACHINERY) LTD,337595,"Environment, Housing & Leisure",Cultural & Related Services,104,Transport,503,Direct Transport Costs,5016,Revenue,13.EQUIPMENT
22/02/2018,1580827,3500.00,GREENLAY (GRASS MACHINERY) LTD,337595,"Environment, Housing & Leisure",Cultural & Related Services,104,Transport,503,Direct Transport Costs,5016,Revenue,13.EQUIPMENT
06/02/2018,1573610,3495.00,PROSPECT BUILDERS,337901,Capital,Capital,Capital,Third Party Payments,505,Private Contractors,5042,Capital,REPAIR ADAPT
06/02/2018,1570212,3493.78,HOUSING BENEFIT,299992,Finance,Housing Services,108,Transfer Payments,506,Housing Benefits,5048,Revenue,00.NON INFLUENCIBLE
22/02/2018,1580901,3492.00,JMH SOLUTIONS LIMITED,391914,"Environment, Housing & Leisure",Cultural & Related Services,104,Third Party Payments,505,Private Contractors,5042,Revenue,16.EVENTS & PROMOTIONS
27/02/2018,1586165,3490.15,TERBERG MATEC UK LTD,326651,Central Items,Holding A/C,N/A,Transport,503,Direct Transport Costs,5016,Revenue,28.VEHICLE PARTS
06/02/2018,1573573,3484.00,DAC BEACHCROFT LLP,390542,Central Items,Holding A/C,N/A,Supplies and Services,504,Miscellaneous Expenses,5034,Revenue,09.FINANCIAL SERVICES
21/02/2018,1580754,3480.00,PROSPECT BUILDERS,337901,Capital,Capital,Capital,Third Party Payments,505,Private Contractors,5042,Capital,REPAIR ADAPT
28/02/2018,1586682,3475.00,BEACON HILL SCHOOL,369795,"Health, Education, Care and Safeguarding",Adult Social Care,101,Supplies and Services,504,"Printing, Stationery and General Office Expenses",5026,Revenue,00.NT SCHOOLS
06/02/2018,1572122,3472.20,HOUSING BENEFIT,299992,Finance,Housing Services,108,Transfer Payments,506,Housing Benefits,5048,Revenue,00.NON INFLUENCIBLE
20/02/2018,1580335,3464.46,HM REVENUE & CUSTOMS,361213,Capital,General Fund,N/A,Capital,Capital,Capital,Capital,Capital,00.PUBLIC SECTOR
21/02/2018,1580647,3451.75,FOREST HALL PRIMARY SCHOOL,104638,Capital,Capital,Capital,Capital Expenditure,Capital,Capital Expenditure,Capital,Capital,00.NT SCHOOLS
05/02/2018,1569677,3448.06,Redacted Personal Data,395596,"Health, Education, Care and Safeguarding",Adult Social Care,101,Third Party Payments,505,Other Establishments,5041,Revenue,NON INDIVIDUAL
05/02/2018,1569602,3428.57,Redacted Personal Data,395697,"Health, Education, Care and Safeguarding",Adult Social Care,101,Third Party Payments,505,Other Establishments,5041,Revenue,NON INDIVIDUAL
02/02/2018,1568784,3401.89,BIBLIOTHECA,388028,"Environment, Housing & Leisure",Cultural & Related Services,104,Supplies and Services,504,Equipment,5023,Revenue,15.HARDWARE
08/02/2018,1573997,3389.75,NHC NHS FOUNDATION TRUST,317869,"Health, Education, Care and Safeguarding",Public Health,112,Supplies and Services,504,"Printing, Stationery and General Office Expenses",5026,Revenue,PUB HEALTH.PUBLIC HEALTH
01/02/2018,1568632,3383.36,HOUSING BENEFIT,299992,Finance,Housing Services,108,Transfer Payments,506,Housing Benefits,5048,Revenue,00.NON INFLUENCIBLE
26/02/2018,1581605,3381.28,CREATIVE SUPPORT LTD,359340,"Health, Education, Care and Safeguarding",Adult Social Care,101,Third Party Payments,505,Private Contractors,5042,Revenue,22.HOMECARE
09/02/2018,1574099,3379.64,CAPITA SYMONDS LTD,376582,Capital,Capital,Capital,Third Party Payments,505,Private Contractors,5042,Capital,02.BUILDING SERVICES
09/02/2018,1574203,3365.98,A1 FOSTER CARE,395223,"Health, Education, Care and Safeguarding",Children's & Education Services,103,Third Party Payments,505,Voluntary Associations,5040,Revenue,CHILDCARE
20/02/2018,1580416,3365.00,HM REVENUE & CUSTOMS,361213,Capital,General Fund,N/A,Capital,Capital,Capital,Capital,Capital,00.PUBLIC SECTOR
20/02/2018,1580275,3354.20,HM REVENUE & CUSTOMS,361213,Capital,General Fund,N/A,Capital,Capital,Capital,Capital,Capital,00.PUBLIC SECTOR
08/02/2018,1574062,3351.24,EVERLASTING CARE LTD,363743,"Health, Education, Care and Safeguarding",Adult Social Care,101,Third Party Payments,505,Other Establishments,5041,Revenue,22.HOMECARE
08/02/2018,1574062,3351.24,EVERLASTING CARE LTD,363743,"Health, Education, Care and Safeguarding",Public Health,112,Third Party Payments,505,Private Contractors,5042,Revenue,22.HOMECARE
05/02/2018,1569805,3306.00,UNITED RESPONSE,330350,"Health, Education, Care and Safeguarding",Adult Social Care,101,Third Party Payments,505,Private Contractors,5042,Revenue,22.SUPPORT SERVICES
12/02/2018,1574659,3306.00,UNITED RESPONSE,330350,"Health, Education, Care and Safeguarding",Adult Social Care,101,Third Party Payments,505,Private Contractors,5042,Revenue,22.SUPPORT SERVICES
19/02/2018,1576978,3306.00,UNITED RESPONSE,330350,"Health, Education, Care and Safeguarding",Adult Social Care,101,Third Party Payments,505,Private Contractors,5042,Revenue,22.SUPPORT SERVICES
26/02/2018,1581586,3306.00,UNITED RESPONSE,330350,"Health, Education, Care and Safeguarding",Adult Social Care,101,Third Party Payments,505,Private Contractors,5042,Revenue,22.SUPPORT SERVICES
21/02/2018,1580717,3302.50,AGE UK NORTH TYNESIDE,334565,"Health, Education, Care and Safeguarding",Adult Social Care,101,Third Party Payments,505,Private Contractors,5042,Revenue,22.DAY CARE SERVICES
05/02/2018,1569769,3291.20,NEW BEGINNINGS (N.E.) LTD,337005,"Health, Education, Care and Safeguarding",Adult Social Care,101,Third Party Payments,505,Other Establishments,5041,Revenue,22.RESIDENTIAL
12/02/2018,1575116,3291.20,NEW BEGINNINGS (N.E.) LTD,337005,"Health, Education, Care and Safeguarding",Adult Social Care,101,Third Party Payments,505,Other Establishments,5041,Revenue,22.RESIDENTIAL
19/02/2018,1577042,3291.20,NEW BEGINNINGS (N.E.) LTD,337005,"Health, Education, Care and Safeguarding",Adult Social Care,101,Third Party Payments,505,Other Establishments,5041,Revenue,22.RESIDENTIAL
26/02/2018,1581502,3291.20,NEW BEGINNINGS (N.E.) LTD,337005,"Health, Education, Care and Safeguarding",Adult Social Care,101,Third Party Payments,505,Other Establishments,5041,Revenue,22.RESIDENTIAL
06/02/2018,1570092,3284.64,HOUSING BENEFIT,299992,Finance,Housing Services,108,Transfer Payments,506,Housing Benefits,5048,Revenue,00.NON INFLUENCIBLE
27/02/2018,1583326,3284.64,HOUSING BENEFIT,299992,Finance,Housing Services,108,Transfer Payments,506,Housing Benefits,5048,Revenue,00.NON INFLUENCIBLE
27/02/2018,1586275,3283.00,MONKSEATON MIDDLE SCHOOL,253420,Capital,Capital,Capital,Capital Expenditure,Capital,Capital Expenditure,Capital,Capital,00.NT SCHOOLS
28/02/2018,1586683,3281.00,BEACON HILL SCHOOL,369795,"Health, Education, Care and Safeguarding",Adult Social Care,101,Supplies and Services,504,"Printing, Stationery and General Office Expenses",5026,Revenue,00.NT SCHOOLS
07/02/2018,1573748,3279.92,FUTURES FOR CHILDREN,382262,"Health, Education, Care and Safeguarding",Children's & Education Services,103,Third Party Payments,505,Voluntary Associations,5040,Revenue,CHILDCARE
08/02/2018,1573995,3279.92,FOSTER CARE ASSOCIATES LIMITED,343163,"Health, Education, Care and Safeguarding",Children's & Education Services,103,Third Party Payments,505,Voluntary Associations,5040,Revenue,FOSTER CARE
09/02/2018,1574276,3279.92,FOSTER CARE ASSOCIATES LIMITED,343163,"Health, Education, Care and Safeguarding",Children's & Education Services,103,Third Party Payments,505,Voluntary Associations,5040,Revenue,FOSTER CARE
23/02/2018,1581079,3279.92,THE FOSTERING COMPANY NE LTD,392778,"Health, Education, Care and Safeguarding",Children's & Education Services,103,Third Party Payments,505,Voluntary Associations,5040,Revenue,FOSTER CARE
23/02/2018,1581079,3279.02,THE FOSTERING COMPANY NE LTD,392778,"Health, Education, Care and Safeguarding",Children's & Education Services,103,Third Party Payments,505,Voluntary Associations,5040,Revenue,FOSTER CARE
05/02/2018,1569736,3273.27,THE DAVID LEWIS CENTRE,390402,"Health, Education, Care and Safeguarding",Adult Social Care,101,Third Party Payments,505,Private Contractors,5042,Revenue,18.CONFERENCING
12/02/2018,1574689,3273.27,THE DAVID LEWIS CENTRE,390402,"Health, Education, Care and Safeguarding",Adult Social Care,101,Third Party Payments,505,Private Contractors,5042,Revenue,18.CONFERENCING
19/02/2018,1577008,3273.27,THE DAVID LEWIS CENTRE,390402,"Health, Education, Care and Safeguarding",Adult Social Care,101,Third Party Payments,505,Private Contractors,5042,Revenue,18.CONFERENCING
26/02/2018,1581566,3273.27,THE DAVID LEWIS CENTRE,390402,"Health, Education, Care and Safeguarding",Adult Social Care,101,Third Party Payments,505,Private Contractors,5042,Revenue,18.CONFERENCING
19/02/2018,1576658,3270.21,AKARI CARE HOMES LIMITED,387465,"Health, Education, Care and Safeguarding",Adult Social Care,101,Third Party Payments,505,Private Contractors,5042,Revenue,22.RESIDENTIAL
12/02/2018,1574726,3270.21,AKARI CARE HOMES LIMITED,387465,"Health, Education, Care and Safeguarding",Adult Social Care,101,Third Party Payments,505,Private Contractors,5042,Revenue,22.RESIDENTIAL
27/02/2018,1585214,3265.12,HOUSING BENEFIT,299992,Finance,Housing Services,108,Transfer Payments,506,Housing Benefits,5048,Revenue,00.NON INFLUENCIBLE
09/02/2018,1574109,3265.00,TROWERS & HAMLINS,366438,Housing Revenue Account,Housing Services,108,Third Party Payments,505,Private Contractors,5042,Revenue,16.LEGAL SERVICES
06/02/2018,1572112,3263.32,HOUSING BENEFIT,299992,Finance,Housing Services,108,Transfer Payments,506,Housing Benefits,5048,Revenue,00.NON INFLUENCIBLE
27/02/2018,1584430,3263.32,HOUSING BENEFIT,299992,Finance,Housing Services,108,Transfer Payments,506,Housing Benefits,5048,Revenue,00.NON INFLUENCIBLE
02/02/2018,1568755,3251.19,SIMUL LTD,396243,"Health, Education, Care and Safeguarding",Children's & Education Services,103,Third Party Payments,505,Private Contractors,5042,Revenue,18.CONSULTANTS FEES
06/02/2018,1570199,3237.85,HOUSING BENEFIT,299992,Finance,Housing Services,108,Transfer Payments,506,Housing Benefits,5048,Revenue,00.NON INFLUENCIBLE
09/02/2018,1574167,3232.99,NATIONAL FOSTERING AGENCY,391412,"Health, Education, Care and Safeguarding",Children's & Education Services,103,Third Party Payments,505,Voluntary Associations,5040,Revenue,FOSTER CARE
08/02/2018,1573979,3232.86,TEAM FOSTERING,356875,"Health, Education, Care and Safeguarding",Children's & Education Services,103,Third Party Payments,505,Voluntary Associations,5040,Revenue,FOSTER CARE
09/02/2018,1574243,3229.00,HOLYSTONE PRIMARY SCHOOL,301426,Capital,Capital,Capital,Capital Expenditure,Capital,Capital Expenditure,Capital,Capital,00.NT SCHOOLS
19/02/2018,1577095,3223.93,ROSEMOUNT - FOUR SEASONS HEALTH CARE,300716,"Health, Education, Care and Safeguarding",Public Health,112,Third Party Payments,505,Other Establishments,5041,Revenue,22.RESIDENTIAL
22/02/2018,1580817,3200.30,HOUSING BENEFIT,299992,Finance,Housing Services,108,Transfer Payments,506,Housing Benefits,5048,Revenue,00.NON INFLUENCIBLE
13/02/2018,1575323,3200.00,GREENFIELDS COMMUNITY PRIMARY SCHOOL,276825,"Health, Education, Care and Safeguarding",Children's & Education Services,103,Third Party Payments,505,Independent Units within the Council,5035,Revenue,00.NT SCHOOLS
27/02/2018,1582347,3200.00,HOUSING BENEFIT,299992,Finance,Housing Services,108,Transfer Payments,506,Housing Benefits,5048,Revenue,00.NON INFLUENCIBLE
06/02/2018,1570125,3199.12,HOUSING BENEFIT,299992,Finance,Housing Services,108,Transfer Payments,506,Housing Benefits,5048,Revenue,00.NON INFLUENCIBLE
27/02/2018,1583293,3197.12,HOUSING BENEFIT,299992,Finance,Housing Services,108,Transfer Payments,506,Housing Benefits,5048,Revenue,00.NON INFLUENCIBLE
12/02/2018,1574288,3163.76,HOUSING BENEFIT,299992,Finance,Housing Services,108,Transfer Payments,506,Housing Benefits,5048,Revenue,00.NON INFLUENCIBLE
15/02/2018,1575886,3153.36,HOUSING BENEFIT,299992,Finance,Housing Services,108,Transfer Payments,506,Housing Benefits,5048,Revenue,00.NON INFLUENCIBLE
05/02/2018,1568921,3145.50,NNDR,299990,General Fund Financing,Holding A/C,N/A,Excluded from General Fund,N/A,Collection Fund,N/A,Revenue,00.NON INFLUENCIBLE
05/02/2018,1569151,3128.70,NATIONAL FOSTERING AGENCY,391412,"Health, Education, Care and Safeguarding",Children's & Education Services,103,Third Party Payments,505,Voluntary Associations,5040,Revenue,FOSTER CARE
16/02/2018,1576275,3127.14,NNT LIFT COMPANY (FUNDCO 1) LIMITED,376424,"Environment, Housing & Leisure",Cultural & Related Services,104,Third Party Payments,505,Private Contractors,5042,Revenue,02.BUILDING SERVICES
16/02/2018,1576268,3113.75,KAJIMA NORTH TYNESIDE LTD,356854,Capital,Capital,Capital,Third Party Payments,505,Private Contractors,5042,Capital,02.BUILDING SERVICES
21/02/2018,1580728,3060.00,TYNEMOUTH VILLAGE DAY CENTRE,101190,"Health, Education, Care and Safeguarding",Adult Social Care,101,Third Party Payments,505,Private Contractors,5042,Revenue,22.DAY CARE SERVICES
12/02/2018,20777,3049.57,NNDR,299990,General Fund Financing,Holding A/C,N/A,Excluded from General Fund,N/A,Collection Fund,N/A,Revenue,00.NON INFLUENCIBLE
09/02/2018,1574276,3039.96,FOSTER CARE ASSOCIATES LIMITED,343163,"Health, Education, Care and Safeguarding",Children's & Education Services,103,Third Party Payments,505,Voluntary Associations,5040,Revenue,FOSTER CARE
27/02/2018,1584344,3038.76,HOUSING BENEFIT,299992,Finance,Housing Services,108,Transfer Payments,506,Housing Benefits,5048,Revenue,00.NON INFLUENCIBLE
05/02/2018,1569720,3025.96,Redacted Personal Data,353764,"Health, Education, Care and Safeguarding",Adult Social Care,101,Third Party Payments,505,Other Establishments,5041,Revenue,NON INDIVIDUAL
12/02/2018,1574674,3025.96,Redacted Personal Data,353764,"Health, Education, Care and Safeguarding",Adult Social Care,101,Third Party Payments,505,Other Establishments,5041,Revenue,NON INDIVIDUAL
19/02/2018,1576993,3025.96,Redacted Personal Data,353764,"Health, Education, Care and Safeguarding",Adult Social Care,101,Third Party Payments,505,Other Establishments,5041,Revenue,NON INDIVIDUAL
26/02/2018,1581600,3025.96,Redacted Personal Data,353764,"Health, Education, Care and Safeguarding",Adult Social Care,101,Third Party Payments,505,Other Establishments,5041,Revenue,NON INDIVIDUAL
09/02/2018,1574105,3022.50,LISCARE LIMITED,387941,"Health, Education, Care and Safeguarding",Adult Social Care,101,Supplies and Services,504,Equipment,5023,Revenue,SOCIAL SUPP
06/02/2018,1573559,3017.05,ISS FACILITY SERVICES - LANDSCAPING,386557,"Environment, Housing & Leisure",Cultural & Related Services,104,Premises-Related Expenditure,502,"Repairs, alterations and maintenance of buildings",5005,Revenue,12.LANDSCAPING
22/02/2018,1580873,3010.00,Redacted Personal Data,389327,"Health, Education, Care and Safeguarding",Children's & Education Services,103,Third Party Payments,505,Other Establishments,5041,Revenue,18.CONFERENCING
05/02/2018,1569153,3004.60,SINGISETTI SRINIVAS LIMITED,391324,"Health, Education, Care and Safeguarding",Adult Social Care,101,Supplies and Services,504,Miscellaneous Expenses,5034,Revenue,00.DOCTORS/MEDICAL FEES
13/02/2018,1575325,3000.00,CC LEISURE SOLUTIONS LTD,395411,HR & Organisational Development,Children's & Education Services,103,Third Party Payments,505,Private Contractors,5042,Revenue,18.CONFERENCING
14/02/2018,1575613,3000.00,NORTH TYNESIDE BUSINESS FORUM CIC,390839,Business & Economic Development,Planning Services,110,Income,509,"Other Grants, Reimbursements & Contributions",5063,Revenue,18.CONFERENCING
07/02/2018,1573718,2965.81,IMPARTIAL OUTCOMES (UK) LTD,391267,"Environment, Housing & Leisure",Highways & Transport Services,107,Supplies and Services,504,Miscellaneous Expenses,5034,Revenue,18.CONSULTANTS FEES
06/02/2018,1571864,2960.00,HOUSING BENEFIT,299992,Finance,Housing Services,108,Transfer Payments,506,Housing Benefits,5048,Revenue,00.NON INFLUENCIBLE
28/02/2018,1586742,2950.50,CO-OP FUNERALCARE,003108,"Health, Education, Care and Safeguarding",Adult Social Care,101,Supplies and Services,504,"Printing, Stationery and General Office Expenses",5026,Revenue,ENVIRO SERVICES
08/02/2018,1574070,2950.00,GEORGE STEPHENSON HIGH SCHOOL,007493,"Health, Education, Care and Safeguarding",Children's & Education Services,103,Third Party Payments,505,Independent Units within the Council,5035,Revenue,00.NT SCHOOLS
06/02/2018,1571866,2936.32,HOUSING BENEFIT,299992,Finance,Housing Services,108,Transfer Payments,506,Housing Benefits,5048,Revenue,00.NON INFLUENCIBLE
12/02/2018,1574534,2932.75,Redacted Personal Data,396115,"Health, Education, Care and Safeguarding",Adult Social Care,101,Third Party Payments,505,Other Establishments,5041,Revenue,00.NON INFLUENCIBLE
08/02/2018,1573885,2925.00,STANNAH LIFT SERVICES LIMITED,102817,Capital,Capital,Capital,Third Party Payments,505,Private Contractors,5042,Capital,SOCIAL FITTED
07/02/2018,1573748,2920.12,FUTURES FOR CHILDREN,382262,"Health, Education, Care and Safeguarding",Children's & Education Services,103,Third Party Payments,505,Voluntary Associations,5040,Revenue,CHILDCARE
27/02/2018,1586175,2920.00,NORTH EAST AUTISM SOCIETY,329004,Commissioning & Investment,Children's & Education Services,103,Transport,503,Recharges,5017,Revenue,22.SUPPORT SERVICES
23/02/2018,1581045,2920.00,BARNARDO'S,029324,"Health, Education, Care and Safeguarding",Children's & Education Services,103,Third Party Payments,505,Voluntary Associations,5040,Revenue,22.SUPPORT SERVICES
07/02/2018,1573690,2919.84,Redacted Personal Data,394907,"Health, Education, Care and Safeguarding",Children's & Education Services,103,Third Party Payments,505,Voluntary Associations,5040,Revenue,FOSTER CARE
09/02/2018,1574276,2919.84,FOSTER CARE ASSOCIATES LIMITED,343163,"Health, Education, Care and Safeguarding",Children's & Education Services,103,Third Party Payments,505,Voluntary Associations,5040,Revenue,FOSTER CARE
09/02/2018,1574276,2919.84,FOSTER CARE ASSOCIATES LIMITED,343163,"Health, Education, Care and Safeguarding",Children's & Education Services,103,Third Party Payments,505,Voluntary Associations,5040,Revenue,FOSTER CARE
09/02/2018,1574276,2919.84,FOSTER CARE ASSOCIATES LIMITED,343163,"Health, Education, Care and Safeguarding",Children's & Education Services,103,Third Party Payments,505,Voluntary Associations,5040,Revenue,FOSTER CARE
05/02/2018,1569579,2919.65,Redacted Personal Data,387631,"Health, Education, Care and Safeguarding",Adult Social Care,101,Third Party Payments,505,Other Establishments,5041,Revenue,NON INDIVIDUAL
12/02/2018,1574907,2919.65,Redacted Personal Data,387631,"Health, Education, Care and Safeguarding",Adult Social Care,101,Third Party Payments,505,Other Establishments,5041,Revenue,NON INDIVIDUAL
19/02/2018,1576848,2919.65,Redacted Personal Data,387631,"Health, Education, Care and Safeguarding",Adult Social Care,101,Third Party Payments,505,Other Establishments,5041,Revenue,NON INDIVIDUAL
26/02/2018,1581402,2919.65,Redacted Personal Data,387631,"Health, Education, Care and Safeguarding",Adult Social Care,101,Third Party Payments,505,Other Establishments,5041,Revenue,NON INDIVIDUAL
06/02/2018,1571828,2918.00,HOUSING BENEFIT,299992,Finance,Housing Services,108,Transfer Payments,506,Housing Benefits,5048,Revenue,00.NON INFLUENCIBLE
20/02/2018,1580331,2917.00,HM REVENUE & CUSTOMS,361213,Capital,General Fund,N/A,Capital,Capital,Capital,Capital,Capital,00.PUBLIC SECTOR
27/02/2018,1585251,2913.97,HOUSING BENEFIT,299992,Finance,Housing Services,108,Transfer Payments,506,Housing Benefits,5048,Revenue,00.NON INFLUENCIBLE
05/02/2018,1569805,2909.28,UNITED RESPONSE,330350,"Health, Education, Care and Safeguarding",Adult Social Care,101,Third Party Payments,505,Other Establishments,5041,Revenue,22.SUPPORT SERVICES
12/02/2018,1574659,2909.28,UNITED RESPONSE,330350,"Health, Education, Care and Safeguarding",Adult Social Care,101,Third Party Payments,505,Other Establishments,5041,Revenue,22.SUPPORT SERVICES
19/02/2018,1576978,2909.28,UNITED RESPONSE,330350,"Health, Education, Care and Safeguarding",Adult Social Care,101,Third Party Payments,505,Other Establishments,5041,Revenue,22.SUPPORT SERVICES
05/02/2018,1569732,2900.85,NEW PROSPECTS ASSOCIATION LIMITED,203069,"Health, Education, Care and Safeguarding",Public Health,112,Third Party Payments,505,Private Contractors,5042,Revenue,22.DAY CARE SERVICES
12/02/2018,1574685,2900.85,NEW PROSPECTS ASSOCIATION LIMITED,203069,"Health, Education, Care and Safeguarding",Public Health,112,Third Party Payments,505,Private Contractors,5042,Revenue,22.DAY CARE SERVICES
19/02/2018,1577004,2900.85,NEW PROSPECTS ASSOCIATION LIMITED,203069,"Health, Education, Care and Safeguarding",Public Health,112,Third Party Payments,505,Private Contractors,5042,Revenue,22.DAY CARE SERVICES
26/02/2018,1581562,2900.85,NEW PROSPECTS ASSOCIATION LIMITED,203069,"Health, Education, Care and Safeguarding",Public Health,112,Third Party Payments,505,Private Contractors,5042,Revenue,22.DAY CARE SERVICES
05/02/2018,1569229,2900.00,Redacted Personal Data,381403,"Health, Education, Care and Safeguarding",Adult Social Care,101,Third Party Payments,505,Other Establishments,5041,Revenue,NON INDIVIDUAL
12/02/2018,1574871,2900.00,Redacted Personal Data,381403,"Health, Education, Care and Safeguarding",Adult Social Care,101,Third Party Payments,505,Other Establishments,5041,Revenue,NON INDIVIDUAL
19/02/2018,1576558,2900.00,Redacted Personal Data,381403,"Health, Education, Care and Safeguarding",Adult Social Care,101,Third Party Payments,505,Other Establishments,5041,Revenue,NON INDIVIDUAL
26/02/2018,1581316,2900.00,Redacted Personal Data,381403,"Health, Education, Care and Safeguarding",Adult Social Care,101,Third Party Payments,505,Other Establishments,5041,Revenue,NON INDIVIDUAL
15/02/2018,1576058,2898.00,CARE OUTCOMES UK LTD,390953,"Health, Education, Care and Safeguarding",Adult Social Care,101,Third Party Payments,505,Private Contractors,5042,Revenue,22.HOMECARE
01/02/2018,1568694,2897.21,BALFOUR BEATTY WORKPLACE LIMITED,389026,HR & Organisational Development,Central Services,102,Third Party Payments,505,Private Contractors,5042,Revenue,HR PROFESS
28/02/2018,1586826,2897.21,BALFOUR BEATTY WORKPLACE LIMITED,389026,HR & Organisational Development,Central Services,102,Third Party Payments,505,Private Contractors,5042,Revenue,HR PROFESS
13/02/2018,1575339,2883.00,METTA CONSTRUCTION,390429,Capital,Capital,Capital,Third Party Payments,505,Private Contractors,5042,Capital,REPAIR ADAPT
27/02/2018,1583451,2861.20,HOUSING BENEFIT,299992,Finance,Housing Services,108,Transfer Payments,506,Housing Benefits,5048,Revenue,00.NON INFLUENCIBLE
05/02/2018,1569509,2859.17,ROSEBERRY CARE CENTRES,387541,"Health, Education, Care and Safeguarding",Adult Social Care,101,Third Party Payments,505,Private Contractors,5042,Revenue,22.RESIDENTIAL
05/02/2018,1569793,2846.15,NORTH EAST AUTISM SOCIETY,329004,"Health, Education, Care and Safeguarding",Adult Social Care,101,Third Party Payments,505,Private Contractors,5042,Revenue,22.SUPPORT SERVICES
12/02/2018,1575140,2846.15,NORTH EAST AUTISM SOCIETY,329004,"Health, Education, Care and Safeguarding",Adult Social Care,101,Third Party Payments,505,Private Contractors,5042,Revenue,22.SUPPORT SERVICES
19/02/2018,1576779,2846.15,NORTH EAST AUTISM SOCIETY,329004,"Health, Education, Care and Safeguarding",Adult Social Care,101,Third Party Payments,505,Private Contractors,5042,Revenue,22.SUPPORT SERVICES
26/02/2018,1581520,2846.15,NORTH EAST AUTISM SOCIETY,329004,"Health, Education, Care and Safeguarding",Adult Social Care,101,Third Party Payments,505,Private Contractors,5042,Revenue,22.SUPPORT SERVICES
06/02/2018,1570192,2829.68,HOUSING BENEFIT,299992,Finance,Housing Services,108,Transfer Payments,506,Housing Benefits,5048,Revenue,00.NON INFLUENCIBLE
27/02/2018,1584388,2829.68,HOUSING BENEFIT,299992,Finance,Housing Services,108,Transfer Payments,506,Housing Benefits,5048,Revenue,00.NON INFLUENCIBLE
05/02/2018,1569452,2825.00,LIFEWAYS COMMUNITY CARE LTD,385849,"Health, Education, Care and Safeguarding",Adult Social Care,101,Third Party Payments,505,Private Contractors,5042,Revenue,22.SUPPORT SERVICES
12/02/2018,1575092,2825.00,LIFEWAYS COMMUNITY CARE LTD,385849,"Health, Education, Care and Safeguarding",Adult Social Care,101,Third Party Payments,505,Private Contractors,5042,Revenue,22.SUPPORT SERVICES
19/02/2018,1576724,2825.00,LIFEWAYS COMMUNITY CARE LTD,385849,"Health, Education, Care and Safeguarding",Adult Social Care,101,Third Party Payments,505,Private Contractors,5042,Revenue,22.SUPPORT SERVICES
26/02/2018,1581432,2825.00,LIFEWAYS COMMUNITY CARE LTD,385849,"Health, Education, Care and Safeguarding",Adult Social Care,101,Third Party Payments,505,Private Contractors,5042,Revenue,22.SUPPORT SERVICES
05/02/2018,1569054,2820.00,DEAFBLIND ENABLEMENT LTD,390700,"Health, Education, Care and Safeguarding",Adult Social Care,101,Third Party Payments,505,Other Establishments,5041,Revenue,22.SUPPORT SERVICES
28/02/2018,1586839,2820.00,DEAFBLIND ENABLEMENT LTD,390700,"Health, Education, Care and Safeguarding",Adult Social Care,101,Third Party Payments,505,Other Establishments,5041,Revenue,22.SUPPORT SERVICES
27/02/2018,1583241,2817.90,HOUSING BENEFIT,299992,Finance,Housing Services,108,Transfer Payments,506,Housing Benefits,5048,Revenue,00.NON INFLUENCIBLE
22/02/2018,1580891,2808.30,DEMENTIA CARE PARTNERSHIP,346841,"Health, Education, Care and Safeguarding",Adult Social Care,101,Third Party Payments,505,Private Contractors,5042,Revenue,22.SUPPORT SERVICES
27/02/2018,1584395,2805.36,HOUSING BENEFIT,299992,Finance,Housing Services,108,Transfer Payments,506,Housing Benefits,5048,Revenue,00.NON INFLUENCIBLE
06/02/2018,1572155,2804.26,HOUSING BENEFIT,299992,Finance,Housing Services,108,Transfer Payments,506,Housing Benefits,5048,Revenue,00.NON INFLUENCIBLE
08/02/2018,1574044,2800.00,S&B TAXIS,361901,Commissioning & Investment,Children's & Education Services,103,Transport,503,Recharges,5017,Revenue,26.TAXIS
19/02/2018,1577355,2800.00,ALLCARE COMMUNITY CARE SERVICES TRAFFORD LTD,395563,"Health, Education, Care and Safeguarding",Adult Social Care,101,Third Party Payments,505,Other Establishments,5041,Revenue,22.HOMECARE
05/02/2018,1569509,2789.43,ROSEBERRY CARE CENTRES,387541,"Health, Education, Care and Safeguarding",Adult Social Care,101,Third Party Payments,505,Private Contractors,5042,Revenue,22.RESIDENTIAL
06/02/2018,1570307,2786.32,HOUSING BENEFIT,299992,Finance,Housing Services,108,Transfer Payments,506,Housing Benefits,5048,Revenue,00.NON INFLUENCIBLE
09/02/2018,1574099,2778.47,CAPITA SYMONDS LTD,376582,Capital,Capital,Capital,Third Party Payments,505,Private Contractors,5042,Capital,02.BUILDING SERVICES
05/02/2018,1569790,2774.14,FLEXIBLE SUPPORT OPTIONS UK LIMITED,342478,"Health, Education, Care and Safeguarding",Adult Social Care,101,Third Party Payments,505,Private Contractors,5042,Revenue,22.SUPPORT SERVICES
12/02/2018,1575137,2774.14,FLEXIBLE SUPPORT OPTIONS UK LIMITED,342478,"Health, Education, Care and Safeguarding",Adult Social Care,101,Third Party Payments,505,Private Contractors,5042,Revenue,22.SUPPORT SERVICES
19/02/2018,1576776,2774.14,FLEXIBLE SUPPORT OPTIONS UK LIMITED,342478,"Health, Education, Care and Safeguarding",Adult Social Care,101,Third Party Payments,505,Private Contractors,5042,Revenue,22.SUPPORT SERVICES
26/02/2018,1581517,2774.14,FLEXIBLE SUPPORT OPTIONS UK LIMITED,342478,"Health, Education, Care and Safeguarding",Adult Social Care,101,Third Party Payments,505,Private Contractors,5042,Revenue,22.SUPPORT SERVICES
08/02/2018,1573926,2770.49,HOUSING BENEFIT,299992,Finance,Housing Services,108,Transfer Payments,506,Housing Benefits,5048,Revenue,00.NON INFLUENCIBLE
27/02/2018,1584384,2769.96,HOUSING BENEFIT,299992,Finance,Housing Services,108,Transfer Payments,506,Housing Benefits,5048,Revenue,00.NON INFLUENCIBLE
07/02/2018,1573685,2750.00,BLAKE HOPKINSON ARCHITECTURE LLP COMPANY,378614,"Environment, Housing & Leisure",Housing Services,108,Supplies and Services,504,Miscellaneous Expenses,5034,Revenue,18.CONSULTANTS FEES
02/02/2018,1568770,2750.00,BARNARDO'S,029324,"Health, Education, Care and Safeguarding",Children's & Education Services,103,Third Party Payments,505,Private Contractors,5042,Revenue,22.SUPPORT SERVICES
14/02/2018,1575671,2730.00,JAMES CALVERT SPENCE COLLEGE,396175,Commissioning & Investment,Children's & Education Services,103,Third Party Payments,505,Private Contractors,5042,Revenue,CHILDCARE
23/02/2018,1581073,2719.77,BALFOUR BEATTY WORKPLACE LIMITED,389026,Corporate Strategy,Central Services,102,Supplies and Services,504,Grants and Subscriptions,5031,Revenue,HR PROFESS
06/02/2018,1572038,2716.00,HOUSING BENEFIT,299992,Finance,Housing Services,108,Transfer Payments,506,Housing Benefits,5048,Revenue,00.NON INFLUENCIBLE
27/02/2018,1582395,2716.00,HOUSING BENEFIT,299992,Finance,Housing Services,108,Transfer Payments,506,Housing Benefits,5048,Revenue,00.NON INFLUENCIBLE
27/02/2018,1585223,2712.66,HOUSING BENEFIT,299992,Finance,Housing Services,108,Transfer Payments,506,Housing Benefits,5048,Revenue,00.NON INFLUENCIBLE
06/02/2018,1572156,2708.20,HOUSING BENEFIT,299992,Finance,Housing Services,108,Transfer Payments,506,Housing Benefits,5048,Revenue,00.NON INFLUENCIBLE
27/02/2018,1584396,2708.20,HOUSING BENEFIT,299992,Finance,Housing Services,108,Transfer Payments,506,Housing Benefits,5048,Revenue,00.NON INFLUENCIBLE
15/02/2018,1576005,2685.00,FOCUS GROUP,389117,Business & Economic Development,Cultural & Related Services,104,Supplies and Services,504,Miscellaneous Expenses,5034,Revenue,15.HARDWARE
09/02/2018,1574216,2681.62,J S PARKER LTD,369888,"Health, Education, Care and Safeguarding",Adult Social Care,101,Third Party Payments,505,Private Contractors,5042,Revenue,22.RESIDENTIAL
09/02/2018,1574217,2659.00,YORKSHIRE CARE EQUIPMENT,380216,"Health, Education, Care and Safeguarding",Adult Social Care,101,Supplies and Services,504,Equipment,5023,Revenue,SOCIAL SUPP
27/02/2018,1582399,2653.28,HOUSING BENEFIT,299992,Finance,Housing Services,108,Transfer Payments,506,Housing Benefits,5048,Revenue,00.NON INFLUENCIBLE
14/02/2018,1575726,2650.00,MISS KATHERINE WOOD,357088,Law & Governance,Central Services,102,Third Party Payments,505,Private Contractors,5042,Revenue,LEGAL SUPP
19/02/2018,1577102,2649.96,HUNTER HALL FOUR SEASONS HEALTH CARE,253473,"Health, Education, Care and Safeguarding",Adult Social Care,101,Third Party Payments,505,Private Contractors,5042,Revenue,22.RESIDENTIAL
16/02/2018,1576215,2644.40,NORTHUMBERLAND COUNTY COUNCIL,319694,HR & Organisational Development,Central Services,102,Employees,501,Indirect Employee Expenses,5002,Revenue,00.PUBLIC SECTOR
16/02/2018,1576300,2644.40,HARTLEPOOL BOROUGH COUNCIL,310316,HR & Organisational Development,Central Services,102,Employees,501,Indirect Employee Expenses,5002,Revenue,00.PUBLIC SECTOR
15/02/2018,1576046,2640.00,NORTH EAST SOCIAL MEDIA LTD,393425,Business & Economic Development,Planning Services,110,Third Party Payments,505,Private Contractors,5042,Revenue,16.EVENTS & PROMOTIONS
05/02/2018,1569206,2640.00,LANGLEY FIRST SCHOOL,259092,Capital,Capital,Capital,Capital Expenditure,Capital,Capital Expenditure,Capital,Capital,00.NT SCHOOLS
27/02/2018,1583339,2639.08,HOUSING BENEFIT,299992,Finance,Housing Services,108,Transfer Payments,506,Housing Benefits,5048,Revenue,00.NON INFLUENCIBLE
05/02/2018,1569811,2636.20,Redacted Personal Data,368587,"Health, Education, Care and Safeguarding",Adult Social Care,101,Third Party Payments,505,Other Establishments,5041,Revenue,NON INDIVIDUAL
12/02/2018,1574665,2636.20,Redacted Personal Data,368587,"Health, Education, Care and Safeguarding",Adult Social Care,101,Third Party Payments,505,Other Establishments,5041,Revenue,NON INDIVIDUAL
19/02/2018,1576984,2636.20,Redacted Personal Data,368587,"Health, Education, Care and Safeguarding",Adult Social Care,101,Third Party Payments,505,Other Establishments,5041,Revenue,NON INDIVIDUAL
26/02/2018,1581592,2636.20,Redacted Personal Data,368587,"Health, Education, Care and Safeguarding",Adult Social Care,101,Third Party Payments,505,Other Establishments,5041,Revenue,NON INDIVIDUAL
07/02/2018,1573730,2630.00,OCLC (UK) LTD,378587,"Environment, Housing & Leisure",Cultural & Related Services,104,Supplies and Services,504,Equipment,5023,Revenue,18.SUBSCRIPTIONS
21/02/2018,1580609,2629.50,HOPE CHURCH SUNDERLAND,393485,HR & Organisational Development,Central Services,102,Employees,501,Indirect Employee Expenses,5002,Revenue,18.CONFERENCING
26/02/2018,1581831,2627.72,Redacted Personal Data,395731,"Health, Education, Care and Safeguarding",Adult Social Care,101,Third Party Payments,505,Other Establishments,5041,Revenue,NON INDIVIDUAL
06/02/2018,1572042,2617.16,HOUSING BENEFIT,299992,Finance,Housing Services,108,Transfer Payments,506,Housing Benefits,5048,Revenue,00.NON INFLUENCIBLE
01/02/2018,1568630,2616.28,HOUSING BENEFIT,299992,Finance,Housing Services,108,Transfer Payments,506,Housing Benefits,5048,Revenue,00.NON INFLUENCIBLE
20/02/2018,1577559,2614.08,HOUSING BENEFIT,299992,Finance,Housing Services,108,Transfer Payments,506,Housing Benefits,5048,Revenue,00.NON INFLUENCIBLE
13/02/2018,1575256,2611.63,HOUSING BENEFIT,299992,Finance,Housing Services,108,Transfer Payments,506,Housing Benefits,5048,Revenue,00.NON INFLUENCIBLE
05/02/2018,1569669,2608.76,Redacted Personal Data,395605,"Health, Education, Care and Safeguarding",Adult Social Care,101,Third Party Payments,505,Other Establishments,5041,Revenue,NON INDIVIDUAL
05/02/2018,1569486,2605.30,CARE HOMES FOR ADULTS WITH DISABILITIES,364959,"Health, Education, Care and Safeguarding",Adult Social Care,101,Third Party Payments,505,Private Contractors,5042,Revenue,22.RESIDENTIAL
12/02/2018,1574786,2605.30,CARE HOMES FOR ADULTS WITH DISABILITIES,364959,"Health, Education, Care and Safeguarding",Adult Social Care,101,Third Party Payments,505,Private Contractors,5042,Revenue,22.RESIDENTIAL
19/02/2018,1576758,2605.30,CARE HOMES FOR ADULTS WITH DISABILITIES,364959,"Health, Education, Care and Safeguarding",Adult Social Care,101,Third Party Payments,505,Private Contractors,5042,Revenue,22.RESIDENTIAL
26/02/2018,1581950,2605.30,CARE HOMES FOR ADULTS WITH DISABILITIES,364959,"Health, Education, Care and Safeguarding",Adult Social Care,101,Third Party Payments,505,Private Contractors,5042,Revenue,22.RESIDENTIAL
05/02/2018,1569384,2600.25,AKARI CARE HOMES LIMITED,387465,"Health, Education, Care and Safeguarding",Adult Social Care,101,Third Party Payments,505,Private Contractors,5042,Revenue,22.RESIDENTIAL
05/02/2018,1569516,2595.85,NORTHERN LIFE CARE LTD T/A UBU LTD,214737,"Health, Education, Care and Safeguarding",Public Health,112,Third Party Payments,505,Private Contractors,5042,Revenue,22.RESIDENTIAL
12/02/2018,1575057,2595.85,NORTHERN LIFE CARE LTD T/A UBU LTD,214737,"Health, Education, Care and Safeguarding",Public Health,112,Third Party Payments,505,Private Contractors,5042,Revenue,22.RESIDENTIAL
19/02/2018,1576690,2595.85,NORTHERN LIFE CARE LTD T/A UBU LTD,214737,"Health, Education, Care and Safeguarding",Public Health,112,Third Party Payments,505,Private Contractors,5042,Revenue,22.RESIDENTIAL
26/02/2018,1581450,2595.85,NORTHERN LIFE CARE LTD T/A UBU LTD,214737,"Health, Education, Care and Safeguarding",Public Health,112,Third Party Payments,505,Private Contractors,5042,Revenue,22.RESIDENTIAL
15/02/2018,1576009,2590.00,NORTH EAST AUTISM SOCIETY,329004,"Health, Education, Care and Safeguarding",Children's & Education Services,103,Supplies and Services,504,Miscellaneous Expenses,5034,Revenue,22.SUPPORT SERVICES
05/02/2018,1569805,2582.82,UNITED RESPONSE,330350,"Health, Education, Care and Safeguarding",Adult Social Care,101,Third Party Payments,505,Private Contractors,5042,Revenue,22.SUPPORT SERVICES
12/02/2018,1574659,2582.82,UNITED RESPONSE,330350,"Health, Education, Care and Safeguarding",Adult Social Care,101,Third Party Payments,505,Private Contractors,5042,Revenue,22.SUPPORT SERVICES
19/02/2018,1576978,2582.82,UNITED RESPONSE,330350,"Health, Education, Care and Safeguarding",Adult Social Care,101,Third Party Payments,505,Private Contractors,5042,Revenue,22.SUPPORT SERVICES
26/02/2018,1581586,2582.82,UNITED RESPONSE,330350,"Health, Education, Care and Safeguarding",Adult Social Care,101,Third Party Payments,505,Private Contractors,5042,Revenue,22.SUPPORT SERVICES
05/02/2018,1569732,2582.30,NEW PROSPECTS ASSOCIATION LIMITED,203069,"Health, Education, Care and Safeguarding",Adult Social Care,101,Third Party Payments,505,Private Contractors,5042,Revenue,22.DAY CARE SERVICES
12/02/2018,1574685,2582.30,NEW PROSPECTS ASSOCIATION LIMITED,203069,"Health, Education, Care and Safeguarding",Adult Social Care,101,Third Party Payments,505,Private Contractors,5042,Revenue,22.DAY CARE SERVICES
19/02/2018,1577004,2582.30,NEW PROSPECTS ASSOCIATION LIMITED,203069,"Health, Education, Care and Safeguarding",Adult Social Care,101,Third Party Payments,505,Private Contractors,5042,Revenue,22.DAY CARE SERVICES
26/02/2018,1581562,2582.30,NEW PROSPECTS ASSOCIATION LIMITED,203069,"Health, Education, Care and Safeguarding",Adult Social Care,101,Third Party Payments,505,Private Contractors,5042,Revenue,22.DAY CARE SERVICES
05/02/2018,1569807,2581.00,AUTISM CARE (UK) LIMITED,387636,"Health, Education, Care and Safeguarding",Adult Social Care,101,Third Party Payments,505,Private Contractors,5042,Revenue,22.RESIDENTIAL
12/02/2018,1574661,2581.00,AUTISM CARE (UK) LIMITED,387636,"Health, Education, Care and Safeguarding",Adult Social Care,101,Third Party Payments,505,Private Contractors,5042,Revenue,22.RESIDENTIAL
19/02/2018,1576980,2581.00,AUTISM CARE (UK) LIMITED,387636,"Health, Education, Care and Safeguarding",Adult Social Care,101,Third Party Payments,505,Private Contractors,5042,Revenue,22.RESIDENTIAL
26/02/2018,1581588,2581.00,AUTISM CARE (UK) LIMITED,387636,"Health, Education, Care and Safeguarding",Adult Social Care,101,Third Party Payments,505,Private Contractors,5042,Revenue,22.RESIDENTIAL
28/02/2018,1586794,2577.13,NHC NHS FOUNDATION TRUST,317869,Law & Governance,Central Services,102,Third Party Payments,505,Health Authorities,5038,Revenue,PUB HEALTH.PUBLIC HEALTH
01/02/2018,1568701,2573.81,CAPITA SYMONDS LTD,376582,Capital,Capital,Capital,Third Party Payments,505,Private Contractors,5042,Capital,02.BUILDING SERVICES
06/02/2018,1569951,2570.70,HOUSING BENEFIT,299992,Finance,Housing Services,108,Transfer Payments,506,Housing Benefits,5048,Revenue,00.NON INFLUENCIBLE
19/02/2018,1577352,2565.00,Redacted Personal Data,395656,"Health, Education, Care and Safeguarding",Children's & Education Services,103,Third Party Payments,505,Private Contractors,5042,Revenue,18.CONFERENCING
15/02/2018,1575907,2557.50,STANNAH LIFT SERVICES LIMITED,102817,Capital,Capital,Capital,Third Party Payments,505,Private Contractors,5042,Capital,SOCIAL FITTED
23/02/2018,1581087,2555.00,MAS SEEDS LTD,381040,"Environment, Housing & Leisure",Cultural & Related Services,104,Supplies and Services,504,Equipment,5023,Revenue,HORT SEEDS
27/02/2018,1582294,2554.40,HOUSING BENEFIT,299992,Finance,Housing Services,108,Transfer Payments,506,Housing Benefits,5048,Revenue,00.NON INFLUENCIBLE
05/02/2018,1569732,2554.06,NEW PROSPECTS ASSOCIATION LIMITED,203069,"Health, Education, Care and Safeguarding",Public Health,112,Third Party Payments,505,Private Contractors,5042,Revenue,22.DAY CARE SERVICES
06/02/2018,1570188,2551.20,HOUSING BENEFIT,299992,Finance,Housing Services,108,Transfer Payments,506,Housing Benefits,5048,Revenue,00.NON INFLUENCIBLE
22/02/2018,1580877,2550.00,TALLEY GROUP LIMITED,307386,"Health, Education, Care and Safeguarding",Adult Social Care,101,Supplies and Services,504,Equipment,5023,Revenue,SOCIAL SUPP
28/02/2018,1586892,2550.00,MISS CATHERINE FAGAN,392479,Law & Governance,Central Services,102,Third Party Payments,505,Private Contractors,5042,Revenue,LECAL SPECIAL
06/02/2018,1570150,2549.84,HOUSING BENEFIT,299992,Finance,Housing Services,108,Transfer Payments,506,Housing Benefits,5048,Revenue,00.NON INFLUENCIBLE
21/02/2018,1580606,2548.00,JB SKILLCARE LTD,338442,"Health, Education, Care and Safeguarding",Public Health,112,Third Party Payments,505,Private Contractors,5042,Revenue,18.TRAVEL
16/02/2018,1576291,2546.99,NPOWER,334502,Housing Revenue Account,Housing Services,108,Premises-Related Expenditure,502,Energy Costs,5006,Revenue,27.ELECTRIC
05/02/2018,1569384,2539.30,AKARI CARE HOMES LIMITED,387465,"Health, Education, Care and Safeguarding",Adult Social Care,101,Third Party Payments,505,Private Contractors,5042,Revenue,22.RESIDENTIAL
26/02/2018,20971,2527.53,COUNCIL TAX REFUND,299993,General Fund Financing,Holding A/C,N/A,Excluded from General Fund,N/A,Collection Fund,N/A,Revenue,00.NON INFLUENCIBLE
12/02/2018,1574445,2523.16,COUNCIL TAX REFUND,299993,General Fund Financing,Holding A/C,N/A,Excluded from General Fund,N/A,Collection Fund,N/A,Revenue,00.NON INFLUENCIBLE
09/02/2018,1574091,2520.00,ALLIED HEALTHCARE GROUP LTD,347472,"Health, Education, Care and Safeguarding",Public Health,112,Third Party Payments,505,Private Contractors,5042,Revenue,22.HOMECARE
28/02/2018,1586738,2518.95,NIELSEN BOOK SERVICES LTD,366675,"Environment, Housing & Leisure",Cultural & Related Services,104,Supplies and Services,504,Equipment,5023,Revenue,18.BOOKS & PUBLICATIONS
05/02/2018,1569467,2514.81,AUTISM NORTH LIMITED,376291,"Health, Education, Care and Safeguarding",Adult Social Care,101,Third Party Payments,505,Private Contractors,5042,Revenue,22.RESIDENTIAL
12/02/2018,1574813,2514.81,AUTISM NORTH LIMITED,376291,"Health, Education, Care and Safeguarding",Adult Social Care,101,Third Party Payments,505,Private Contractors,5042,Revenue,22.RESIDENTIAL
19/02/2018,1576739,2514.81,AUTISM NORTH LIMITED,376291,"Health, Education, Care and Safeguarding",Adult Social Care,101,Third Party Payments,505,Private Contractors,5042,Revenue,22.RESIDENTIAL
26/02/2018,1581940,2514.81,AUTISM NORTH LIMITED,376291,"Health, Education, Care and Safeguarding",Adult Social Care,101,Third Party Payments,505,Private Contractors,5042,Revenue,22.RESIDENTIAL
19/02/2018,1577399,2511.08,NPOWER,334502,Housing Revenue Account,Housing Services,108,Premises-Related Expenditure,502,Energy Costs,5006,Revenue,27.ELECTRIC
12/02/2018,20775,2510.34,NNDR,299990,General Fund Financing,Holding A/C,N/A,Excluded from General Fund,N/A,Collection Fund,N/A,Revenue,00.NON INFLUENCIBLE
07/02/2018,1573706,2507.14,ACORN CARE (UK) LTD,393369,"Health, Education, Care and Safeguarding",Children's & Education Services,103,Third Party Payments,505,Private Contractors,5042,Revenue,FOSTER CARE
08/02/2018,1573886,2506.35,STANNAH LIFT SERVICES LIMITED,102817,Capital,Capital,Capital,Third Party Payments,505,Private Contractors,5042,Capital,SOCIAL FITTED
15/02/2018,1575907,2506.35,STANNAH LIFT SERVICES LIMITED,102817,Capital,Capital,Capital,Third Party Payments,505,Private Contractors,5042,Capital,SOCIAL FITTED
08/02/2018,1574017,2505.00,AUTODESK LTD,396121,Capital,Capital,Capital,Third Party Payments,505,Private Contractors,5042,Capital,15.SOFTWARE
27/02/2018,1586272,2500.00,CHURCHILL COMMUNITY COLLEGE,338724,"Health, Education, Care and Safeguarding",Children's & Education Services,103,Third Party Payments,505,Independent Units within the Council,5035,Revenue,00.NT SCHOOLS
27/02/2018,1586274,2500.00,WHITLEY BAY HIGH SCHOOL,276855,"Health, Education, Care and Safeguarding",Children's & Education Services,103,Third Party Payments,505,Independent Units within the Council,5035,Revenue,00.NT SCHOOLS
28/02/2018,1586777,2500.00,CREATIVE ARTISTS AGENCY,382021,"Environment, Housing & Leisure",Cultural & Related Services,104,Third Party Payments,505,Private Contractors,5042,Revenue,16.EVENTS & PROMOTIONS
06/02/2018,1570170,2492.00,HOUSING BENEFIT,299992,Finance,Housing Services,108,Transfer Payments,506,Housing Benefits,5048,Revenue,00.NON INFLUENCIBLE
05/02/2018,1569807,2488.50,AUTISM CARE (UK) LIMITED,387636,"Health, Education, Care and Safeguarding",Adult Social Care,101,Third Party Payments,505,Private Contractors,5042,Revenue,22.RESIDENTIAL
12/02/2018,1574661,2488.50,AUTISM CARE (UK) LIMITED,387636,"Health, Education, Care and Safeguarding",Adult Social Care,101,Third Party Payments,505,Private Contractors,5042,Revenue,22.RESIDENTIAL
19/02/2018,1576980,2488.50,AUTISM CARE (UK) LIMITED,387636,"Health, Education, Care and Safeguarding",Adult Social Care,101,Third Party Payments,505,Private Contractors,5042,Revenue,22.RESIDENTIAL
26/02/2018,1581588,2488.50,AUTISM CARE (UK) LIMITED,387636,"Health, Education, Care and Safeguarding",Adult Social Care,101,Third Party Payments,505,Private Contractors,5042,Revenue,22.RESIDENTIAL
21/02/2018,1580752,2474.83,SITA UK LIMITED,359430,"Environment, Housing & Leisure",Environmental & Regulatory Services,105,Third Party Payments,505,Private Contractors,5042,Revenue,WASTE RECYCLE
15/02/2018,1576069,2470.24,EVERLASTING CARE LTD,363743,"Health, Education, Care and Safeguarding",Public Health,112,Third Party Payments,505,Private Contractors,5042,Revenue,22.HOMECARE
05/02/2018,1569138,2469.42,OIL NRG LIMITED,393975,"Environment, Housing & Leisure",Unallocated,N/A,Transport,503,Direct Transport Costs,5016,Revenue,28.FUEL
08/02/2018,1573885,2458.92,STANNAH LIFT SERVICES LIMITED,102817,Capital,Capital,Capital,Third Party Payments,505,Private Contractors,5042,Capital,SOCIAL FITTED
20/02/2018,1580397,2448.00,METTA CONSTRUCTION,390429,Capital,Capital,Capital,Third Party Payments,505,Private Contractors,5042,Capital,REPAIR ADAPT
22/02/2018,1580875,2445.31,CAPITA SYMONDS LTD,376582,Capital,Capital,Capital,Third Party Payments,505,Private Contractors,5042,Capital,02.BUILDING SERVICES
22/02/2018,1580875,2444.31,CAPITA SYMONDS LTD,376582,Capital,Capital,Capital,Third Party Payments,505,Private Contractors,5042,Capital,02.BUILDING SERVICES
05/02/2018,1569793,2442.30,NORTH EAST AUTISM SOCIETY,329004,"Health, Education, Care and Safeguarding",Adult Social Care,101,Third Party Payments,505,Private Contractors,5042,Revenue,22.SUPPORT SERVICES
12/02/2018,1575140,2442.30,NORTH EAST AUTISM SOCIETY,329004,"Health, Education, Care and Safeguarding",Adult Social Care,101,Third Party Payments,505,Private Contractors,5042,Revenue,22.SUPPORT SERVICES
19/02/2018,1576779,2442.30,NORTH EAST AUTISM SOCIETY,329004,"Health, Education, Care and Safeguarding",Adult Social Care,101,Third Party Payments,505,Private Contractors,5042,Revenue,22.SUPPORT SERVICES
26/02/2018,1581520,2442.30,NORTH EAST AUTISM SOCIETY,329004,"Health, Education, Care and Safeguarding",Adult Social Care,101,Third Party Payments,505,Private Contractors,5042,Revenue,22.SUPPORT SERVICES
06/02/2018,1573556,2437.50,NEW SKILLS CONSULTING LIMITED,361452,Capital,Capital,Capital,Supplies and Services,504,Miscellaneous Expenses,5034,Capital,18.CONSULTANTS FEES
02/02/2018,1568769,2430.00,NORTH EAST SUPPORTED TENANCIES,376304,"Health, Education, Care and Safeguarding",Children's & Education Services,103,Third Party Payments,505,Other Establishments,5041,Revenue,22.SUPPORT SERVICES
02/02/2018,1568769,2430.00,NORTH EAST SUPPORTED TENANCIES,376304,"Health, Education, Care and Safeguarding",Children's & Education Services,103,Third Party Payments,505,Other Establishments,5041,Revenue,22.SUPPORT SERVICES
02/02/2018,1568769,2430.00,NORTH EAST SUPPORTED TENANCIES,376304,"Health, Education, Care and Safeguarding",Children's & Education Services,103,Third Party Payments,505,Other Establishments,5041,Revenue,22.SUPPORT SERVICES
02/02/2018,1568769,2430.00,NORTH EAST SUPPORTED TENANCIES,376304,"Health, Education, Care and Safeguarding",Children's & Education Services,103,Third Party Payments,505,Other Establishments,5041,Revenue,22.SUPPORT SERVICES
02/02/2018,1568769,2430.00,NORTH EAST SUPPORTED TENANCIES,376304,"Health, Education, Care and Safeguarding",Children's & Education Services,103,Third Party Payments,505,Other Establishments,5041,Revenue,22.SUPPORT SERVICES
02/02/2018,1568769,2430.00,NORTH EAST SUPPORTED TENANCIES,376304,"Health, Education, Care and Safeguarding",Children's & Education Services,103,Third Party Payments,505,Other Establishments,5041,Revenue,22.SUPPORT SERVICES
02/02/2018,1568769,2430.00,NORTH EAST SUPPORTED TENANCIES,376304,"Health, Education, Care and Safeguarding",Children's & Education Services,103,Third Party Payments,505,Other Establishments,5041,Revenue,22.SUPPORT SERVICES
02/02/2018,1568769,2430.00,NORTH EAST SUPPORTED TENANCIES,376304,"Health, Education, Care and Safeguarding",Children's & Education Services,103,Third Party Payments,505,Other Establishments,5041,Revenue,22.SUPPORT SERVICES
02/02/2018,1568769,2430.00,NORTH EAST SUPPORTED TENANCIES,376304,"Health, Education, Care and Safeguarding",Children's & Education Services,103,Third Party Payments,505,Other Establishments,5041,Revenue,22.SUPPORT SERVICES
02/02/2018,1568769,2430.00,NORTH EAST SUPPORTED TENANCIES,376304,"Health, Education, Care and Safeguarding",Children's & Education Services,103,Third Party Payments,505,Other Establishments,5041,Revenue,22.SUPPORT SERVICES
19/02/2018,1576921,2422.92,Redacted Personal Data,390013,"Health, Education, Care and Safeguarding",Adult Social Care,101,Third Party Payments,505,Other Establishments,5041,Revenue,NON INDIVIDUAL
15/02/2018,1576009,2420.00,NORTH EAST AUTISM SOCIETY,329004,"Health, Education, Care and Safeguarding",Children's & Education Services,103,Supplies and Services,504,Miscellaneous Expenses,5034,Revenue,22.SUPPORT SERVICES
06/02/2018,1570197,2419.80,HOUSING BENEFIT,299992,Finance,Housing Services,108,Transfer Payments,506,Housing Benefits,5048,Revenue,00.NON INFLUENCIBLE
27/02/2018,1585295,2419.80,HOUSING BENEFIT,299992,Finance,Housing Services,108,Transfer Payments,506,Housing Benefits,5048,Revenue,00.NON INFLUENCIBLE
19/02/2018,1576365,2419.65,HOUSING BENEFIT,299992,Finance,Housing Services,108,Transfer Payments,506,Housing Benefits,5048,Revenue,00.NON INFLUENCIBLE
27/02/2018,1583476,2416.48,HOUSING BENEFIT,299992,Finance,Housing Services,108,Transfer Payments,506,Housing Benefits,5048,Revenue,00.NON INFLUENCIBLE
06/02/2018,1571908,2412.44,HOUSING BENEFIT,299992,Finance,Housing Services,108,Transfer Payments,506,Housing Benefits,5048,Revenue,00.NON INFLUENCIBLE
28/02/2018,1586814,2412.33,HARBOUR SUPPORT SERVICES,384545,Commissioning & Investment,Children's & Education Services,103,Third Party Payments,505,Private Contractors,5042,Revenue,22.SUPPORT SERVICES
21/02/2018,1580593,2408.00,HMS SERVICES LTD T/A HMS CARE,396052,"Health, Education, Care and Safeguarding",Adult Social Care,101,Third Party Payments,505,Other Establishments,5041,Revenue,SOCIAL CARES
06/02/2018,1569877,2407.84,HOUSING BENEFIT,299992,Finance,Housing Services,108,Transfer Payments,506,Housing Benefits,5048,Revenue,00.NON INFLUENCIBLE
05/02/2018,1569289,2406.59,Redacted Personal Data,395718,"Health, Education, Care and Safeguarding",Adult Social Care,101,Third Party Payments,505,Other Establishments,5041,Revenue,NON INDIVIDUAL
12/02/2018,1574636,2406.59,Redacted Personal Data,395718,"Health, Education, Care and Safeguarding",Adult Social Care,101,Third Party Payments,505,Other Establishments,5041,Revenue,NON INDIVIDUAL
19/02/2018,1576960,2406.59,Redacted Personal Data,395718,"Health, Education, Care and Safeguarding",Adult Social Care,101,Third Party Payments,505,Other Establishments,5041,Revenue,NON INDIVIDUAL
26/02/2018,1581821,2406.59,Redacted Personal Data,395718,"Health, Education, Care and Safeguarding",Adult Social Care,101,Third Party Payments,505,Other Establishments,5041,Revenue,NON INDIVIDUAL
06/02/2018,1570184,2396.75,HOUSING BENEFIT,299992,Finance,Housing Services,108,Transfer Payments,506,Housing Benefits,5048,Revenue,00.NON INFLUENCIBLE
05/02/2018,1569807,2389.50,AUTISM CARE (UK) LIMITED,387636,"Health, Education, Care and Safeguarding",Adult Social Care,101,Third Party Payments,505,Private Contractors,5042,Revenue,22.RESIDENTIAL
12/02/2018,1574661,2389.50,AUTISM CARE (UK) LIMITED,387636,"Health, Education, Care and Safeguarding",Adult Social Care,101,Third Party Payments,505,Private Contractors,5042,Revenue,22.RESIDENTIAL
19/02/2018,1576980,2389.50,AUTISM CARE (UK) LIMITED,387636,"Health, Education, Care and Safeguarding",Adult Social Care,101,Third Party Payments,505,Private Contractors,5042,Revenue,22.RESIDENTIAL
26/02/2018,1581588,2389.50,AUTISM CARE (UK) LIMITED,387636,"Health, Education, Care and Safeguarding",Adult Social Care,101,Third Party Payments,505,Private Contractors,5042,Revenue,22.RESIDENTIAL
05/02/2018,1569263,2387.56,Redacted Personal Data,374395,"Health, Education, Care and Safeguarding",Adult Social Care,101,Third Party Payments,505,Other Establishments,5041,Revenue,NON INDIVIDUAL
12/02/2018,1574611,2387.56,Redacted Personal Data,374395,"Health, Education, Care and Safeguarding",Adult Social Care,101,Third Party Payments,505,Other Establishments,5041,Revenue,NON INDIVIDUAL
19/02/2018,1576476,2387.56,Redacted Personal Data,374395,"Health, Education, Care and Safeguarding",Adult Social Care,101,Third Party Payments,505,Other Establishments,5041,Revenue,NON INDIVIDUAL
26/02/2018,1581832,2387.56,Redacted Personal Data,374395,"Health, Education, Care and Safeguarding",Adult Social Care,101,Third Party Payments,505,Other Establishments,5041,Revenue,NON INDIVIDUAL
12/02/2018,1575156,2377.37,CARE UK COMMUNITY PARTNERSHIPS LIMITED,330181,"Health, Education, Care and Safeguarding",Adult Social Care,101,Third Party Payments,505,Private Contractors,5042,Revenue,22.RESIDENTIAL
15/02/2018,1575906,2375.00,STANNAH LIFT SERVICES LIMITED,102817,Capital,Capital,Capital,Third Party Payments,505,Private Contractors,5042,Capital,SOCIAL FITTED
27/02/2018,1583309,2374.06,HOUSING BENEFIT,299992,Finance,Housing Services,108,Transfer Payments,506,Housing Benefits,5048,Revenue,00.NON INFLUENCIBLE
16/02/2018,1576261,2371.20,UNITED RESPONSE,330350,"Health, Education, Care and Safeguarding",Adult Social Care,101,Third Party Payments,505,Private Contractors,5042,Revenue,22.SUPPORT SERVICES
19/02/2018,1577391,2366.58,CARERS FEDERATION LTD,389425,"Health, Education, Care and Safeguarding",Adult Social Care,101,Third Party Payments,505,Voluntary Associations,5040,Revenue,ADVICE COUNSEL
20/02/2018,1580420,2364.00,HM REVENUE & CUSTOMS,361213,Capital,General Fund,N/A,Capital,Capital,Capital,Capital,Capital,00.PUBLIC SECTOR
20/02/2018,1580278,2359.00,DEBTORS VENDOR (ANITE),299989,Capital,General Fund,N/A,Capital,Capital,Capital,Capital,Capital,00.NON INFLUENCIBLE
12/02/2018,1574866,2354.52,Redacted Personal Data,389942,"Health, Education, Care and Safeguarding",Adult Social Care,101,Third Party Payments,505,Other Establishments,5041,Revenue,NON INDIVIDUAL
09/02/2018,1574191,2352.00,HMS SERVICES LTD T/A HMS CARE,396052,"Health, Education, Care and Safeguarding",Adult Social Care,101,Third Party Payments,505,Other Establishments,5041,Revenue,SOCIAL CARES
09/02/2018,1574191,2352.00,HMS SERVICES LTD T/A HMS CARE,396052,"Health, Education, Care and Safeguarding",Adult Social Care,101,Third Party Payments,505,Other Establishments,5041,Revenue,SOCIAL CARES
21/02/2018,1580593,2352.00,HMS SERVICES LTD T/A HMS CARE,396052,"Health, Education, Care and Safeguarding",Adult Social Care,101,Third Party Payments,505,Other Establishments,5041,Revenue,SOCIAL CARES
06/02/2018,1570169,2350.80,HOUSING BENEFIT,299992,Finance,Housing Services,108,Transfer Payments,506,Housing Benefits,5048,Revenue,00.NON INFLUENCIBLE
27/02/2018,1583308,2350.80,HOUSING BENEFIT,299992,Finance,Housing Services,108,Transfer Payments,506,Housing Benefits,5048,Revenue,00.NON INFLUENCIBLE
02/02/2018,1568789,2345.02,DURHAM BUSINESS WEAR LTD,331187,"Health, Education, Care and Safeguarding",Adult Social Care,101,Supplies and Services,504,"Clothing, Uniforms and Laundry",5025,Revenue,CLOTHING UNI
05/02/2018,1569481,2336.05,Redacted Personal Data,354914,"Health, Education, Care and Safeguarding",Adult Social Care,101,Third Party Payments,505,Other Establishments,5041,Revenue,NON INDIVIDUAL
12/02/2018,1574775,2336.05,Redacted Personal Data,354914,"Health, Education, Care and Safeguarding",Adult Social Care,101,Third Party Payments,505,Other Establishments,5041,Revenue,NON INDIVIDUAL
19/02/2018,1576753,2336.05,Redacted Personal Data,354914,"Health, Education, Care and Safeguarding",Adult Social Care,101,Third Party Payments,505,Other Establishments,5041,Revenue,NON INDIVIDUAL
26/02/2018,1581945,2336.05,Redacted Personal Data,354914,"Health, Education, Care and Safeguarding",Adult Social Care,101,Third Party Payments,505,Other Establishments,5041,Revenue,NON INDIVIDUAL
27/02/2018,1583375,2306.16,HOUSING BENEFIT,299992,Finance,Housing Services,108,Transfer Payments,506,Housing Benefits,5048,Revenue,00.NON INFLUENCIBLE
01/02/2018,1568619,2303.44,HOUSING BENEFIT,299992,Finance,Housing Services,108,Transfer Payments,506,Housing Benefits,5048,Revenue,00.NON INFLUENCIBLE
12/02/2018,1574673,2303.08,HELEN MCARDLE CARE,391638,"Health, Education, Care and Safeguarding",Adult Social Care,101,Third Party Payments,505,Private Contractors,5042,Revenue,22.RESIDENTIAL
12/02/2018,1574726,2281.45,AKARI CARE HOMES LIMITED,387465,"Health, Education, Care and Safeguarding",Adult Social Care,101,Third Party Payments,505,Other Establishments,5041,Revenue,22.RESIDENTIAL
14/02/2018,1575825,2270.00,PEARLCATCHERS LTD,390252,HR & Organisational Development,Central Services,102,Supplies and Services,504,Contribution to Provisions,5033,Revenue,18.CONFERENCING
26/02/2018,1581448,2259.30,PRESTWICK CARE LTD,387214,"Health, Education, Care and Safeguarding",Adult Social Care,101,Third Party Payments,505,Other Establishments,5041,Revenue,22.RESIDENTIAL
12/02/2018,1574694,2254.85,DAV HOMES LTD,390262,"Health, Education, Care and Safeguarding",Adult Social Care,101,Third Party Payments,505,Private Contractors,5042,Revenue,22.RESIDENTIAL
14/02/2018,1575731,2249.86,NORTH TYNESIDE COUNCIL,102767,Capital,General Fund,N/A,Capital,Capital,Capital,Capital,Capital,00.PUBLIC SECTOR
09/02/2018,1574282,2240.00,PREMIER TRANSPORT,310296,Commissioning & Investment,Children's & Education Services,103,Transport,503,Recharges,5017,Revenue,26.TAXIS
27/02/2018,1583372,2235.68,HOUSING BENEFIT,299992,Finance,Housing Services,108,Transfer Payments,506,Housing Benefits,5048,Revenue,00.NON INFLUENCIBLE
05/02/2018,1569732,2234.80,NEW PROSPECTS ASSOCIATION LIMITED,203069,"Health, Education, Care and Safeguarding",Public Health,112,Third Party Payments,505,Private Contractors,5042,Revenue,22.DAY CARE SERVICES
12/02/2018,1574685,2234.80,NEW PROSPECTS ASSOCIATION LIMITED,203069,"Health, Education, Care and Safeguarding",Public Health,112,Third Party Payments,505,Private Contractors,5042,Revenue,22.DAY CARE SERVICES
19/02/2018,1577004,2234.80,NEW PROSPECTS ASSOCIATION LIMITED,203069,"Health, Education, Care and Safeguarding",Public Health,112,Third Party Payments,505,Private Contractors,5042,Revenue,22.DAY CARE SERVICES
26/02/2018,1581562,2234.80,NEW PROSPECTS ASSOCIATION LIMITED,203069,"Health, Education, Care and Safeguarding",Public Health,112,Third Party Payments,505,Private Contractors,5042,Revenue,22.DAY CARE SERVICES
05/02/2018,1569517,2218.82,PERCY HEDLEY FOUNDATION,252934,"Health, Education, Care and Safeguarding",Adult Social Care,101,Third Party Payments,505,Private Contractors,5042,Revenue,22.DAY CARE SERVICES
12/02/2018,1575058,2218.82,PERCY HEDLEY FOUNDATION,252934,"Health, Education, Care and Safeguarding",Adult Social Care,101,Third Party Payments,505,Private Contractors,5042,Revenue,22.DAY CARE SERVICES
19/02/2018,1576691,2218.82,PERCY HEDLEY FOUNDATION,252934,"Health, Education, Care and Safeguarding",Adult Social Care,101,Third Party Payments,505,Private Contractors,5042,Revenue,22.DAY CARE SERVICES
26/02/2018,1581451,2218.82,PERCY HEDLEY FOUNDATION,252934,"Health, Education, Care and Safeguarding",Adult Social Care,101,Third Party Payments,505,Private Contractors,5042,Revenue,22.DAY CARE SERVICES
05/02/2018,1569516,2215.50,NORTHERN LIFE CARE LTD T/A UBU LTD,214737,"Health, Education, Care and Safeguarding",Adult Social Care,101,Third Party Payments,505,Private Contractors,5042,Revenue,22.RESIDENTIAL
12/02/2018,1575057,2215.50,NORTHERN LIFE CARE LTD T/A UBU LTD,214737,"Health, Education, Care and Safeguarding",Adult Social Care,101,Third Party Payments,505,Private Contractors,5042,Revenue,22.RESIDENTIAL
19/02/2018,1576690,2215.50,NORTHERN LIFE CARE LTD T/A UBU LTD,214737,"Health, Education, Care and Safeguarding",Adult Social Care,101,Third Party Payments,505,Private Contractors,5042,Revenue,22.RESIDENTIAL
26/02/2018,1581450,2215.50,NORTHERN LIFE CARE LTD T/A UBU LTD,214737,"Health, Education, Care and Safeguarding",Adult Social Care,101,Third Party Payments,505,Private Contractors,5042,Revenue,22.RESIDENTIAL
02/02/2018,1568734,2210.88,HELPING HANDS COMMUNITY CARE LTD,254804,"Health, Education, Care and Safeguarding",Public Health,112,Third Party Payments,505,Private Contractors,5042,Revenue,SOCIAL SUPP
05/02/2018,1569489,2209.90,COQUET TRUST,347369,"Health, Education, Care and Safeguarding",Adult Social Care,101,Third Party Payments,505,Other Establishments,5041,Revenue,22.RESIDENTIAL
12/02/2018,1574795,2209.90,COQUET TRUST,347369,"Health, Education, Care and Safeguarding",Adult Social Care,101,Third Party Payments,505,Other Establishments,5041,Revenue,22.RESIDENTIAL
19/02/2018,1576761,2209.90,COQUET TRUST,347369,"Health, Education, Care and Safeguarding",Adult Social Care,101,Third Party Payments,505,Other Establishments,5041,Revenue,22.RESIDENTIAL
26/02/2018,1581894,2209.90,COQUET TRUST,347369,"Health, Education, Care and Safeguarding",Adult Social Care,101,Third Party Payments,505,Other Establishments,5041,Revenue,22.RESIDENTIAL
09/02/2018,1574202,2208.00,DEVILBISS HEALTHCARE LTD,305544,"Health, Education, Care and Safeguarding",Adult Social Care,101,Supplies and Services,504,Equipment,5023,Revenue,01.ELECTRICAL
09/02/2018,1574282,2200.00,PREMIER TRANSPORT,310296,Commissioning & Investment,Children's & Education Services,103,Transport,503,Recharges,5017,Revenue,26.TAXIS
22/02/2018,1580877,2200.00,TALLEY GROUP LIMITED,307386,"Health, Education, Care and Safeguarding",Adult Social Care,101,Supplies and Services,504,Equipment,5023,Revenue,SOCIAL SUPP
09/02/2018,1574282,2199.50,PREMIER TRANSPORT,310296,Commissioning & Investment,Children's & Education Services,103,Transport,503,Recharges,5017,Revenue,26.TAXIS
19/02/2018,1576387,2194.47,HOUSING BENEFIT,299992,Finance,Housing Services,108,Transfer Payments,506,Housing Benefits,5048,Revenue,00.NON INFLUENCIBLE
06/02/2018,1573573,2185.40,DAC BEACHCROFT LLP,390542,Central Items,Holding A/C,N/A,Supplies and Services,504,Miscellaneous Expenses,5034,Revenue,09.FINANCIAL SERVICES
06/02/2018,1572142,2181.60,HOUSING BENEFIT,299992,Finance,Housing Services,108,Transfer Payments,506,Housing Benefits,5048,Revenue,00.NON INFLUENCIBLE
27/02/2018,1584406,2181.60,HOUSING BENEFIT,299992,Finance,Housing Services,108,Transfer Payments,506,Housing Benefits,5048,Revenue,00.NON INFLUENCIBLE
05/02/2018,1569769,2179.20,NEW BEGINNINGS (N.E.) LTD,337005,"Health, Education, Care and Safeguarding",Adult Social Care,101,Third Party Payments,505,Private Contractors,5042,Revenue,22.RESIDENTIAL
12/02/2018,1575116,2179.20,NEW BEGINNINGS (N.E.) LTD,337005,"Health, Education, Care and Safeguarding",Adult Social Care,101,Third Party Payments,505,Private Contractors,5042,Revenue,22.RESIDENTIAL
19/02/2018,1577042,2179.20,NEW BEGINNINGS (N.E.) LTD,337005,"Health, Education, Care and Safeguarding",Adult Social Care,101,Third Party Payments,505,Private Contractors,5042,Revenue,22.RESIDENTIAL
26/02/2018,1581502,2179.20,NEW BEGINNINGS (N.E.) LTD,337005,"Health, Education, Care and Safeguarding",Adult Social Care,101,Third Party Payments,505,Private Contractors,5042,Revenue,22.RESIDENTIAL
05/02/2018,1569805,2179.15,UNITED RESPONSE,330350,"Health, Education, Care and Safeguarding",Adult Social Care,101,Third Party Payments,505,Private Contractors,5042,Revenue,22.SUPPORT SERVICES
12/02/2018,1574659,2179.15,UNITED RESPONSE,330350,"Health, Education, Care and Safeguarding",Adult Social Care,101,Third Party Payments,505,Private Contractors,5042,Revenue,22.SUPPORT SERVICES
19/02/2018,1576978,2179.15,UNITED RESPONSE,330350,"Health, Education, Care and Safeguarding",Adult Social Care,101,Third Party Payments,505,Private Contractors,5042,Revenue,22.SUPPORT SERVICES
26/02/2018,1581586,2179.15,UNITED RESPONSE,330350,"Health, Education, Care and Safeguarding",Adult Social Care,101,Third Party Payments,505,Private Contractors,5042,Revenue,22.SUPPORT SERVICES
09/02/2018,1574211,2175.00,Redacted Personal Data,394566,"Health, Education, Care and Safeguarding",Children's & Education Services,103,Third Party Payments,505,Private Contractors,5042,Revenue,EDUC PLACE
05/02/2018,1569463,2174.74,CARE MANAGEMENT GROUP LIMITED,337801,"Health, Education, Care and Safeguarding",Adult Social Care,101,Third Party Payments,505,Private Contractors,5042,Revenue,22.RESIDENTIAL
12/02/2018,1574809,2174.74,CARE MANAGEMENT GROUP LIMITED,337801,"Health, Education, Care and Safeguarding",Adult Social Care,101,Third Party Payments,505,Private Contractors,5042,Revenue,22.RESIDENTIAL
19/02/2018,1576735,2174.74,CARE MANAGEMENT GROUP LIMITED,337801,"Health, Education, Care and Safeguarding",Adult Social Care,101,Third Party Payments,505,Private Contractors,5042,Revenue,22.RESIDENTIAL
26/02/2018,1581936,2174.74,CARE MANAGEMENT GROUP LIMITED,337801,"Health, Education, Care and Safeguarding",Adult Social Care,101,Third Party Payments,505,Private Contractors,5042,Revenue,22.RESIDENTIAL
26/02/2018,1581448,2170.70,PRESTWICK CARE LTD,387214,"Health, Education, Care and Safeguarding",Adult Social Care,101,Third Party Payments,505,Other Establishments,5041,Revenue,22.RESIDENTIAL
21/02/2018,1580584,2164.13,Redacted Personal Data,396369,"Health, Education, Care and Safeguarding",Adult Social Care,101,Income,509,Customer and Client Receipts,5064,Revenue,NON INDIVIDUAL
26/02/2018,1581889,2161.81,ROSEMOUNT - FOUR SEASONS HEALTH CARE,300716,"Health, Education, Care and Safeguarding",Adult Social Care,101,Third Party Payments,505,Private Contractors,5042,Revenue,22.RESIDENTIAL
22/02/2018,1580878,2158.00,J & M TRAVEL,388899,Commissioning & Investment,Children's & Education Services,103,Transport,503,Recharges,5017,Revenue,26.TAXIS
12/02/2018,1574726,2154.56,AKARI CARE HOMES LIMITED,387465,"Health, Education, Care and Safeguarding",Adult Social Care,101,Third Party Payments,505,Private Contractors,5042,Revenue,22.RESIDENTIAL
27/02/2018,1586269,2150.00,Redacted Personal Data,395217,"Health, Education, Care and Safeguarding",Children's & Education Services,103,Third Party Payments,505,Private Contractors,5042,Revenue,CHILDCARE
05/02/2018,1569452,2146.49,LIFEWAYS COMMUNITY CARE LTD,385849,"Health, Education, Care and Safeguarding",Adult Social Care,101,Third Party Payments,505,Private Contractors,5042,Revenue,22.SUPPORT SERVICES
12/02/2018,1575092,2146.49,LIFEWAYS COMMUNITY CARE LTD,385849,"Health, Education, Care and Safeguarding",Adult Social Care,101,Third Party Payments,505,Private Contractors,5042,Revenue,22.SUPPORT SERVICES
19/02/2018,1576724,2146.49,LIFEWAYS COMMUNITY CARE LTD,385849,"Health, Education, Care and Safeguarding",Adult Social Care,101,Third Party Payments,505,Private Contractors,5042,Revenue,22.SUPPORT SERVICES
26/02/2018,1581432,2146.49,LIFEWAYS COMMUNITY CARE LTD,385849,"Health, Education, Care and Safeguarding",Adult Social Care,101,Third Party Payments,505,Private Contractors,5042,Revenue,22.SUPPORT SERVICES
19/02/2018,1577432,2144.83,HOMECARE REFUNDS - BSS ONLY,384082,Housing Revenue Account,Housing Revenue Account,N/A,Supplies and Services,504,Miscellaneous Expenses,5034,Revenue,NON INDIVIDUAL
27/02/2018,1583334,2141.72,HOUSING BENEFIT,299992,Finance,Housing Services,108,Transfer Payments,506,Housing Benefits,5048,Revenue,00.NON INFLUENCIBLE
21/02/2018,1580776,2137.27,NHC NHS FOUNDATION TRUST,317869,Law & Governance,Central Services,102,Third Party Payments,505,Health Authorities,5038,Revenue,PUB HEALTH.PUBLIC HEALTH
08/02/2018,1573885,2137.00,STANNAH LIFT SERVICES LIMITED,102817,Capital,Capital,Capital,Third Party Payments,505,Private Contractors,5042,Capital,SOCIAL FITTED
06/02/2018,1570105,2131.68,HOUSING BENEFIT,299992,Finance,Housing Services,108,Transfer Payments,506,Housing Benefits,5048,Revenue,00.NON INFLUENCIBLE
21/02/2018,1580565,2127.97,GENERAL BACS PAYMENTS - BSS ONLY,381148,Central Items,Holding A/C,N/A,Control Accounts,N/A,Control Accounts,N/A,Revenue,00.NON INFLUENCIBLE
08/02/2018,1573919,2118.08,HOUSING BENEFIT,299992,Finance,Housing Services,108,Transfer Payments,506,Housing Benefits,5048,Revenue,00.NON INFLUENCIBLE
21/02/2018,1580743,2109.00,ST ANTHONY OF PADUA CARE SERVICES,353429,"Health, Education, Care and Safeguarding",Adult Social Care,101,Third Party Payments,505,Private Contractors,5042,Revenue,22.SUPPORT SERVICES
09/02/2018,1574102,2105.00,JAMES LECKEY DESIGN LTD,203992,"Health, Education, Care and Safeguarding",Adult Social Care,101,Supplies and Services,504,Equipment,5023,Revenue,10.OFFICE
08/02/2018,1573923,2104.39,HOUSING BENEFIT,299992,Finance,Housing Services,108,Transfer Payments,506,Housing Benefits,5048,Revenue,00.NON INFLUENCIBLE
14/02/2018,1575831,2101.81,CAPITA SYMONDS LTD,376582,Capital,Capital,Capital,Third Party Payments,505,Private Contractors,5042,Capital,02.BUILDING SERVICES
09/02/2018,1574282,2100.00,PREMIER TRANSPORT,310296,Commissioning & Investment,Children's & Education Services,103,Transport,503,Recharges,5017,Revenue,26.TAXIS
09/02/2018,1574282,2100.00,PREMIER TRANSPORT,310296,Commissioning & Investment,Children's & Education Services,103,Transport,503,Recharges,5017,Revenue,26.TAXIS
07/02/2018,1573761,2100.00,PREMIER TRUCK HIRE LTD,320912,"Environment, Housing & Leisure",Unallocated,N/A,Transport,503,Contract Hire and Operating Leases,5018,Revenue,28.HIRE AND LEASE
05/02/2018,1569769,2095.80,NEW BEGINNINGS (N.E.) LTD,337005,"Health, Education, Care and Safeguarding",Adult Social Care,101,Third Party Payments,505,Other Establishments,5041,Revenue,22.RESIDENTIAL
12/02/2018,1575116,2095.80,NEW BEGINNINGS (N.E.) LTD,337005,"Health, Education, Care and Safeguarding",Adult Social Care,101,Third Party Payments,505,Other Establishments,5041,Revenue,22.RESIDENTIAL
19/02/2018,1577042,2095.80,NEW BEGINNINGS (N.E.) LTD,337005,"Health, Education, Care and Safeguarding",Adult Social Care,101,Third Party Payments,505,Other Establishments,5041,Revenue,22.RESIDENTIAL
26/02/2018,1581502,2095.80,NEW BEGINNINGS (N.E.) LTD,337005,"Health, Education, Care and Safeguarding",Adult Social Care,101,Third Party Payments,505,Other Establishments,5041,Revenue,22.RESIDENTIAL
23/02/2018,1581130,2095.12,HANOVER HOUSING ASSOCIATION,305759,"Health, Education, Care and Safeguarding",Adult Social Care,101,Third Party Payments,505,Voluntary Associations,5040,Revenue,22.SUPPORT SERVICES
08/02/2018,1574066,2094.68,CAPITA SYMONDS LTD,376582,Capital,Capital,Capital,Third Party Payments,505,Private Contractors,5042,Capital,02.BUILDING SERVICES
08/02/2018,1574034,2093.00,Redacted Personal Data,361061,Commissioning & Investment,Children's & Education Services,103,Transport,503,Recharges,5017,Revenue,26.TAXIS
26/02/2018,1581195,2090.87,HOUSING BENEFIT,299992,Finance,Housing Services,108,Transfer Payments,506,Housing Benefits,5048,Revenue,00.NON INFLUENCIBLE
23/02/2018,1581131,2083.37,HOME HOUSING ASSOCIATION LTD,277767,"Health, Education, Care and Safeguarding",Adult Social Care,101,Third Party Payments,505,Voluntary Associations,5040,Revenue,22.SUPPORT SERVICES
15/02/2018,1576094,2080.40,AEGON - SCOTTISH EQUITABLE,389091,Capital,General Fund,N/A,Capital,Capital,Capital,Capital,Capital,00.NON INFLUENCIBLE
05/02/2018,1569514,2077.61,PRESTWICK CARE LTD,387214,"Health, Education, Care and Safeguarding",Adult Social Care,101,Third Party Payments,505,Private Contractors,5042,Revenue,22.RESIDENTIAL
20/02/2018,1580422,2064.00,HM REVENUE & CUSTOMS,361213,Capital,General Fund,N/A,Capital,Capital,Capital,Capital,Capital,00.PUBLIC SECTOR
19/02/2018,1577422,2063.52,HOMECARE REFUNDS - BSS ONLY,384082,Housing Revenue Account,Housing Revenue Account,N/A,Supplies and Services,504,Miscellaneous Expenses,5034,Revenue,NON INDIVIDUAL
05/02/2018,1569096,2061.00,DEMENTIA CARE PARTNERSHIP,346841,"Health, Education, Care and Safeguarding",Adult Social Care,101,Third Party Payments,505,Private Contractors,5042,Revenue,22.SUPPORT SERVICES
16/02/2018,1576299,2060.92,NORTHUMBRIAN WATER LIMITED,014360,Commissioning & Investment,Holding A/C,N/A,Premises-Related Expenditure,502,Rates,5008,Revenue,27.WATER
19/02/2018,1576688,2049.74,PRESTWICK CARE LTD,387214,"Health, Education, Care and Safeguarding",Adult Social Care,101,Third Party Payments,505,Other Establishments,5041,Revenue,22.RESIDENTIAL
16/02/2018,1576323,2040.00,NORTH EAST SOCIAL MEDIA LTD,393425,Business & Economic Development,Planning Services,110,Third Party Payments,505,Private Contractors,5042,Revenue,16.EVENTS & PROMOTIONS
09/02/2018,1574093,2040.00,FAIRMAN CHEMISTS LTD,309306,"Health, Education, Care and Safeguarding",Public Health,112,Supplies and Services,504,Miscellaneous Expenses,5034,Revenue,PUB HEALTH.PUBLIC HEALTH
07/02/2018,1573774,2022.30,MOORBRIDGE,379217,Capital,Capital,Capital,Capital Expenditure,Capital,Capital Expenditure,Capital,Capital,00.NT SCHOOLS
12/02/2018,1575168,2016.00,LIFE AND CARE SOLUTIONS LTD T/A RIGHT AT HOME TYNESIDE,391034,"Health, Education, Care and Safeguarding",Adult Social Care,101,Third Party Payments,505,Private Contractors,5042,Revenue,22.HOMECARE
12/02/2018,1575168,2016.00,LIFE AND CARE SOLUTIONS LTD T/A RIGHT AT HOME TYNESIDE,391034,"Health, Education, Care and Safeguarding",Adult Social Care,101,Third Party Payments,505,Private Contractors,5042,Revenue,22.HOMECARE
19/02/2018,1577388,2016.00,LIFE AND CARE SOLUTIONS LTD T/A RIGHT AT HOME TYNESIDE,391034,"Health, Education, Care and Safeguarding",Adult Social Care,101,Third Party Payments,505,Private Contractors,5042,Revenue,22.HOMECARE
19/02/2018,1577095,2015.65,ROSEMOUNT - FOUR SEASONS HEALTH CARE,300716,"Health, Education, Care and Safeguarding",Adult Social Care,101,Third Party Payments,505,Other Establishments,5041,Revenue,22.RESIDENTIAL
19/02/2018,1577073,2015.65,NORTH EAST CARE HOMES LIMITED,359922,"Health, Education, Care and Safeguarding",Adult Social Care,101,Third Party Payments,505,Other Establishments,5041,Revenue,22.RESIDENTIAL
05/02/2018,1569805,2013.85,UNITED RESPONSE,330350,"Health, Education, Care and Safeguarding",Adult Social Care,101,Third Party Payments,505,Private Contractors,5042,Revenue,22.SUPPORT SERVICES
12/02/2018,1574659,2013.85,UNITED RESPONSE,330350,"Health, Education, Care and Safeguarding",Adult Social Care,101,Third Party Payments,505,Private Contractors,5042,Revenue,22.SUPPORT SERVICES
19/02/2018,1576978,2013.85,UNITED RESPONSE,330350,"Health, Education, Care and Safeguarding",Adult Social Care,101,Third Party Payments,505,Private Contractors,5042,Revenue,22.SUPPORT SERVICES
26/02/2018,1581586,2013.85,UNITED RESPONSE,330350,"Health, Education, Care and Safeguarding",Adult Social Care,101,Third Party Payments,505,Private Contractors,5042,Revenue,22.SUPPORT SERVICES
05/02/2018,1569473,2012.80,THE HOME FARM TRUST LIMITED,343454,"Health, Education, Care and Safeguarding",Adult Social Care,101,Third Party Payments,505,Private Contractors,5042,Revenue,22.RESIDENTIAL
12/02/2018,1574762,2012.80,THE HOME FARM TRUST LIMITED,343454,"Health, Education, Care and Safeguarding",Adult Social Care,101,Third Party Payments,505,Private Contractors,5042,Revenue,22.RESIDENTIAL
19/02/2018,1576745,2012.80,THE HOME FARM TRUST LIMITED,343454,"Health, Education, Care and Safeguarding",Adult Social Care,101,Third Party Payments,505,Private Contractors,5042,Revenue,22.RESIDENTIAL
26/02/2018,1581924,2012.80,THE HOME FARM TRUST LIMITED,343454,"Health, Education, Care and Safeguarding",Adult Social Care,101,Third Party Payments,505,Private Contractors,5042,Revenue,22.RESIDENTIAL
26/02/2018,1582278,2010.00,AQUAJET DRAIN CLEANING LIMITED,373476,Capital,Capital,Capital,Supplies and Services,504,Miscellaneous Expenses,5034,Capital,ENVIRO DRAIN
05/02/2018,1568986,2007.56,COUNCIL TAX REFUND,299993,General Fund Financing,Holding A/C,N/A,Excluded from General Fund,N/A,Collection Fund,N/A,Revenue,00.NON INFLUENCIBLE
05/02/2018,1569805,2004.99,UNITED RESPONSE,330350,"Health, Education, Care and Safeguarding",Adult Social Care,101,Third Party Payments,505,Private Contractors,5042,Revenue,22.SUPPORT SERVICES
12/02/2018,1574659,2004.99,UNITED RESPONSE,330350,"Health, Education, Care and Safeguarding",Adult Social Care,101,Third Party Payments,505,Private Contractors,5042,Revenue,22.SUPPORT SERVICES
19/02/2018,1576978,2004.99,UNITED RESPONSE,330350,"Health, Education, Care and Safeguarding",Adult Social Care,101,Third Party Payments,505,Private Contractors,5042,Revenue,22.SUPPORT SERVICES
26/02/2018,1581586,2004.99,UNITED RESPONSE,330350,"Health, Education, Care and Safeguarding",Adult Social Care,101,Third Party Payments,505,Private Contractors,5042,Revenue,22.SUPPORT SERVICES
05/02/2018,1569837,2001.55,RESOLVE CARE NORTHERN LIMITED,383736,"Health, Education, Care and Safeguarding",Adult Social Care,101,Third Party Payments,505,Private Contractors,5042,Revenue,00.NON INFLUENCIBLE
12/02/2018,1574777,2001.55,RESOLVE CARE NORTHERN LIMITED,383736,"Health, Education, Care and Safeguarding",Adult Social Care,101,Third Party Payments,505,Private Contractors,5042,Revenue,00.NON INFLUENCIBLE
19/02/2018,1577111,2001.55,RESOLVE CARE NORTHERN LIMITED,383736,"Health, Education, Care and Safeguarding",Adult Social Care,101,Third Party Payments,505,Private Contractors,5042,Revenue,00.NON INFLUENCIBLE
26/02/2018,1581913,2001.55,RESOLVE CARE NORTHERN LIMITED,383736,"Health, Education, Care and Safeguarding",Adult Social Care,101,Third Party Payments,505,Private Contractors,5042,Revenue,00.NON INFLUENCIBLE
02/02/2018,1568744,2000.00,BARNARDO'S,029324,"Health, Education, Care and Safeguarding",Children's & Education Services,103,Third Party Payments,505,Private Contractors,5042,Revenue,22.SUPPORT SERVICES
09/02/2018,1574210,2000.00,NCJ MEDIA LTD,372700,Business & Economic Development,Planning Services,110,Supplies and Services,504,"Printing, Stationery and General Office Expenses",5026,Revenue,16.ADVERTISING
06/02/2018,1573580,2000.00,ADVANCED PAYMENT SOLUTIONS LIMITED,390304,"Health, Education, Care and Safeguarding",Adult Social Care,101,Third Party Payments,505,Other Establishments,5041,Revenue,09.FINANCIAL SERVICES
14/02/2018,1575782,2000.00,AFTER ADOPTION,318350,"Health, Education, Care and Safeguarding",Children's & Education Services,103,Third Party Payments,505,Private Contractors,5042,Revenue,SOCIAL ADOPTION
09/02/2018,1574282,2000.00,PREMIER TRANSPORT,310296,Commissioning & Investment,Children's & Education Services,103,Transfer Payments,506,School Children and Students,5046,Revenue,26.TAXIS
01/02/2018,1568653,1998.00,GREENLAY (GRASS MACHINERY) LTD,337595,Housing Revenue Account,Housing Services,108,Supplies and Services,504,Equipment,5023,Revenue,13.EQUIPMENT
07/02/2018,1573738,1994.00,NEW LIFE INTERIORS,352818,"Health, Education, Care and Safeguarding",Adult Social Care,101,Supplies and Services,504,Equipment,5023,Revenue,10.HOUSEHOLD
01/02/2018,1568659,1983.99,STANNAH LIFT SERVICES LIMITED,102817,Capital,Capital,Capital,Third Party Payments,505,Private Contractors,5042,Capital,SOCIAL FITTED
09/02/2018,1574282,1980.00,PREMIER TRANSPORT,310296,Commissioning & Investment,Children's & Education Services,103,Transport,503,Recharges,5017,Revenue,26.TAXIS
09/02/2018,1574282,1980.00,PREMIER TRANSPORT,310296,Commissioning & Investment,Children's & Education Services,103,Transport,503,Recharges,5017,Revenue,26.TAXIS
12/02/2018,1574824,1977.78,HUNTER HALL FOUR SEASONS HEALTH CARE,253473,"Health, Education, Care and Safeguarding",Adult Social Care,101,Third Party Payments,505,Other Establishments,5041,Revenue,22.RESIDENTIAL
27/02/2018,1585215,1965.48,HOUSING BENEFIT,299992,Finance,Housing Services,108,Transfer Payments,506,Housing Benefits,5048,Revenue,00.NON INFLUENCIBLE
05/02/2018,1569808,1963.92,WAYMARKS LTD,386037,"Health, Education, Care and Safeguarding",Adult Social Care,101,Third Party Payments,505,Other Establishments,5041,Revenue,22.SUPPORT SERVICES
12/02/2018,1574662,1963.92,WAYMARKS LTD,386037,"Health, Education, Care and Safeguarding",Adult Social Care,101,Third Party Payments,505,Other Establishments,5041,Revenue,22.SUPPORT SERVICES
19/02/2018,1576981,1963.92,WAYMARKS LTD,386037,"Health, Education, Care and Safeguarding",Adult Social Care,101,Third Party Payments,505,Other Establishments,5041,Revenue,22.SUPPORT SERVICES
26/02/2018,1581589,1963.92,WAYMARKS LTD,386037,"Health, Education, Care and Safeguarding",Adult Social Care,101,Third Party Payments,505,Other Establishments,5041,Revenue,22.SUPPORT SERVICES
12/02/2018,1574302,1961.45,HOUSING BENEFIT,299992,Finance,Housing Services,108,Transfer Payments,506,Housing Benefits,5048,Revenue,00.NON INFLUENCIBLE
06/02/2018,1570213,1959.84,HOUSING BENEFIT,299992,Finance,Housing Services,108,Transfer Payments,506,Housing Benefits,5048,Revenue,00.NON INFLUENCIBLE
28/02/2018,1586813,1956.00,CAPITA SYMONDS LTD,376582,Commissioning & Investment,Children's & Education Services,103,Supplies and Services,504,Miscellaneous Expenses,5034,Revenue,02.BUILDING SERVICES
14/02/2018,1575701,1950.00,THE HUNTERCOMBE GROUP,395253,Commissioning & Investment,Children's & Education Services,103,Third Party Payments,505,Private Contractors,5042,Revenue,22.RESIDENTIAL
05/02/2018,1569386,1946.00,CREATIVE SUPPORT LTD,359340,"Health, Education, Care and Safeguarding",Adult Social Care,101,Third Party Payments,505,Private Contractors,5042,Revenue,22.HOMECARE
05/02/2018,1569759,1946.00,ST ANNE'S COMMUNITY SERVICES,366247,"Health, Education, Care and Safeguarding",Adult Social Care,101,Third Party Payments,505,Private Contractors,5042,Revenue,22.DAY CARE SERVICES
12/02/2018,1574728,1946.00,CREATIVE SUPPORT LTD,359340,"Health, Education, Care and Safeguarding",Adult Social Care,101,Third Party Payments,505,Private Contractors,5042,Revenue,22.HOMECARE
12/02/2018,1575106,1946.00,ST ANNE'S COMMUNITY SERVICES,366247,"Health, Education, Care and Safeguarding",Adult Social Care,101,Third Party Payments,505,Private Contractors,5042,Revenue,22.DAY CARE SERVICES
19/02/2018,1576660,1946.00,CREATIVE SUPPORT LTD,359340,"Health, Education, Care and Safeguarding",Adult Social Care,101,Third Party Payments,505,Private Contractors,5042,Revenue,22.HOMECARE
19/02/2018,1577032,1946.00,ST ANNE'S COMMUNITY SERVICES,366247,"Health, Education, Care and Safeguarding",Adult Social Care,101,Third Party Payments,505,Private Contractors,5042,Revenue,22.DAY CARE SERVICES
26/02/2018,1581479,1946.00,ST ANNE'S COMMUNITY SERVICES,366247,"Health, Education, Care and Safeguarding",Adult Social Care,101,Third Party Payments,505,Private Contractors,5042,Revenue,22.DAY CARE SERVICES
26/02/2018,1581605,1946.00,CREATIVE SUPPORT LTD,359340,"Health, Education, Care and Safeguarding",Adult Social Care,101,Third Party Payments,505,Private Contractors,5042,Revenue,22.HOMECARE
05/02/2018,1569404,1942.50,Redacted Personal Data,389997,"Health, Education, Care and Safeguarding",Adult Social Care,101,Third Party Payments,505,Other Establishments,5041,Revenue,NON INDIVIDUAL
12/02/2018,1575049,1942.50,Redacted Personal Data,389997,"Health, Education, Care and Safeguarding",Adult Social Care,101,Third Party Payments,505,Other Establishments,5041,Revenue,NON INDIVIDUAL
19/02/2018,1576679,1942.50,Redacted Personal Data,389997,"Health, Education, Care and Safeguarding",Adult Social Care,101,Third Party Payments,505,Other Establishments,5041,Revenue,NON INDIVIDUAL
26/02/2018,1581765,1942.50,Redacted Personal Data,389997,"Health, Education, Care and Safeguarding",Adult Social Care,101,Third Party Payments,505,Other Establishments,5041,Revenue,NON INDIVIDUAL
15/02/2018,1576011,1941.25,ALISON BLACK LIMITED T/A SPORTMAX,387480,"Environment, Housing & Leisure",Cultural & Related Services,104,Supplies and Services,504,Equipment,5023,Revenue,SPORTS EQUIP
12/02/2018,1574778,1933.03,INTERACTIVE DEVELOPMENT SUPPORT LIMITED,383543,"Health, Education, Care and Safeguarding",Adult Social Care,101,Third Party Payments,505,Other Establishments,5041,Revenue,22.SUPPORT SERVICES
19/02/2018,1577004,1929.00,NEW PROSPECTS ASSOCIATION LIMITED,203069,"Health, Education, Care and Safeguarding",Adult Social Care,101,Third Party Payments,505,Private Contractors,5042,Revenue,22.DAY CARE SERVICES
05/02/2018,1569480,1927.45,Redacted Personal Data,381734,"Health, Education, Care and Safeguarding",Adult Social Care,101,Third Party Payments,505,Other Establishments,5041,Revenue,00.NON INFLUENCIBLE
12/02/2018,1574774,1927.45,Redacted Personal Data,381734,"Health, Education, Care and Safeguarding",Adult Social Care,101,Third Party Payments,505,Other Establishments,5041,Revenue,00.NON INFLUENCIBLE
19/02/2018,1576752,1927.45,Redacted Personal Data,381734,"Health, Education, Care and Safeguarding",Adult Social Care,101,Third Party Payments,505,Other Establishments,5041,Revenue,00.NON INFLUENCIBLE
26/02/2018,1581929,1927.45,Redacted Personal Data,381734,"Health, Education, Care and Safeguarding",Adult Social Care,101,Third Party Payments,505,Other Establishments,5041,Revenue,00.NON INFLUENCIBLE
27/02/2018,1583460,1921.96,HOUSING BENEFIT,299992,Finance,Housing Services,108,Transfer Payments,506,Housing Benefits,5048,Revenue,00.NON INFLUENCIBLE
12/02/2018,1575192,1920.00,SILVERLINE TAXIS LTD,368499,Commissioning & Investment,Children's & Education Services,103,Transport,503,Recharges,5017,Revenue,26.TAXIS
20/02/2018,1580418,1913.00,HM REVENUE & CUSTOMS,361213,Capital,General Fund,N/A,Capital,Capital,Capital,Capital,Capital,00.PUBLIC SECTOR
16/02/2018,1576291,1910.32,NPOWER,334502,Housing Revenue Account,Housing Services,108,Premises-Related Expenditure,502,Energy Costs,5006,Revenue,27.ELECTRIC
07/02/2018,1573707,1903.13,OUR LADY OF LOURDES RC PRIMARY,393111,"Health, Education, Care and Safeguarding",Children's & Education Services,103,Third Party Payments,505,Private Contractors,5042,Revenue,00.EXT SCHOOLS
05/02/2018,1569473,1901.20,THE HOME FARM TRUST LIMITED,343454,"Health, Education, Care and Safeguarding",Adult Social Care,101,Third Party Payments,505,Private Contractors,5042,Revenue,22.RESIDENTIAL
05/02/2018,1569732,1901.20,NEW PROSPECTS ASSOCIATION LIMITED,203069,"Health, Education, Care and Safeguarding",Adult Social Care,101,Third Party Payments,505,Private Contractors,5042,Revenue,22.DAY CARE SERVICES
05/02/2018,1569732,1901.20,NEW PROSPECTS ASSOCIATION LIMITED,203069,"Health, Education, Care and Safeguarding",Adult Social Care,101,Third Party Payments,505,Private Contractors,5042,Revenue,22.DAY CARE SERVICES
05/02/2018,1569769,1901.20,NEW BEGINNINGS (N.E.) LTD,337005,"Health, Education, Care and Safeguarding",Adult Social Care,101,Third Party Payments,505,Other Establishments,5041,Revenue,22.RESIDENTIAL
05/02/2018,1569769,1901.20,NEW BEGINNINGS (N.E.) LTD,337005,"Health, Education, Care and Safeguarding",Adult Social Care,101,Third Party Payments,505,Private Contractors,5042,Revenue,22.RESIDENTIAL
05/02/2018,1569790,1901.20,FLEXIBLE SUPPORT OPTIONS UK LIMITED,342478,"Health, Education, Care and Safeguarding",Adult Social Care,101,Third Party Payments,505,Other Establishments,5041,Revenue,22.SUPPORT SERVICES
05/02/2018,1569838,1901.20,INTERACTIVE DEVELOPMENT SUPPORT LIMITED,383543,"Health, Education, Care and Safeguarding",Adult Social Care,101,Third Party Payments,505,Private Contractors,5042,Revenue,22.SUPPORT SERVICES
12/02/2018,1574685,1901.20,NEW PROSPECTS ASSOCIATION LIMITED,203069,"Health, Education, Care and Safeguarding",Adult Social Care,101,Third Party Payments,505,Private Contractors,5042,Revenue,22.DAY CARE SERVICES
12/02/2018,1574685,1901.20,NEW PROSPECTS ASSOCIATION LIMITED,203069,"Health, Education, Care and Safeguarding",Adult Social Care,101,Third Party Payments,505,Private Contractors,5042,Revenue,22.DAY CARE SERVICES
12/02/2018,1574762,1901.20,THE HOME FARM TRUST LIMITED,343454,"Health, Education, Care and Safeguarding",Adult Social Care,101,Third Party Payments,505,Private Contractors,5042,Revenue,22.RESIDENTIAL
12/02/2018,1574778,1901.20,INTERACTIVE DEVELOPMENT SUPPORT LIMITED,383543,"Health, Education, Care and Safeguarding",Adult Social Care,101,Third Party Payments,505,Private Contractors,5042,Revenue,22.SUPPORT SERVICES
12/02/2018,1575116,1901.20,NEW BEGINNINGS (N.E.) LTD,337005,"Health, Education, Care and Safeguarding",Adult Social Care,101,Third Party Payments,505,Other Establishments,5041,Revenue,22.RESIDENTIAL
12/02/2018,1575116,1901.20,NEW BEGINNINGS (N.E.) LTD,337005,"Health, Education, Care and Safeguarding",Adult Social Care,101,Third Party Payments,505,Private Contractors,5042,Revenue,22.RESIDENTIAL
12/02/2018,1575137,1901.20,FLEXIBLE SUPPORT OPTIONS UK LIMITED,342478,"Health, Education, Care and Safeguarding",Adult Social Care,101,Third Party Payments,505,Other Establishments,5041,Revenue,22.SUPPORT SERVICES
19/02/2018,1576745,1901.20,THE HOME FARM TRUST LIMITED,343454,"Health, Education, Care and Safeguarding",Adult Social Care,101,Third Party Payments,505,Private Contractors,5042,Revenue,22.RESIDENTIAL
